Payment Date,Transaction Number,Net Amount,Supplier (Beneficiary) Name,Local Supplier Internal Reference,Directorate / Service Where Expenditure Incurred,Service Category Label,Service Category URI,SeRCOP Expenditure Category,SeRCOP Expenditure Code,Purpose of Spend,SeRCOP Detailed Expenditure Code,Capital/Revenue,Procurement Classification
01/06/2017,17017,552.57,HOUSING REFUND PAYMENTS - BSS ONLY,379825,Housing Revenue Account,Housing Revenue Account,N/A,Supplies and Services,504,Miscellaneous Expenses,5034,Revenue,00.WELFARE
01/06/2017,17023,266.00,HOUSING REFUND PAYMENTS - BSS ONLY,379825,Housing Revenue Account,Housing Revenue Account,N/A,Supplies and Services,504,Miscellaneous Expenses,5034,Revenue,00.WELFARE
01/06/2017,17026,629.88,HOUSING BENEFITS / OVERPAYMENTS - BSS ONLY,380952,Capital,General Fund,N/A,Capital,Capital,Capital,Capital,Capital,00.NON INFLUENCIBLE
01/06/2017,17030,400.00,HMCS,360503,"Health, Education, Care and Safeguarding",Adult Social Care,101,Supplies and Services,504,Miscellaneous Expenses,5034,Revenue,00.PUBLIC SECTOR
01/06/2017,17031,400.00,HMCS,360503,"Health, Education, Care and Safeguarding",Adult Social Care,101,Supplies and Services,504,Miscellaneous Expenses,5034,Revenue,00.PUBLIC SECTOR
01/06/2017,17035,660.50,NORTH TYNESIDE COUNCIL,102767,Central Items,Holding A/C,N/A,Capital,Capital,Capital,Capital,Revenue,00.PUBLIC SECTOR
01/06/2017,17035,880.00,NORTH TYNESIDE COUNCIL,102767,"Health, Education, Care and Safeguarding",Adult Social Care,101,Third Party Payments,505,Other Establishments,5041,Revenue,00.PUBLIC SECTOR
01/06/2017,17035,950.00,NORTH TYNESIDE COUNCIL,102767,"Health, Education, Care and Safeguarding",Adult Social Care,101,Third Party Payments,505,Other Establishments,5041,Revenue,00.PUBLIC SECTOR
01/06/2017,17035,1228.64,NORTH TYNESIDE COUNCIL,102767,Central Items,Holding A/C,N/A,Capital,Capital,Capital,Capital,Revenue,00.PUBLIC SECTOR
01/06/2017,1446938,811.76,HOUSING BENEFIT,299992,Finance,Housing Services,108,Transfer Payments,506,Housing Benefits,5048,Revenue,00.NON INFLUENCIBLE
01/06/2017,1446940,517.80,HOUSING BENEFIT,299992,Finance,Housing Services,108,Transfer Payments,506,Housing Benefits,5048,Revenue,00.NON INFLUENCIBLE
01/06/2017,1446942,359.60,HOUSING BENEFIT,299992,Finance,Housing Services,108,Transfer Payments,506,Housing Benefits,5048,Revenue,00.NON INFLUENCIBLE
01/06/2017,1446943,363.60,HOUSING BENEFIT,299992,Finance,Housing Services,108,Transfer Payments,506,Housing Benefits,5048,Revenue,00.NON INFLUENCIBLE
01/06/2017,1446944,361.80,HOUSING BENEFIT,299992,Finance,Housing Services,108,Transfer Payments,506,Housing Benefits,5048,Revenue,00.NON INFLUENCIBLE
01/06/2017,1446946,2157.52,HOUSING BENEFIT,299992,Finance,Housing Services,108,Transfer Payments,506,Housing Benefits,5048,Revenue,00.NON INFLUENCIBLE
01/06/2017,1446947,331.24,HOUSING BENEFIT,299992,Finance,Housing Services,108,Transfer Payments,506,Housing Benefits,5048,Revenue,00.NON INFLUENCIBLE
01/06/2017,1446948,283.20,HOUSING BENEFIT,299992,Finance,Housing Services,108,Transfer Payments,506,Housing Benefits,5048,Revenue,00.NON INFLUENCIBLE
01/06/2017,1446949,545.40,HOUSING BENEFIT,299992,Finance,Housing Services,108,Transfer Payments,506,Housing Benefits,5048,Revenue,00.NON INFLUENCIBLE
01/06/2017,1446950,351.04,HOUSING BENEFIT,299992,Finance,Housing Services,108,Transfer Payments,506,Housing Benefits,5048,Revenue,00.NON INFLUENCIBLE
01/06/2017,1446953,364.60,HOUSING BENEFIT,299992,Finance,Housing Services,108,Transfer Payments,506,Housing Benefits,5048,Revenue,00.NON INFLUENCIBLE
01/06/2017,1446954,1002.07,HOUSING BENEFIT,299992,Finance,Housing Services,108,Transfer Payments,506,Housing Benefits,5048,Revenue,00.NON INFLUENCIBLE
01/06/2017,1446955,1910.94,HOUSING BENEFIT,299992,Finance,Housing Services,108,Transfer Payments,506,Housing Benefits,5048,Revenue,00.NON INFLUENCIBLE
01/06/2017,1446956,659.25,HOUSING BENEFIT,299992,Finance,Housing Services,108,Transfer Payments,506,Housing Benefits,5048,Revenue,00.NON INFLUENCIBLE
01/06/2017,1446957,1007.45,HOUSING BENEFIT,299992,Finance,Housing Services,108,Transfer Payments,506,Housing Benefits,5048,Revenue,00.NON INFLUENCIBLE
01/06/2017,1446961,580.01,HOUSING BENEFIT,299992,Finance,Housing Services,108,Transfer Payments,506,Housing Benefits,5048,Revenue,00.NON INFLUENCIBLE
01/06/2017,1446964,1118.15,HOUSING BENEFIT,299992,Finance,Housing Services,108,Transfer Payments,506,Housing Benefits,5048,Revenue,00.NON INFLUENCIBLE
01/06/2017,1446966,5472.68,HOUSING BENEFIT,299992,Finance,Housing Services,108,Transfer Payments,506,Housing Benefits,5048,Revenue,00.NON INFLUENCIBLE
01/06/2017,1446967,571.37,HOUSING BENEFIT,299992,Finance,Housing Services,108,Transfer Payments,506,Housing Benefits,5048,Revenue,00.NON INFLUENCIBLE
01/06/2017,1446968,1483.02,HOUSING BENEFIT,299992,Finance,Housing Services,108,Transfer Payments,506,Housing Benefits,5048,Revenue,00.NON INFLUENCIBLE
01/06/2017,1446969,305.92,HOUSING BENEFIT,299992,Finance,Housing Services,108,Transfer Payments,506,Housing Benefits,5048,Revenue,00.NON INFLUENCIBLE
01/06/2017,1446970,340.00,HOUSING BENEFIT,299992,Finance,Housing Services,108,Transfer Payments,506,Housing Benefits,5048,Revenue,00.NON INFLUENCIBLE
01/06/2017,1446972,1913.59,HOUSING BENEFIT,299992,Finance,Housing Services,108,Transfer Payments,506,Housing Benefits,5048,Revenue,00.NON INFLUENCIBLE
01/06/2017,1446973,882.20,HOUSING BENEFIT,299992,Finance,Housing Services,108,Transfer Payments,506,Housing Benefits,5048,Revenue,00.NON INFLUENCIBLE
01/06/2017,1446974,539.16,HOUSING BENEFIT,299992,Finance,Housing Services,108,Transfer Payments,506,Housing Benefits,5048,Revenue,00.NON INFLUENCIBLE
01/06/2017,1446975,367.40,HOUSING BENEFIT,299992,Finance,Housing Services,108,Transfer Payments,506,Housing Benefits,5048,Revenue,00.NON INFLUENCIBLE
01/06/2017,1446976,355.04,HOUSING BENEFIT,299992,Finance,Housing Services,108,Transfer Payments,506,Housing Benefits,5048,Revenue,00.NON INFLUENCIBLE
01/06/2017,1446978,363.60,HOUSING BENEFIT,299992,Finance,Housing Services,108,Transfer Payments,506,Housing Benefits,5048,Revenue,00.NON INFLUENCIBLE
01/06/2017,1446980,360.00,HOUSING BENEFIT,299992,Finance,Housing Services,108,Transfer Payments,506,Housing Benefits,5048,Revenue,00.NON INFLUENCIBLE
01/06/2017,1446981,365.40,HOUSING BENEFIT,299992,Finance,Housing Services,108,Transfer Payments,506,Housing Benefits,5048,Revenue,00.NON INFLUENCIBLE
01/06/2017,1446982,4123.56,HOUSING BENEFIT,299992,Finance,Housing Services,108,Transfer Payments,506,Housing Benefits,5048,Revenue,00.NON INFLUENCIBLE
01/06/2017,1446984,1159.86,HOUSING BENEFIT,299992,Finance,Housing Services,108,Transfer Payments,506,Housing Benefits,5048,Revenue,00.NON INFLUENCIBLE
01/06/2017,1446988,285.69,HOUSING BENEFIT,299992,Finance,Housing Services,108,Transfer Payments,506,Housing Benefits,5048,Revenue,00.NON INFLUENCIBLE
01/06/2017,1446989,638.40,HOUSING BENEFIT,299992,Finance,Housing Services,108,Transfer Payments,506,Housing Benefits,5048,Revenue,00.NON INFLUENCIBLE
01/06/2017,1446992,120.96,Redacted Personal Data,393838,Housing Revenue Account,Housing Services,108,Supplies and Services,504,Equipment,5023,Revenue,10.HOUSEHOLD
01/06/2017,1446992,127.94,Redacted Personal Data,393838,Housing Revenue Account,Housing Services,108,Supplies and Services,504,Equipment,5023,Revenue,10.HOUSEHOLD
01/06/2017,1446992,198.53,Redacted Personal Data,393838,Housing Revenue Account,Housing Services,108,Supplies and Services,504,Equipment,5023,Revenue,10.HOUSEHOLD
01/06/2017,1446992,213.24,Redacted Personal Data,393838,Housing Revenue Account,Housing Services,108,Supplies and Services,504,Equipment,5023,Revenue,10.HOUSEHOLD
01/06/2017,1446992,213.24,Redacted Personal Data,393838,Housing Revenue Account,Housing Services,108,Supplies and Services,504,Equipment,5023,Revenue,10.HOUSEHOLD
01/06/2017,1446992,215.59,Redacted Personal Data,393838,Housing Revenue Account,Housing Services,108,Supplies and Services,504,Equipment,5023,Revenue,10.HOUSEHOLD
01/06/2017,1446992,240.03,Redacted Personal Data,393838,Housing Revenue Account,Housing Services,108,Supplies and Services,504,Equipment,5023,Revenue,10.HOUSEHOLD
01/06/2017,1446992,240.03,Redacted Personal Data,393838,Housing Revenue Account,Housing Services,108,Supplies and Services,504,Equipment,5023,Revenue,10.HOUSEHOLD
01/06/2017,1446992,257.35,Redacted Personal Data,393838,Housing Revenue Account,Housing Services,108,Supplies and Services,504,Equipment,5023,Revenue,10.HOUSEHOLD
01/06/2017,1446992,444.12,Redacted Personal Data,393838,Housing Revenue Account,Housing Services,108,Supplies and Services,504,Equipment,5023,Revenue,10.HOUSEHOLD
01/06/2017,1446998,1950.00,GREENLAY (GRASS MACHINERY) LTD,337595,Housing Revenue Account,Housing Services,108,Supplies and Services,504,Equipment,5023,Revenue,13.EQUIPMENT
01/06/2017,1447002,565.98,NORTH EAST TRUCK & VAN,014751,"Environment, Housing & Leisure",Unallocated,N/A,Transport,503,Direct Transport Costs,5016,Revenue,28.VEHICLE PARTS
01/06/2017,1447003,170.20,FALON NAMEPLATES,006025,"Environment, Housing & Leisure",Environmental & Regulatory Services,105,Supplies and Services,504,Equipment,5023,Revenue,ENVIRO SERVICES
01/06/2017,1447003,598.40,FALON NAMEPLATES,006025,"Environment, Housing & Leisure",Environmental & Regulatory Services,105,Supplies and Services,504,Equipment,5023,Revenue,ENVIRO SERVICES
01/06/2017,1447004,125.00,THOMAS OWEN AND SONS LTD,015083,"Environment, Housing & Leisure",Cultural & Related Services,104,Supplies and Services,504,"Clothing, Uniforms and Laundry",5025,Revenue,05.CLEANING MATERIALS
01/06/2017,1447004,125.00,THOMAS OWEN AND SONS LTD,015083,"Environment, Housing & Leisure",Cultural & Related Services,104,Supplies and Services,504,"Clothing, Uniforms and Laundry",5025,Revenue,05.CLEANING MATERIALS
01/06/2017,1447004,125.00,THOMAS OWEN AND SONS LTD,015083,"Environment, Housing & Leisure",Cultural & Related Services,104,Supplies and Services,504,"Clothing, Uniforms and Laundry",5025,Revenue,05.CLEANING MATERIALS
01/06/2017,1447004,125.00,THOMAS OWEN AND SONS LTD,015083,"Environment, Housing & Leisure",Cultural & Related Services,104,Supplies and Services,504,"Clothing, Uniforms and Laundry",5025,Revenue,05.CLEANING MATERIALS
01/06/2017,1447005,665.10,LONDONDERRY GARAGE LTD,210130,"Environment, Housing & Leisure",Unallocated,N/A,Transport,503,Direct Transport Costs,5016,Revenue,28.VEHICLE PARTS
01/06/2017,1447005,738.32,LONDONDERRY GARAGE LTD,210130,"Environment, Housing & Leisure",Unallocated,N/A,Transport,503,Direct Transport Costs,5016,Revenue,28.VEHICLE PARTS
01/06/2017,1447006,825.00,STANNAH LIFT SERVICES LIMITED,102817,Capital,Capital,Capital,Third Party Payments,505,Private Contractors,5042,Capital,SOCIAL FITTED
01/06/2017,1447006,1695.00,STANNAH LIFT SERVICES LIMITED,102817,Capital,Capital,Capital,Third Party Payments,505,Private Contractors,5042,Capital,SOCIAL FITTED
01/06/2017,1447006,1875.00,STANNAH LIFT SERVICES LIMITED,102817,Capital,Capital,Capital,Third Party Payments,505,Private Contractors,5042,Capital,SOCIAL FITTED
01/06/2017,1447006,2195.00,STANNAH LIFT SERVICES LIMITED,102817,Capital,Capital,Capital,Third Party Payments,505,Private Contractors,5042,Capital,SOCIAL FITTED
01/06/2017,1447006,3594.16,STANNAH LIFT SERVICES LIMITED,102817,Capital,Capital,Capital,Third Party Payments,505,Private Contractors,5042,Capital,SOCIAL FITTED
01/06/2017,1447006,4165.00,STANNAH LIFT SERVICES LIMITED,102817,Capital,Capital,Capital,Third Party Payments,505,Private Contractors,5042,Capital,SOCIAL FITTED
01/06/2017,1447007,218.93,STANNAH LIFT SERVICES LIMITED,102817,Capital,Capital,Capital,Third Party Payments,505,Private Contractors,5042,Capital,SOCIAL FITTED
01/06/2017,1447008,435.00,NORHAM COMMUNITY TECHNOLOGY COLLEGE,237330,Commissioning & Investment,Children's & Education Services,103,Third Party Payments,505,Private Contractors,5042,Revenue,00.NT SCHOOLS
01/06/2017,1447009,252.00,KAYLEIGH BRADLEY,395009,"Environment, Housing & Leisure",Cultural & Related Services,104,Third Party Payments,505,Private Contractors,5042,Revenue,18.CONFERENCING
01/06/2017,1447011,3000.00,PRIMATE PRODUCTIONS LTD,385544,"Environment, Housing & Leisure",Environmental & Regulatory Services,105,Third Party Payments,505,Private Contractors,5042,Revenue,16.EVENTS & PROMOTIONS
01/06/2017,1447012,250.00,THE LINKS ART GALLERY,394845,Capital,Capital,Capital,Capital Expenditure,Capital,Capital Expenditure,Capital,Capital,FINANCE RENTS
01/06/2017,1447015,6277.86,Redacted Personal Data,394565,"Health, Education, Care and Safeguarding",Children's & Education Services,103,Third Party Payments,505,Private Contractors,5042,Revenue,CHILDCARE
01/06/2017,1447015,18633.48,Redacted Personal Data,394565,"Health, Education, Care and Safeguarding",Children's & Education Services,103,Third Party Payments,505,Private Contractors,5042,Revenue,CHILDCARE
01/06/2017,1447016,-890.00,RAKARD ENVIRONMENTAL LTD,392599,Central Items,Holding A/C,N/A,Supplies and Services,504,Miscellaneous Expenses,5034,Revenue,02.BUILDING SERVICES
01/06/2017,1447016,4450.00,RAKARD ENVIRONMENTAL LTD,392599,Capital,Capital,Capital,Third Party Payments,505,Private Contractors,5042,Capital,02.BUILDING SERVICES
01/06/2017,1447017,-948.16,HARBOUR ENTERPRISE (AMBLE) LTD,387640,Central Items,Holding A/C,N/A,Supplies and Services,504,Miscellaneous Expenses,5034,Revenue,02.BUILDING SERVICES
01/06/2017,1447017,948.16,HARBOUR ENTERPRISE (AMBLE) LTD,387640,Central Items,Holding A/C,N/A,Supplies and Services,504,Miscellaneous Expenses,5034,Revenue,02.BUILDING SERVICES
01/06/2017,1447017,4740.80,HARBOUR ENTERPRISE (AMBLE) LTD,387640,Capital,Capital,Capital,Third Party Payments,505,Private Contractors,5042,Capital,02.BUILDING SERVICES
01/06/2017,1447018,922.50,TRUE MOMENTUM,348729,Business & Economic Development,Planning Services,110,Supplies and Services,504,Miscellaneous Expenses,5034,Revenue,ICT WEB
01/06/2017,1447020,1525.00,NORTH EAST SUPPORTED TENANCIES,376304,"Health, Education, Care and Safeguarding",Children's & Education Services,103,Third Party Payments,505,Other Establishments,5041,Revenue,22.SUPPORT SERVICES
01/06/2017,1447020,1525.00,NORTH EAST SUPPORTED TENANCIES,376304,"Health, Education, Care and Safeguarding",Children's & Education Services,103,Third Party Payments,505,Other Establishments,5041,Revenue,22.SUPPORT SERVICES
01/06/2017,1447021,0.00,Redacted Personal Data,381169,Commissioning & Investment,Children's & Education Services,103,Transport,503,Recharges,5017,Revenue,26.TAXIS
01/06/2017,1447021,0.00,Redacted Personal Data,381169,Commissioning & Investment,Children's & Education Services,103,Transport,503,Recharges,5017,Revenue,26.TAXIS
01/06/2017,1447021,0.00,Redacted Personal Data,381169,Commissioning & Investment,Children's & Education Services,103,Transport,503,Recharges,5017,Revenue,26.TAXIS
01/06/2017,1447021,280.00,Redacted Personal Data,381169,Commissioning & Investment,Children's & Education Services,103,Transport,503,Recharges,5017,Revenue,26.TAXIS
01/06/2017,1447021,425.00,Redacted Personal Data,381169,Commissioning & Investment,Children's & Education Services,103,Transport,503,Recharges,5017,Revenue,26.TAXIS
01/06/2017,1447021,720.00,Redacted Personal Data,381169,Commissioning & Investment,Children's & Education Services,103,Transfer Payments,506,School Children and Students,5046,Revenue,26.TAXIS
01/06/2017,1447021,850.00,Redacted Personal Data,381169,Commissioning & Investment,Children's & Education Services,103,Transport,503,Recharges,5017,Revenue,26.TAXIS
01/06/2017,1447021,950.00,Redacted Personal Data,381169,Commissioning & Investment,Children's & Education Services,103,Transport,503,Recharges,5017,Revenue,26.TAXIS
01/06/2017,1447021,950.00,Redacted Personal Data,381169,Commissioning & Investment,Children's & Education Services,103,Transport,503,Recharges,5017,Revenue,26.TAXIS
01/06/2017,1447021,950.00,Redacted Personal Data,381169,Commissioning & Investment,Children's & Education Services,103,Transport,503,Recharges,5017,Revenue,26.TAXIS
01/06/2017,1447021,950.00,Redacted Personal Data,381169,Commissioning & Investment,Children's & Education Services,103,Transport,503,Recharges,5017,Revenue,26.TAXIS
01/06/2017,1447021,988.00,Redacted Personal Data,381169,Commissioning & Investment,Children's & Education Services,103,Transport,503,Recharges,5017,Revenue,26.TAXIS
01/06/2017,1447021,1026.00,Redacted Personal Data,381169,Commissioning & Investment,Children's & Education Services,103,Transport,503,Recharges,5017,Revenue,26.TAXIS
01/06/2017,1447021,1140.00,Redacted Personal Data,381169,Commissioning & Investment,Children's & Education Services,103,Transport,503,Recharges,5017,Revenue,26.TAXIS
01/06/2017,1447021,1140.00,Redacted Personal Data,381169,Commissioning & Investment,Children's & Education Services,103,Transport,503,Recharges,5017,Revenue,26.TAXIS
01/06/2017,1447021,1140.00,Redacted Personal Data,381169,Commissioning & Investment,Children's & Education Services,103,Transport,503,Recharges,5017,Revenue,26.TAXIS
01/06/2017,1447021,1330.00,Redacted Personal Data,381169,Commissioning & Investment,Children's & Education Services,103,Transport,503,Recharges,5017,Revenue,26.TAXIS
01/06/2017,1447021,1330.00,Redacted Personal Data,381169,Commissioning & Investment,Children's & Education Services,103,Transport,503,Recharges,5017,Revenue,26.TAXIS
01/06/2017,1447021,1330.00,Redacted Personal Data,381169,Commissioning & Investment,Children's & Education Services,103,Transport,503,Recharges,5017,Revenue,26.TAXIS
01/06/2017,1447021,1330.00,Redacted Personal Data,381169,Commissioning & Investment,Children's & Education Services,103,Transport,503,Recharges,5017,Revenue,26.TAXIS
01/06/2017,1447021,1406.00,Redacted Personal Data,381169,Commissioning & Investment,Children's & Education Services,103,Transport,503,Recharges,5017,Revenue,26.TAXIS
01/06/2017,1447021,1520.00,Redacted Personal Data,381169,Commissioning & Investment,Children's & Education Services,103,Transport,503,Recharges,5017,Revenue,26.TAXIS
01/06/2017,1447021,1620.00,Redacted Personal Data,381169,Commissioning & Investment,Children's & Education Services,103,Transport,503,Recharges,5017,Revenue,26.TAXIS
01/06/2017,1447021,1710.00,Redacted Personal Data,381169,Commissioning & Investment,Children's & Education Services,103,Transport,503,Recharges,5017,Revenue,26.TAXIS
01/06/2017,1447021,2400.00,Redacted Personal Data,381169,Commissioning & Investment,Children's & Education Services,103,Transport,503,Recharges,5017,Revenue,26.TAXIS
01/06/2017,1447022,718.80,DR GINA CHARLTON,393080,"Health, Education, Care and Safeguarding",Children's & Education Services,103,Third Party Payments,505,Private Contractors,5042,Revenue,SOCIAL MENTAL
01/06/2017,1447023,283.50,ABSOLUTE QUALITY CARE,392461,"Health, Education, Care and Safeguarding",Adult Social Care,101,Third Party Payments,505,Private Contractors,5042,Revenue,22.SUPPORT SERVICES
01/06/2017,1447023,1561.00,ABSOLUTE QUALITY CARE,392461,"Health, Education, Care and Safeguarding",Adult Social Care,101,Third Party Payments,505,Private Contractors,5042,Revenue,22.SUPPORT SERVICES
01/06/2017,1447025,-3270.92,DE LAGE LANDEN LEASING LIMITED,392448,Central Items,Central Services,102,Capital,Capital,Capital,Capital,Revenue,01.LIFT MAINTENANCE
01/06/2017,1447025,607.35,DE LAGE LANDEN LEASING LIMITED,392448,Central Items,Central Services,102,Capital,Capital,Capital,Capital,Revenue,01.LIFT MAINTENANCE
01/06/2017,1447025,780.41,DE LAGE LANDEN LEASING LIMITED,392448,Central Items,Central Services,102,Capital,Capital,Capital,Capital,Revenue,01.LIFT MAINTENANCE
01/06/2017,1447025,817.73,DE LAGE LANDEN LEASING LIMITED,392448,Central Items,Central Services,102,Capital,Capital,Capital,Capital,Revenue,01.LIFT MAINTENANCE
01/06/2017,1447025,3270.92,DE LAGE LANDEN LEASING LIMITED,392448,Central Items,Central Services,102,Capital,Capital,Capital,Capital,Revenue,01.LIFT MAINTENANCE
01/06/2017,1447025,4713.10,DE LAGE LANDEN LEASING LIMITED,392448,Central Items,Central Services,102,Capital,Capital,Capital,Capital,Revenue,01.LIFT MAINTENANCE
01/06/2017,1447026,1181.00,CAHOOTZ LTD,386558,Business & Economic Development,Planning Services,110,Supplies and Services,504,Miscellaneous Expenses,5034,Revenue,16.EVENTS & PROMOTIONS
01/06/2017,1447028,450.00,Redacted Personal Data,390704,"Health, Education, Care and Safeguarding",Adult Social Care,101,Supplies and Services,504,Expenses,5030,Revenue,16.REAL ESTATE
01/06/2017,1447029,5.30,BT BUSINESS DIRECT LTD,370821,"Environment, Housing & Leisure",Cultural & Related Services,104,Supplies and Services,504,Communications & Computing,5028,Revenue,15.HARDWARE
01/06/2017,1447029,271.85,BT BUSINESS DIRECT LTD,370821,"Environment, Housing & Leisure",Cultural & Related Services,104,Supplies and Services,504,Communications & Computing,5028,Revenue,15.HARDWARE
01/06/2017,1447036,2200.00,PEBBLE SF SOFTWARE LTD,387635,Commissioning & Investment,Children's & Education Services,103,Supplies and Services,504,Catering,5024,Revenue,15.SOFTWARE
01/06/2017,1447037,2770.00,OFSTED,324826,"Health, Education, Care and Safeguarding",Children's & Education Services,103,Supplies and Services,504,Miscellaneous Expenses,5034,Revenue,00.PUBLIC SECTOR
01/06/2017,1447038,253.59,TMP (UK) LTD,386724,"Environment, Housing & Leisure",Planning Services,110,Supplies and Services,504,"Printing, Stationery and General Office Expenses",5026,Revenue,16.ADVERTISING
01/06/2017,1447038,276.45,TMP (UK) LTD,386724,"Environment, Housing & Leisure",Planning Services,110,Supplies and Services,504,"Printing, Stationery and General Office Expenses",5026,Revenue,16.ADVERTISING
01/06/2017,1447038,683.90,TMP (UK) LTD,386724,Law & Governance,Central Services,102,Supplies and Services,504,"Printing, Stationery and General Office Expenses",5026,Revenue,16.ADVERTISING
01/06/2017,1447038,683.90,TMP (UK) LTD,386724,Law & Governance,Central Services,102,Supplies and Services,504,"Printing, Stationery and General Office Expenses",5026,Revenue,16.ADVERTISING
01/06/2017,1447039,24856.04,W D CLOSE & SONS,003112,Capital,Capital,Capital,Supplies and Services,504,Miscellaneous Expenses,5034,Capital,02.BUILDING SERVICES
01/06/2017,1447040,270.00,TECHNOGRID LTD,280325,Commissioning & Investment,Children's & Education Services,103,Supplies and Services,504,Equipment,5023,Revenue,03.CROCKERY
01/06/2017,1447041,690.00,AJP PROPERTY SERVICES LTD,370579,"Health, Education, Care and Safeguarding",Adult Social Care,101,Supplies and Services,504,Expenses,5030,Revenue,16.REAL ESTATE
01/06/2017,1447042,3000.00,BAB ACCOMMODATION LIMITED,352567,"Health, Education, Care and Safeguarding",Children's & Education Services,103,Third Party Payments,505,Other Establishments,5041,Revenue,22.SUPPORT SERVICES
01/06/2017,1447042,3000.00,BAB ACCOMMODATION LIMITED,352567,"Health, Education, Care and Safeguarding",Children's & Education Services,103,Third Party Payments,505,Other Establishments,5041,Revenue,22.SUPPORT SERVICES
01/06/2017,1447043,675.49,NORTH TYNESIDE COUNCIL,102767,"Health, Education, Care and Safeguarding",Children's & Education Services,103,Third Party Payments,505,Other Establishments,5041,Revenue,00.PUBLIC SECTOR
01/06/2017,1447043,675.49,NORTH TYNESIDE COUNCIL,102767,"Health, Education, Care and Safeguarding",Children's & Education Services,103,Third Party Payments,505,Other Establishments,5041,Revenue,00.PUBLIC SECTOR
01/06/2017,1447044,380.00,ALBANY OFFICE EQUIPMENT (WHOLESALE) LTD,306382,"Health, Education, Care and Safeguarding",Children's & Education Services,103,Supplies and Services,504,"Printing, Stationery and General Office Expenses",5026,Revenue,10.OFFICE
01/06/2017,1447044,490.80,ALBANY OFFICE EQUIPMENT (WHOLESALE) LTD,306382,"Health, Education, Care and Safeguarding",Children's & Education Services,103,Supplies and Services,504,"Printing, Stationery and General Office Expenses",5026,Revenue,10.OFFICE
01/06/2017,1447044,550.55,ALBANY OFFICE EQUIPMENT (WHOLESALE) LTD,306382,"Health, Education, Care and Safeguarding",Children's & Education Services,103,Supplies and Services,504,"Printing, Stationery and General Office Expenses",5026,Revenue,10.OFFICE
01/06/2017,1447044,761.94,ALBANY OFFICE EQUIPMENT (WHOLESALE) LTD,306382,"Health, Education, Care and Safeguarding",Children's & Education Services,103,Supplies and Services,504,"Printing, Stationery and General Office Expenses",5026,Revenue,10.OFFICE
01/06/2017,1447045,365.63,GUSTHARTS CHAINSAW CENTRE,007917,"Environment, Housing & Leisure",Cultural & Related Services,104,Supplies and Services,504,Equipment,5023,Revenue,13.EQUIPMENT
01/06/2017,1447050,999.00,SNAP SURVEYS LTD,370239,Corporate Strategy,Central Services,102,Supplies and Services,504,Grants and Subscriptions,5031,Revenue,15.SOFTWARE
01/06/2017,1447052,400.00,THE TRUSTEES OF THE DIOCESE OF HEXHAM & NEWCASTLE,004510,Commissioning & Investment,Children's & Education Services,103,Premises-Related Expenditure,502,Rents,5007,Revenue,16.REAL ESTATE
01/06/2017,1447054,2924.00,ENCYCLOPAEDIA BRITANNICA (UK) LTD,378523,"Environment, Housing & Leisure",Cultural & Related Services,104,Supplies and Services,504,Equipment,5023,Revenue,18.BOOKS & PUBLICATIONS
01/06/2017,1447055,495.00,CARE MONITORING 2000 LTD,383491,"Health, Education, Care and Safeguarding",Adult Social Care,101,Supplies and Services,504,"Printing, Stationery and General Office Expenses",5026,Revenue,15.SOFTWARE
01/06/2017,1447056,473.02,DEBTORS VENDOR (ANITE),299989,Capital,General Fund,N/A,Capital,Capital,Capital,Capital,Capital,00.NON INFLUENCIBLE
01/06/2017,1447058,1500.00,NEW YORK PRIMARY SCHOOL,276829,"Health, Education, Care and Safeguarding",Children's & Education Services,103,Third Party Payments,505,Independent Units within the Council,5035,Revenue,00.NT SCHOOLS
01/06/2017,1447059,300.00,GENERAL BACS PAYMENTS - BSS ONLY,381148,"Health, Education, Care and Safeguarding",Children's & Education Services,103,Third Party Payments,505,Private Contractors,5042,Revenue,00.NON INFLUENCIBLE
01/06/2017,1447060,300.00,GENERAL BACS PAYMENTS - BSS ONLY,381148,"Health, Education, Care and Safeguarding",Children's & Education Services,103,Third Party Payments,505,Private Contractors,5042,Revenue,00.NON INFLUENCIBLE
01/06/2017,1447061,300.00,GENERAL BACS PAYMENTS - BSS ONLY,381148,"Health, Education, Care and Safeguarding",Children's & Education Services,103,Third Party Payments,505,Private Contractors,5042,Revenue,00.NON INFLUENCIBLE
01/06/2017,1447062,300.00,GENERAL BACS PAYMENTS - BSS ONLY,381148,"Health, Education, Care and Safeguarding",Children's & Education Services,103,Third Party Payments,505,Private Contractors,5042,Revenue,00.NON INFLUENCIBLE
01/06/2017,1447063,300.00,GENERAL BACS PAYMENTS - BSS ONLY,381148,"Health, Education, Care and Safeguarding",Children's & Education Services,103,Third Party Payments,505,Private Contractors,5042,Revenue,00.NON INFLUENCIBLE
01/06/2017,1447064,300.00,GENERAL BACS PAYMENTS - BSS ONLY,381148,"Health, Education, Care and Safeguarding",Children's & Education Services,103,Third Party Payments,505,Private Contractors,5042,Revenue,00.NON INFLUENCIBLE
01/06/2017,1447065,300.00,GENERAL BACS PAYMENTS - BSS ONLY,381148,"Health, Education, Care and Safeguarding",Children's & Education Services,103,Third Party Payments,505,Private Contractors,5042,Revenue,00.NON INFLUENCIBLE
01/06/2017,1447066,300.00,GENERAL BACS PAYMENTS - BSS ONLY,381148,"Health, Education, Care and Safeguarding",Children's & Education Services,103,Third Party Payments,505,Private Contractors,5042,Revenue,00.NON INFLUENCIBLE
01/06/2017,1447067,300.00,GENERAL BACS PAYMENTS - BSS ONLY,381148,"Health, Education, Care and Safeguarding",Children's & Education Services,103,Third Party Payments,505,Private Contractors,5042,Revenue,00.NON INFLUENCIBLE
01/06/2017,1447068,300.00,GENERAL BACS PAYMENTS - BSS ONLY,381148,"Health, Education, Care and Safeguarding",Children's & Education Services,103,Third Party Payments,505,Private Contractors,5042,Revenue,00.NON INFLUENCIBLE
01/06/2017,1447069,300.00,GENERAL BACS PAYMENTS - BSS ONLY,381148,"Health, Education, Care and Safeguarding",Children's & Education Services,103,Third Party Payments,505,Private Contractors,5042,Revenue,00.NON INFLUENCIBLE
01/06/2017,1447070,300.00,GENERAL BACS PAYMENTS - BSS ONLY,381148,"Health, Education, Care and Safeguarding",Children's & Education Services,103,Third Party Payments,505,Private Contractors,5042,Revenue,00.NON INFLUENCIBLE
01/06/2017,1447071,300.00,GENERAL BACS PAYMENTS - BSS ONLY,381148,"Health, Education, Care and Safeguarding",Children's & Education Services,103,Third Party Payments,505,Private Contractors,5042,Revenue,00.NON INFLUENCIBLE
01/06/2017,1447072,300.00,GENERAL BACS PAYMENTS - BSS ONLY,381148,"Health, Education, Care and Safeguarding",Children's & Education Services,103,Third Party Payments,505,Private Contractors,5042,Revenue,00.NON INFLUENCIBLE
01/06/2017,1447073,300.00,GENERAL BACS PAYMENTS - BSS ONLY,381148,"Health, Education, Care and Safeguarding",Children's & Education Services,103,Third Party Payments,505,Private Contractors,5042,Revenue,00.NON INFLUENCIBLE
01/06/2017,1447074,300.00,GENERAL BACS PAYMENTS - BSS ONLY,381148,"Health, Education, Care and Safeguarding",Children's & Education Services,103,Third Party Payments,505,Private Contractors,5042,Revenue,00.NON INFLUENCIBLE
01/06/2017,1447075,300.00,GENERAL BACS PAYMENTS - BSS ONLY,381148,"Health, Education, Care and Safeguarding",Children's & Education Services,103,Third Party Payments,505,Private Contractors,5042,Revenue,00.NON INFLUENCIBLE
01/06/2017,1447076,300.00,GENERAL BACS PAYMENTS - BSS ONLY,381148,"Health, Education, Care and Safeguarding",Children's & Education Services,103,Third Party Payments,505,Private Contractors,5042,Revenue,00.NON INFLUENCIBLE
01/06/2017,1447077,300.00,GENERAL BACS PAYMENTS - BSS ONLY,381148,"Health, Education, Care and Safeguarding",Children's & Education Services,103,Third Party Payments,505,Private Contractors,5042,Revenue,00.NON INFLUENCIBLE
01/06/2017,1447078,300.00,GENERAL BACS PAYMENTS - BSS ONLY,381148,"Health, Education, Care and Safeguarding",Children's & Education Services,103,Third Party Payments,505,Private Contractors,5042,Revenue,00.NON INFLUENCIBLE
01/06/2017,1447079,300.00,GENERAL BACS PAYMENTS - BSS ONLY,381148,"Health, Education, Care and Safeguarding",Children's & Education Services,103,Third Party Payments,505,Private Contractors,5042,Revenue,00.NON INFLUENCIBLE
01/06/2017,1447081,2.52,BAY PLASTICS LTD,002975,"Environment, Housing & Leisure",Highways & Transport Services,107,Supplies and Services,504,"Printing, Stationery and General Office Expenses",5026,Revenue,BUILD GEN
01/06/2017,1447081,11.48,BAY PLASTICS LTD,002975,"Environment, Housing & Leisure",Capital,Capital,Supplies and Services,504,"Printing, Stationery and General Office Expenses",5026,Revenue,BUILD GEN
01/06/2017,1447081,540.00,BAY PLASTICS LTD,002975,"Environment, Housing & Leisure",Highways & Transport Services,107,Supplies and Services,504,"Printing, Stationery and General Office Expenses",5026,Revenue,BUILD GEN
01/06/2017,1447081,2460.00,BAY PLASTICS LTD,002975,"Environment, Housing & Leisure",Capital,Capital,Supplies and Services,504,"Printing, Stationery and General Office Expenses",5026,Revenue,BUILD GEN
01/06/2017,1447082,815.50,FIRST CLASS SUPPLY & TRAINING LTD,356089,Commissioning & Investment,Children's & Education Services,103,Third Party Payments,505,Private Contractors,5042,Revenue,18.CONFERENCING
01/06/2017,1447082,1012.00,FIRST CLASS SUPPLY & TRAINING LTD,356089,"Health, Education, Care and Safeguarding",Children's & Education Services,103,Third Party Payments,505,Private Contractors,5042,Revenue,18.CONFERENCING
01/06/2017,1447083,1107.85,DEPAUL TRUST (356060),356060,"Health, Education, Care and Safeguarding",Children's & Education Services,103,Third Party Payments,505,Other Establishments,5041,Revenue,00.NON INFLUENCIBLE
01/06/2017,1447085,128.80,AUTO DIESEL (NEWCASTLE),348213,"Environment, Housing & Leisure",Unallocated,N/A,Transport,503,Direct Transport Costs,5016,Revenue,VEHICLE MAINT
01/06/2017,1447085,136.40,AUTO DIESEL (NEWCASTLE),348213,"Environment, Housing & Leisure",Unallocated,N/A,Transport,503,Direct Transport Costs,5016,Revenue,VEHICLE MAINT
01/06/2017,1447085,157.00,AUTO DIESEL (NEWCASTLE),348213,"Environment, Housing & Leisure",Unallocated,N/A,Transport,503,Direct Transport Costs,5016,Revenue,VEHICLE MAINT
02/06/2017,1447112,275.65,HOMECARE REFUNDS - BSS ONLY,384082,Housing Revenue Account,Housing Revenue Account,N/A,Supplies and Services,504,Miscellaneous Expenses,5034,Revenue,NON INDIVIDUAL
02/06/2017,1447113,300.00,HOMECARE REFUNDS - BSS ONLY,384082,Housing Revenue Account,Housing Revenue Account,N/A,Supplies and Services,504,Miscellaneous Expenses,5034,Revenue,NON INDIVIDUAL
02/06/2017,1447115,326.60,HOMECARE REFUNDS - BSS ONLY,384082,Housing Revenue Account,Housing Revenue Account,N/A,Supplies and Services,504,Miscellaneous Expenses,5034,Revenue,NON INDIVIDUAL
02/06/2017,1447121,329.00,MA EDUCATION LTD,356746,Corporate Strategy,Children's & Education Services,103,Supplies and Services,504,Expenses,5030,Revenue,18.CONFERENCING
02/06/2017,1447122,2000.00,Redacted Personal Data,394958,"Health, Education, Care and Safeguarding",Children's & Education Services,103,Third Party Payments,505,Private Contractors,5042,Revenue,ADVICE COUNSEL
02/06/2017,1447124,-948.16,HARBOUR ENTERPRISE (AMBLE) LTD,387640,Central Items,Holding A/C,N/A,Supplies and Services,504,Miscellaneous Expenses,5034,Revenue,02.BUILDING SERVICES
02/06/2017,1447124,948.16,HARBOUR ENTERPRISE (AMBLE) LTD,387640,Central Items,Holding A/C,N/A,Supplies and Services,504,Miscellaneous Expenses,5034,Revenue,02.BUILDING SERVICES
02/06/2017,1447124,4740.80,HARBOUR ENTERPRISE (AMBLE) LTD,387640,Capital,Capital,Capital,Third Party Payments,505,Private Contractors,5042,Capital,02.BUILDING SERVICES
02/06/2017,1447125,-326.11,G BURLEY & SONS LTD,394205,Commissioning & Investment,Housing Services,108,Premises-Related Expenditure,502,"Repairs, alterations and maintenance of buildings",5005,Revenue,ENVIRO SERVICES
02/06/2017,1447125,217.32,G BURLEY & SONS LTD,394205,Commissioning & Investment,Planning Services,110,Premises-Related Expenditure,502,"Repairs, alterations and maintenance of buildings",5005,Revenue,ENVIRO SERVICES
02/06/2017,1447125,271.76,G BURLEY & SONS LTD,394205,Commissioning & Investment,Housing Services,108,Premises-Related Expenditure,502,"Repairs, alterations and maintenance of buildings",5005,Revenue,ENVIRO SERVICES
02/06/2017,1447125,326.11,G BURLEY & SONS LTD,394205,Commissioning & Investment,Housing Services,108,Premises-Related Expenditure,502,"Repairs, alterations and maintenance of buildings",5005,Revenue,ENVIRO SERVICES
02/06/2017,1447126,4.75,PAYNE SECURITY (FILTRONA UK LTD),361328,"Environment, Housing & Leisure",Environmental & Regulatory Services,105,Supplies and Services,504,Miscellaneous Expenses,5034,Revenue,FIRE ACCESS
02/06/2017,1447126,4.75,PAYNE SECURITY (FILTRONA UK LTD),361328,"Environment, Housing & Leisure",Environmental & Regulatory Services,105,Supplies and Services,504,Miscellaneous Expenses,5034,Revenue,FIRE ACCESS
02/06/2017,1447126,176.46,PAYNE SECURITY (FILTRONA UK LTD),361328,"Environment, Housing & Leisure",Environmental & Regulatory Services,105,Supplies and Services,504,Miscellaneous Expenses,5034,Revenue,FIRE ACCESS
02/06/2017,1447126,294.10,PAYNE SECURITY (FILTRONA UK LTD),361328,"Environment, Housing & Leisure",Environmental & Regulatory Services,105,Supplies and Services,504,Miscellaneous Expenses,5034,Revenue,FIRE ACCESS
02/06/2017,1447130,1665.00,SEVEN RESOURCING LTD,393625,"Health, Education, Care and Safeguarding",Children's & Education Services,103,Employees,501,Direct Employee Expenses,5001,Revenue,16.AGENCY WORKER
02/06/2017,1447130,2625.00,SEVEN RESOURCING LTD,393625,"Health, Education, Care and Safeguarding",Children's & Education Services,103,Employees,501,Direct Employee Expenses,5001,Revenue,16.AGENCY WORKER
02/06/2017,1447137,3634.23,BALFOUR BEATTY WORKPLACE LIMITED,389026,Capital,Capital,Capital,Supplies and Services,504,Communications & Computing,5028,Capital,HR PROFESS
02/06/2017,1447137,36660.00,BALFOUR BEATTY WORKPLACE LIMITED,389026,Capital,Capital,Capital,Supplies and Services,504,Communications & Computing,5028,Capital,HR PROFESS
02/06/2017,1447137,37131.00,BALFOUR BEATTY WORKPLACE LIMITED,389026,Capital,Capital,Capital,Supplies and Services,504,Communications & Computing,5028,Capital,HR PROFESS
02/06/2017,1447140,2402.50,GENIE CARE LTD,391193,"Health, Education, Care and Safeguarding",Adult Social Care,101,Supplies and Services,504,Equipment,5023,Revenue,SOCIAL SUPP
02/06/2017,1447147,1893.33,PEARLCATCHERS LTD,390252,HR & Organisational Development,Central Services,102,Supplies and Services,504,Contribution to Provisions,5033,Revenue,18.CONFERENCING
02/06/2017,1447148,1748.62,NOTTINGHAM REHAB LIMITED,014765,"Health, Education, Care and Safeguarding",Adult Social Care,101,Supplies and Services,504,Equipment,5023,Revenue,SOCIAL SUPP
02/06/2017,1447149,803.00,V L TEST SYSTEMS LTD,389992,"Environment, Housing & Leisure",Unallocated,N/A,Supplies and Services,504,Equipment,5023,Revenue,28.VEHICLE PARTS
02/06/2017,1447151,420.00,THE SPLAT CENTRE,389982,"Health, Education, Care and Safeguarding",Children's & Education Services,103,Third Party Payments,505,Private Contractors,5042,Revenue,16.EVENTS & PROMOTIONS
02/06/2017,1447152,2400.00,MCKECHNIES LIMITED,326115,HR & Organisational Development,Central Services,102,Supplies and Services,504,Contribution to Provisions,5033,Revenue,18.CONFERENCING
02/06/2017,1447153,1393.75,NYAS,389184,Corporate Strategy,Children's & Education Services,103,Supplies and Services,504,Expenses,5030,Revenue,22.DAY CARE SERVICES
02/06/2017,1447156,648.96,MANGAR INTERNATIONAL LTD,309921,"Health, Education, Care and Safeguarding",Adult Social Care,101,Supplies and Services,504,Equipment,5023,Revenue,REPAIR ADAPT
02/06/2017,1447157,1357.00,R82 UK LTD,356192,"Health, Education, Care and Safeguarding",Adult Social Care,101,Supplies and Services,504,Equipment,5023,Revenue,SOCIAL SUPP
02/06/2017,1447158,2744.00,LIVEASY LIMITED,385872,"Health, Education, Care and Safeguarding",Adult Social Care,101,Supplies and Services,504,Equipment,5023,Revenue,SOCIAL SUPP
02/06/2017,1447160,570.00,AIDAPT BATHROOMS LTD,352134,"Health, Education, Care and Safeguarding",Adult Social Care,101,Supplies and Services,504,Equipment,5023,Revenue,SOCIAL SUPP
02/06/2017,1447164,279992.20,DECC CRC,388483,"Environment, Housing & Leisure",Environmental & Regulatory Services,105,Third Party Payments,505,Government Departments,5039,Revenue,ENVIRO MANAGE
02/06/2017,1447165,422.38,CLICK TRAVEL LIMITED,388377,Law & Governance,Central Services,102,Supplies and Services,504,Expenses,5030,Revenue,18.TRAVEL
02/06/2017,1447168,-328.75,ALISON BLACK LIMITED T/A SPORTMAX,387480,"Environment, Housing & Leisure",Cultural & Related Services,104,Supplies and Services,504,Equipment,5023,Revenue,SPORTS EQUIP
02/06/2017,1447168,-318.85,ALISON BLACK LIMITED T/A SPORTMAX,387480,"Environment, Housing & Leisure",Cultural & Related Services,104,Supplies and Services,504,Equipment,5023,Revenue,SPORTS EQUIP
02/06/2017,1447168,-16.90,ALISON BLACK LIMITED T/A SPORTMAX,387480,"Environment, Housing & Leisure",Cultural & Related Services,104,Supplies and Services,504,Equipment,5023,Revenue,SPORTS EQUIP
02/06/2017,1447168,16.90,ALISON BLACK LIMITED T/A SPORTMAX,387480,"Environment, Housing & Leisure",Cultural & Related Services,104,Supplies and Services,504,Equipment,5023,Revenue,SPORTS EQUIP
02/06/2017,1447168,20.40,ALISON BLACK LIMITED T/A SPORTMAX,387480,"Environment, Housing & Leisure",Cultural & Related Services,104,Supplies and Services,504,Equipment,5023,Revenue,SPORTS EQUIP
02/06/2017,1447168,32.80,ALISON BLACK LIMITED T/A SPORTMAX,387480,"Environment, Housing & Leisure",Cultural & Related Services,104,Supplies and Services,504,Equipment,5023,Revenue,SPORTS EQUIP
02/06/2017,1447168,312.85,ALISON BLACK LIMITED T/A SPORTMAX,387480,"Environment, Housing & Leisure",Cultural & Related Services,104,Supplies and Services,504,Equipment,5023,Revenue,SPORTS EQUIP
02/06/2017,1447168,318.85,ALISON BLACK LIMITED T/A SPORTMAX,387480,"Environment, Housing & Leisure",Cultural & Related Services,104,Supplies and Services,504,Equipment,5023,Revenue,SPORTS EQUIP
02/06/2017,1447168,328.75,ALISON BLACK LIMITED T/A SPORTMAX,387480,"Environment, Housing & Leisure",Cultural & Related Services,104,Supplies and Services,504,Equipment,5023,Revenue,SPORTS EQUIP
02/06/2017,1447168,602.65,ALISON BLACK LIMITED T/A SPORTMAX,387480,"Environment, Housing & Leisure",Cultural & Related Services,104,Supplies and Services,504,Equipment,5023,Revenue,SPORTS EQUIP
02/06/2017,1447170,280.00,WILF HUSBAND,378193,"Environment, Housing & Leisure",Cultural & Related Services,104,Supplies and Services,504,Equipment,5023,Revenue,13.EQUIPMENT
02/06/2017,1447171,280.00,MEADOW WELL CONNECTED,355522,Housing Revenue Account,Housing Revenue Account,N/A,Supplies and Services,504,Miscellaneous Expenses,5034,Revenue,22.SUPPORT SERVICES
02/06/2017,1447172,7.65,DURHAM BUSINESS WEAR LTD,331187,Housing Revenue Account,Housing Revenue Account,N/A,Supplies and Services,504,"Clothing, Uniforms and Laundry",5025,Revenue,CLOTHING UNI
02/06/2017,1447172,22.35,DURHAM BUSINESS WEAR LTD,331187,Housing Revenue Account,Housing Revenue Account,N/A,Supplies and Services,504,"Clothing, Uniforms and Laundry",5025,Revenue,CLOTHING UNI
02/06/2017,1447172,26.50,DURHAM BUSINESS WEAR LTD,331187,Housing Revenue Account,Housing Revenue Account,N/A,Supplies and Services,504,"Clothing, Uniforms and Laundry",5025,Revenue,CLOTHING UNI
02/06/2017,1447172,36.00,DURHAM BUSINESS WEAR LTD,331187,Housing Revenue Account,Housing Revenue Account,N/A,Supplies and Services,504,"Clothing, Uniforms and Laundry",5025,Revenue,CLOTHING UNI
02/06/2017,1447172,61.90,DURHAM BUSINESS WEAR LTD,331187,Housing Revenue Account,Housing Revenue Account,N/A,Supplies and Services,504,"Clothing, Uniforms and Laundry",5025,Revenue,CLOTHING UNI
02/06/2017,1447172,71.18,DURHAM BUSINESS WEAR LTD,331187,Housing Revenue Account,Housing Revenue Account,N/A,Supplies and Services,504,"Clothing, Uniforms and Laundry",5025,Revenue,CLOTHING UNI
02/06/2017,1447172,113.70,DURHAM BUSINESS WEAR LTD,331187,Housing Revenue Account,Housing Revenue Account,N/A,Supplies and Services,504,"Clothing, Uniforms and Laundry",5025,Revenue,CLOTHING UNI
02/06/2017,1447172,209.65,DURHAM BUSINESS WEAR LTD,331187,Housing Revenue Account,Housing Revenue Account,N/A,Supplies and Services,504,"Clothing, Uniforms and Laundry",5025,Revenue,CLOTHING UNI
02/06/2017,1447177,5000.00,W A FAIRHURST & PARTNERS,006810,"Environment, Housing & Leisure",Cultural & Related Services,104,Third Party Payments,505,Private Contractors,5042,Revenue,18.CONSULTANTS FEES
02/06/2017,1447180,451.38,CRYOSERVICE LIMITED,344901,"Environment, Housing & Leisure",Cultural & Related Services,104,Supplies and Services,504,Equipment,5023,Revenue,POOL MAINT
02/06/2017,1447184,594.44,THE SUNLIGHT SERVICE GROUP LTD,318815,"Environment, Housing & Leisure",Unallocated,N/A,Supplies and Services,504,"Clothing, Uniforms and Laundry",5025,Revenue,11.WORKWEAR
02/06/2017,1447185,4864.30,NORTH TYNESIDE LABOUR GROUP,314642,Capital,General Fund,N/A,Capital,Capital,Capital,Capital,Capital,00.NON INFLUENCIBLE
02/06/2017,1447189,617.50,CITY CLEAN,310377,Commissioning & Investment,Unallocated,N/A,Premises-Related Expenditure,502,Cleaning and Domestic Supplies,5012,Revenue,04.CLEANING SERVICES
02/06/2017,1447190,25.00,TREES PLEASE,020649,"Environment, Housing & Leisure",Cultural & Related Services,104,Premises-Related Expenditure,502,"Repairs, alterations and maintenance of buildings",5005,Revenue,13.EQUIPMENT
02/06/2017,1447190,93.80,TREES PLEASE,020649,"Environment, Housing & Leisure",Cultural & Related Services,104,Premises-Related Expenditure,502,"Repairs, alterations and maintenance of buildings",5005,Revenue,13.EQUIPMENT
02/06/2017,1447190,134.40,TREES PLEASE,020649,"Environment, Housing & Leisure",Cultural & Related Services,104,Premises-Related Expenditure,502,"Repairs, alterations and maintenance of buildings",5005,Revenue,13.EQUIPMENT
02/06/2017,1447191,377.52,LOW FELL REMOVALS,302158,Commissioning & Investment,Central Services,102,Supplies and Services,504,"Printing, Stationery and General Office Expenses",5026,Revenue,18.REMOVALS
02/06/2017,1447192,-284.46,COMPRIL LTD,371960,"Health, Education, Care and Safeguarding",Children's & Education Services,103,Third Party Payments,505,Private Contractors,5042,Revenue,16.LEGAL SERVICES
02/06/2017,1447192,-284.42,COMPRIL LTD,371960,"Health, Education, Care and Safeguarding",Children's & Education Services,103,Third Party Payments,505,Private Contractors,5042,Revenue,16.LEGAL SERVICES
02/06/2017,1447192,273.09,COMPRIL LTD,371960,"Health, Education, Care and Safeguarding",Children's & Education Services,103,Third Party Payments,505,Private Contractors,5042,Revenue,16.LEGAL SERVICES
02/06/2017,1447192,284.42,COMPRIL LTD,371960,"Health, Education, Care and Safeguarding",Children's & Education Services,103,Third Party Payments,505,Private Contractors,5042,Revenue,16.LEGAL SERVICES
02/06/2017,1447192,284.46,COMPRIL LTD,371960,"Health, Education, Care and Safeguarding",Children's & Education Services,103,Third Party Payments,505,Private Contractors,5042,Revenue,16.LEGAL SERVICES
02/06/2017,1447194,420.00,A HILL & SONS LTD,372634,"Environment, Housing & Leisure",Cultural & Related Services,104,Supplies and Services,504,Equipment,5023,Revenue,13.EQUIPMENT
02/06/2017,1447195,1465.56,HOWARD HOUSE CARE LIMITED,358471,"Health, Education, Care and Safeguarding",Children's & Education Services,103,Third Party Payments,505,Private Contractors,5042,Revenue,22.RESIDENTIAL
02/06/2017,1447195,3520.00,HOWARD HOUSE CARE LIMITED,358471,"Health, Education, Care and Safeguarding",Children's & Education Services,103,Third Party Payments,505,Private Contractors,5042,Revenue,22.RESIDENTIAL
02/06/2017,1447196,3128.40,FOSTER CARE ASSOCIATES LIMITED,343163,"Health, Education, Care and Safeguarding",Children's & Education Services,103,Third Party Payments,505,Voluntary Associations,5040,Revenue,FOSTER CARE
02/06/2017,1447196,3128.40,FOSTER CARE ASSOCIATES LIMITED,343163,"Health, Education, Care and Safeguarding",Children's & Education Services,103,Third Party Payments,505,Voluntary Associations,5040,Revenue,FOSTER CARE
02/06/2017,1447196,3128.40,FOSTER CARE ASSOCIATES LIMITED,343163,"Health, Education, Care and Safeguarding",Children's & Education Services,103,Third Party Payments,505,Voluntary Associations,5040,Revenue,FOSTER CARE
02/06/2017,1447196,3128.40,FOSTER CARE ASSOCIATES LIMITED,343163,"Health, Education, Care and Safeguarding",Children's & Education Services,103,Third Party Payments,505,Voluntary Associations,5040,Revenue,FOSTER CARE
02/06/2017,1447196,3128.40,FOSTER CARE ASSOCIATES LIMITED,343163,"Health, Education, Care and Safeguarding",Children's & Education Services,103,Third Party Payments,505,Voluntary Associations,5040,Revenue,FOSTER CARE
02/06/2017,1447196,3128.40,FOSTER CARE ASSOCIATES LIMITED,343163,"Health, Education, Care and Safeguarding",Children's & Education Services,103,Third Party Payments,505,Voluntary Associations,5040,Revenue,FOSTER CARE
02/06/2017,1447196,3128.40,FOSTER CARE ASSOCIATES LIMITED,343163,"Health, Education, Care and Safeguarding",Children's & Education Services,103,Third Party Payments,505,Voluntary Associations,5040,Revenue,FOSTER CARE
02/06/2017,1447196,3257.10,FOSTER CARE ASSOCIATES LIMITED,343163,"Health, Education, Care and Safeguarding",Children's & Education Services,103,Third Party Payments,505,Voluntary Associations,5040,Revenue,FOSTER CARE
02/06/2017,1447196,3514.20,FOSTER CARE ASSOCIATES LIMITED,343163,"Health, Education, Care and Safeguarding",Children's & Education Services,103,Third Party Payments,505,Voluntary Associations,5040,Revenue,FOSTER CARE
02/06/2017,1447196,3514.20,FOSTER CARE ASSOCIATES LIMITED,343163,"Health, Education, Care and Safeguarding",Children's & Education Services,103,Third Party Payments,505,Voluntary Associations,5040,Revenue,FOSTER CARE
02/06/2017,1447196,3514.20,FOSTER CARE ASSOCIATES LIMITED,343163,"Health, Education, Care and Safeguarding",Children's & Education Services,103,Third Party Payments,505,Voluntary Associations,5040,Revenue,FOSTER CARE
02/06/2017,1447196,4239.00,FOSTER CARE ASSOCIATES LIMITED,343163,"Health, Education, Care and Safeguarding",Children's & Education Services,103,Third Party Payments,505,Voluntary Associations,5040,Revenue,FOSTER CARE
05/06/2017,17055,500.95,COUNCIL TAX REFUND,299993,General Fund Financing,Holding A/C,N/A,Excluded from General Fund,N/A,Collection Fund,N/A,Revenue,00.NON INFLUENCIBLE
05/06/2017,17063,754.00,COUNCIL TAX REFUND,299993,General Fund Financing,Holding A/C,N/A,Excluded from General Fund,N/A,Collection Fund,N/A,Revenue,00.NON INFLUENCIBLE
05/06/2017,17065,251.18,COUNCIL TAX REFUND,299993,General Fund Financing,Holding A/C,N/A,Excluded from General Fund,N/A,Collection Fund,N/A,Revenue,00.NON INFLUENCIBLE
05/06/2017,17066,391.33,COUNCIL TAX REFUND,299993,General Fund Financing,Holding A/C,N/A,Excluded from General Fund,N/A,Collection Fund,N/A,Revenue,00.NON INFLUENCIBLE
05/06/2017,17073,573.99,COUNCIL TAX REFUND,299993,General Fund Financing,Holding A/C,N/A,Excluded from General Fund,N/A,Collection Fund,N/A,Revenue,00.NON INFLUENCIBLE
05/06/2017,17076,974.19,COUNCIL TAX REFUND,299993,General Fund Financing,Holding A/C,N/A,Excluded from General Fund,N/A,Collection Fund,N/A,Revenue,00.NON INFLUENCIBLE
05/06/2017,17083,635.16,COUNCIL TAX REFUND,299993,General Fund Financing,Holding A/C,N/A,Excluded from General Fund,N/A,Collection Fund,N/A,Revenue,00.NON INFLUENCIBLE
05/06/2017,17085,558.57,NNDR,299990,General Fund Financing,Holding A/C,N/A,Excluded from General Fund,N/A,Collection Fund,N/A,Revenue,00.NON INFLUENCIBLE
05/06/2017,17086,1988.00,NNDR,299990,General Fund Financing,Holding A/C,N/A,Excluded from General Fund,N/A,Collection Fund,N/A,Revenue,00.NON INFLUENCIBLE
05/06/2017,17087,1972.00,NNDR,299990,General Fund Financing,Holding A/C,N/A,Excluded from General Fund,N/A,Collection Fund,N/A,Revenue,00.NON INFLUENCIBLE
05/06/2017,17088,1928.00,NNDR,299990,General Fund Financing,Holding A/C,N/A,Excluded from General Fund,N/A,Collection Fund,N/A,Revenue,00.NON INFLUENCIBLE
05/06/2017,17089,1884.00,NNDR,299990,General Fund Financing,Holding A/C,N/A,Excluded from General Fund,N/A,Collection Fund,N/A,Revenue,00.NON INFLUENCIBLE
05/06/2017,17090,1832.00,NNDR,299990,General Fund Financing,Holding A/C,N/A,Excluded from General Fund,N/A,Collection Fund,N/A,Revenue,00.NON INFLUENCIBLE
05/06/2017,17091,1732.00,NNDR,299990,General Fund Financing,Holding A/C,N/A,Excluded from General Fund,N/A,Collection Fund,N/A,Revenue,00.NON INFLUENCIBLE
05/06/2017,17092,1656.00,NNDR,299990,General Fund Financing,Holding A/C,N/A,Excluded from General Fund,N/A,Collection Fund,N/A,Revenue,00.NON INFLUENCIBLE
05/06/2017,1447200,1260.00,HOUSING BENEFIT,299992,Finance,Housing Services,108,Transfer Payments,506,Housing Benefits,5048,Revenue,00.NON INFLUENCIBLE
05/06/2017,1447201,414.24,HOUSING BENEFIT,299992,Finance,Housing Services,108,Transfer Payments,506,Housing Benefits,5048,Revenue,00.NON INFLUENCIBLE
05/06/2017,1447203,598.36,HOUSING BENEFIT,299992,Finance,Housing Services,108,Transfer Payments,506,Housing Benefits,5048,Revenue,00.NON INFLUENCIBLE
05/06/2017,1447204,503.41,HOUSING BENEFIT,299992,Finance,Housing Services,108,Transfer Payments,506,Housing Benefits,5048,Revenue,00.NON INFLUENCIBLE
05/06/2017,1447206,397.72,HOUSING BENEFIT,299992,Finance,Housing Services,108,Transfer Payments,506,Housing Benefits,5048,Revenue,00.NON INFLUENCIBLE
05/06/2017,1447207,1774.16,HOUSING BENEFIT,299992,Finance,Housing Services,108,Transfer Payments,506,Housing Benefits,5048,Revenue,00.NON INFLUENCIBLE
05/06/2017,1447208,815.75,HOUSING BENEFIT,299992,Finance,Housing Services,108,Transfer Payments,506,Housing Benefits,5048,Revenue,00.NON INFLUENCIBLE
05/06/2017,1447209,319.20,HOUSING BENEFIT,299992,Finance,Housing Services,108,Transfer Payments,506,Housing Benefits,5048,Revenue,00.NON INFLUENCIBLE
05/06/2017,1447210,1593.72,HOUSING BENEFIT,299992,Finance,Housing Services,108,Transfer Payments,506,Housing Benefits,5048,Revenue,00.NON INFLUENCIBLE
05/06/2017,1447212,1361.08,HOUSING BENEFIT,299992,Finance,Housing Services,108,Transfer Payments,506,Housing Benefits,5048,Revenue,00.NON INFLUENCIBLE
05/06/2017,1447214,363.60,HOUSING BENEFIT,299992,Finance,Housing Services,108,Transfer Payments,506,Housing Benefits,5048,Revenue,00.NON INFLUENCIBLE
05/06/2017,1447215,423.66,HOUSING BENEFIT,299992,Finance,Housing Services,108,Transfer Payments,506,Housing Benefits,5048,Revenue,00.NON INFLUENCIBLE
05/06/2017,1447216,271.10,HOUSING BENEFIT,299992,Finance,Housing Services,108,Transfer Payments,506,Housing Benefits,5048,Revenue,00.NON INFLUENCIBLE
05/06/2017,1447218,3650.13,HOUSING BENEFIT,299992,Finance,Housing Services,108,Transfer Payments,506,Housing Benefits,5048,Revenue,00.NON INFLUENCIBLE
05/06/2017,1447219,689.12,HOUSING BENEFIT,299992,Finance,Housing Services,108,Transfer Payments,506,Housing Benefits,5048,Revenue,00.NON INFLUENCIBLE
05/06/2017,1447220,2096.30,HOUSING BENEFIT,299992,Finance,Housing Services,108,Transfer Payments,506,Housing Benefits,5048,Revenue,00.NON INFLUENCIBLE
05/06/2017,1447221,1298.99,HOUSING BENEFIT,299992,Finance,Housing Services,108,Transfer Payments,506,Housing Benefits,5048,Revenue,00.NON INFLUENCIBLE
05/06/2017,1447664,651.68,Redacted Personal Data,395077,"Health, Education, Care and Safeguarding",Public Health,112,Third Party Payments,505,Other Establishments,5041,Revenue,22.RESIDENTIAL
05/06/2017,1447665,646.00,Redacted Personal Data,395039,"Health, Education, Care and Safeguarding",Adult Social Care,101,Third Party Payments,505,Private Contractors,5042,Revenue,22.RESIDENTIAL
05/06/2017,1447666,701.12,Redacted Personal Data,395019,"Health, Education, Care and Safeguarding",Adult Social Care,101,Third Party Payments,505,Other Establishments,5041,Revenue,NON INDIVIDUAL
05/06/2017,1447667,470.26,Redacted Personal Data,394963,"Health, Education, Care and Safeguarding",Adult Social Care,101,Third Party Payments,505,Private Contractors,5042,Revenue,22.RESIDENTIAL
05/06/2017,1447669,-100.15,BRIAR DENE,321950,"Health, Education, Care and Safeguarding",Adult Social Care,101,Income,509,"Other Grants, Reimbursements & Contributions",5063,Revenue,22.RESIDENTIAL
05/06/2017,1447669,890.12,BRIAR DENE,321950,"Health, Education, Care and Safeguarding",Adult Social Care,101,Third Party Payments,505,Private Contractors,5042,Revenue,22.RESIDENTIAL
05/06/2017,1447224,363.60,HOUSING BENEFIT,299992,Finance,Housing Services,108,Transfer Payments,506,Housing Benefits,5048,Revenue,00.NON INFLUENCIBLE
05/06/2017,1447226,441.51,HOUSING BENEFIT,299992,Finance,Housing Services,108,Transfer Payments,506,Housing Benefits,5048,Revenue,00.NON INFLUENCIBLE
05/06/2017,1447229,627.52,HOUSING BENEFIT,299992,Finance,Housing Services,108,Transfer Payments,506,Housing Benefits,5048,Revenue,00.NON INFLUENCIBLE
05/06/2017,1447230,517.80,HOUSING BENEFIT,299992,Finance,Housing Services,108,Transfer Payments,506,Housing Benefits,5048,Revenue,00.NON INFLUENCIBLE
05/06/2017,1447231,580.51,HOUSING BENEFIT,299992,Finance,Housing Services,108,Transfer Payments,506,Housing Benefits,5048,Revenue,00.NON INFLUENCIBLE
05/06/2017,1447232,826.83,HOUSING BENEFIT,299992,Finance,Housing Services,108,Transfer Payments,506,Housing Benefits,5048,Revenue,00.NON INFLUENCIBLE
05/06/2017,1447233,311.66,HOUSING BENEFIT,299992,Finance,Housing Services,108,Transfer Payments,506,Housing Benefits,5048,Revenue,00.NON INFLUENCIBLE
05/06/2017,1447234,323.08,HOUSING BENEFIT,299992,Finance,Housing Services,108,Transfer Payments,506,Housing Benefits,5048,Revenue,00.NON INFLUENCIBLE
05/06/2017,1447236,641.36,HOUSING BENEFIT,299992,Finance,Housing Services,108,Transfer Payments,506,Housing Benefits,5048,Revenue,00.NON INFLUENCIBLE
05/06/2017,1447238,371.62,HOUSING BENEFIT,299992,Finance,Housing Services,108,Transfer Payments,506,Housing Benefits,5048,Revenue,00.NON INFLUENCIBLE
05/06/2017,1447240,297.65,HOUSING BENEFIT,299992,Finance,Housing Services,108,Transfer Payments,506,Housing Benefits,5048,Revenue,00.NON INFLUENCIBLE
05/06/2017,1447241,267.15,HOUSING BENEFIT,299992,Finance,Housing Services,108,Transfer Payments,506,Housing Benefits,5048,Revenue,00.NON INFLUENCIBLE
05/06/2017,1447243,471.63,HOUSING BENEFIT,299992,Finance,Housing Services,108,Transfer Payments,506,Housing Benefits,5048,Revenue,00.NON INFLUENCIBLE
05/06/2017,1447245,828.96,HOUSING BENEFIT,299992,Finance,Housing Services,108,Transfer Payments,506,Housing Benefits,5048,Revenue,00.NON INFLUENCIBLE
05/06/2017,1447249,363.60,HOUSING BENEFIT,299992,Finance,Housing Services,108,Transfer Payments,506,Housing Benefits,5048,Revenue,00.NON INFLUENCIBLE
05/06/2017,1447251,487.62,HOUSING BENEFIT,299992,Finance,Housing Services,108,Transfer Payments,506,Housing Benefits,5048,Revenue,00.NON INFLUENCIBLE
05/06/2017,1447252,294.86,HOUSING BENEFIT,299992,Finance,Housing Services,108,Transfer Payments,506,Housing Benefits,5048,Revenue,00.NON INFLUENCIBLE
05/06/2017,1447259,342.72,SWIFT - PREPAID CARDS,299980,"Health, Education, Care and Safeguarding",Adult Social Care,101,Third Party Payments,505,Other Establishments,5041,Revenue,22.SUPPORT SERVICES
05/06/2017,1447262,954.57,SWIFT - PREPAID CARDS,299980,"Health, Education, Care and Safeguarding",Adult Social Care,101,Third Party Payments,505,Other Establishments,5041,Revenue,22.SUPPORT SERVICES
05/06/2017,1447266,586.92,SWIFT - PREPAID CARDS,299980,"Health, Education, Care and Safeguarding",Adult Social Care,101,Third Party Payments,505,Other Establishments,5041,Revenue,22.SUPPORT SERVICES
05/06/2017,1447269,259.92,SWIFT - PREPAID CARDS,299980,"Health, Education, Care and Safeguarding",Adult Social Care,101,Third Party Payments,505,Other Establishments,5041,Revenue,22.SUPPORT SERVICES
05/06/2017,1447270,321.25,SWIFT - PREPAID CARDS,299980,"Health, Education, Care and Safeguarding",Adult Social Care,101,Third Party Payments,505,Other Establishments,5041,Revenue,22.SUPPORT SERVICES
05/06/2017,1447274,332.01,SWIFT - PREPAID CARDS,299980,"Health, Education, Care and Safeguarding",Adult Social Care,101,Third Party Payments,505,Other Establishments,5041,Revenue,22.SUPPORT SERVICES
05/06/2017,1447277,311.61,SWIFT - PREPAID CARDS,299980,"Health, Education, Care and Safeguarding",Adult Social Care,101,Third Party Payments,505,Other Establishments,5041,Revenue,22.SUPPORT SERVICES
05/06/2017,1447280,309.00,SWIFT - PREPAID CARDS,299980,"Health, Education, Care and Safeguarding",Adult Social Care,101,Third Party Payments,505,Other Establishments,5041,Revenue,22.SUPPORT SERVICES
05/06/2017,1447281,308.36,SWIFT - PREPAID CARDS,299980,"Health, Education, Care and Safeguarding",Adult Social Care,101,Third Party Payments,505,Other Establishments,5041,Revenue,22.SUPPORT SERVICES
05/06/2017,1447283,271.16,SWIFT - PREPAID CARDS,299980,"Health, Education, Care and Safeguarding",Adult Social Care,101,Third Party Payments,505,Other Establishments,5041,Revenue,22.SUPPORT SERVICES
05/06/2017,1447284,922.46,SWIFT - PREPAID CARDS,299980,"Health, Education, Care and Safeguarding",Adult Social Care,101,Third Party Payments,505,Other Establishments,5041,Revenue,22.SUPPORT SERVICES
05/06/2017,1447285,280.00,SWIFT - PREPAID CARDS,299980,"Health, Education, Care and Safeguarding",Adult Social Care,101,Third Party Payments,505,Other Establishments,5041,Revenue,22.SUPPORT SERVICES
05/06/2017,1447286,266.45,SWIFT - PREPAID CARDS,299980,"Health, Education, Care and Safeguarding",Adult Social Care,101,Third Party Payments,505,Other Establishments,5041,Revenue,22.SUPPORT SERVICES
05/06/2017,1447292,2219.25,SWIFT - PREPAID CARDS,299980,"Health, Education, Care and Safeguarding",Adult Social Care,101,Third Party Payments,505,Other Establishments,5041,Revenue,22.SUPPORT SERVICES
05/06/2017,1447302,442.68,SWIFT - PREPAID CARDS,299980,"Health, Education, Care and Safeguarding",Adult Social Care,101,Third Party Payments,505,Other Establishments,5041,Revenue,22.SUPPORT SERVICES
05/06/2017,1447309,1488.50,SWIFT - PREPAID CARDS,299980,"Health, Education, Care and Safeguarding",Adult Social Care,101,Third Party Payments,505,Other Establishments,5041,Revenue,22.SUPPORT SERVICES
05/06/2017,1447312,260.05,SWIFT - PREPAID CARDS,299980,"Health, Education, Care and Safeguarding",Adult Social Care,101,Third Party Payments,505,Other Establishments,5041,Revenue,22.SUPPORT SERVICES
05/06/2017,1447314,1945.44,SWIFT - PREPAID CARDS,299980,"Health, Education, Care and Safeguarding",Adult Social Care,101,Third Party Payments,505,Other Establishments,5041,Revenue,22.SUPPORT SERVICES
05/06/2017,1447315,275.00,SWIFT - PREPAID CARDS,299980,"Health, Education, Care and Safeguarding",Adult Social Care,101,Third Party Payments,505,Other Establishments,5041,Revenue,22.SUPPORT SERVICES
05/06/2017,1447327,252.86,SWIFT - PREPAID CARDS,299980,"Health, Education, Care and Safeguarding",Adult Social Care,101,Third Party Payments,505,Other Establishments,5041,Revenue,22.SUPPORT SERVICES
05/06/2017,1447329,333.01,SWIFT - PREPAID CARDS,299980,"Health, Education, Care and Safeguarding",Adult Social Care,101,Third Party Payments,505,Other Establishments,5041,Revenue,22.SUPPORT SERVICES
05/06/2017,1447343,301.62,SWIFT - PREPAID CARDS,299980,"Health, Education, Care and Safeguarding",Adult Social Care,101,Third Party Payments,505,Other Establishments,5041,Revenue,22.SUPPORT SERVICES
05/06/2017,1447344,257.59,SWIFT - PREPAID CARDS,299980,"Health, Education, Care and Safeguarding",Adult Social Care,101,Third Party Payments,505,Other Establishments,5041,Revenue,22.SUPPORT SERVICES
05/06/2017,1447351,290.00,SWIFT - PREPAID CARDS,299980,"Health, Education, Care and Safeguarding",Adult Social Care,101,Third Party Payments,505,Other Establishments,5041,Revenue,22.SUPPORT SERVICES
05/06/2017,1447353,392.00,SWIFT - PREPAID CARDS,299980,"Health, Education, Care and Safeguarding",Adult Social Care,101,Third Party Payments,505,Other Establishments,5041,Revenue,22.SUPPORT SERVICES
05/06/2017,1447357,5001.32,SWIFT - PREPAID CARDS,299980,"Health, Education, Care and Safeguarding",Adult Social Care,101,Third Party Payments,505,Other Establishments,5041,Revenue,22.SUPPORT SERVICES
05/06/2017,1447359,356.72,SWIFT - PREPAID CARDS,299980,"Health, Education, Care and Safeguarding",Adult Social Care,101,Third Party Payments,505,Other Establishments,5041,Revenue,22.SUPPORT SERVICES
05/06/2017,1447362,1290.14,SWIFT - PREPAID CARDS,299980,"Health, Education, Care and Safeguarding",Adult Social Care,101,Third Party Payments,505,Other Establishments,5041,Revenue,22.SUPPORT SERVICES
05/06/2017,1447363,560.00,SWIFT - PREPAID CARDS,299980,"Health, Education, Care and Safeguarding",Adult Social Care,101,Third Party Payments,505,Other Establishments,5041,Revenue,22.SUPPORT SERVICES
05/06/2017,1447364,298.29,SWIFT - PREPAID CARDS,299980,"Health, Education, Care and Safeguarding",Adult Social Care,101,Third Party Payments,505,Other Establishments,5041,Revenue,22.SUPPORT SERVICES
05/06/2017,1447368,311.40,SWIFT - PREPAID CARDS,299980,"Health, Education, Care and Safeguarding",Adult Social Care,101,Third Party Payments,505,Other Establishments,5041,Revenue,22.SUPPORT SERVICES
05/06/2017,1447369,549.94,SWIFT - PREPAID CARDS,299980,"Health, Education, Care and Safeguarding",Adult Social Care,101,Third Party Payments,505,Other Establishments,5041,Revenue,22.SUPPORT SERVICES
05/06/2017,1447375,271.16,SWIFT - PREPAID CARDS,299980,"Health, Education, Care and Safeguarding",Adult Social Care,101,Third Party Payments,505,Other Establishments,5041,Revenue,22.SUPPORT SERVICES
05/06/2017,1447376,488.44,SWIFT - PREPAID CARDS,299980,"Health, Education, Care and Safeguarding",Adult Social Care,101,Third Party Payments,505,Other Establishments,5041,Revenue,22.SUPPORT SERVICES
05/06/2017,1447378,455.61,SWIFT - PREPAID CARDS,299980,"Health, Education, Care and Safeguarding",Adult Social Care,101,Third Party Payments,505,Other Establishments,5041,Revenue,22.SUPPORT SERVICES
05/06/2017,1447388,360.64,SWIFT - PREPAID CARDS,299980,"Health, Education, Care and Safeguarding",Adult Social Care,101,Third Party Payments,505,Other Establishments,5041,Revenue,22.SUPPORT SERVICES
05/06/2017,1447393,1488.65,SWIFT - PREPAID CARDS,299980,"Health, Education, Care and Safeguarding",Adult Social Care,101,Third Party Payments,505,Other Establishments,5041,Revenue,22.SUPPORT SERVICES
05/06/2017,1447394,273.96,SWIFT - PREPAID CARDS,299980,"Health, Education, Care and Safeguarding",Adult Social Care,101,Third Party Payments,505,Other Establishments,5041,Revenue,22.SUPPORT SERVICES
05/06/2017,1447398,2359.40,SWIFT - PREPAID CARDS,299980,"Health, Education, Care and Safeguarding",Adult Social Care,101,Third Party Payments,505,Other Establishments,5041,Revenue,22.SUPPORT SERVICES
05/06/2017,1447399,252.80,SWIFT - PREPAID CARDS,299980,"Health, Education, Care and Safeguarding",Adult Social Care,101,Third Party Payments,505,Other Establishments,5041,Revenue,22.SUPPORT SERVICES
05/06/2017,1447409,1054.00,SWIFT - PREPAID CARDS,299980,"Health, Education, Care and Safeguarding",Adult Social Care,101,Third Party Payments,505,Other Establishments,5041,Revenue,22.SUPPORT SERVICES
05/06/2017,1447410,329.46,SWIFT - PREPAID CARDS,299980,"Health, Education, Care and Safeguarding",Adult Social Care,101,Third Party Payments,505,Other Establishments,5041,Revenue,22.SUPPORT SERVICES
05/06/2017,1447417,264.60,SWIFT - PREPAID CARDS,299980,"Health, Education, Care and Safeguarding",Adult Social Care,101,Third Party Payments,505,Other Establishments,5041,Revenue,22.SUPPORT SERVICES
05/06/2017,1447418,415.50,SWIFT - PREPAID CARDS,299980,"Health, Education, Care and Safeguarding",Adult Social Care,101,Third Party Payments,505,Other Establishments,5041,Revenue,22.SUPPORT SERVICES
05/06/2017,1447421,267.78,SWIFT - PREPAID CARDS,299980,"Health, Education, Care and Safeguarding",Adult Social Care,101,Third Party Payments,505,Other Establishments,5041,Revenue,22.SUPPORT SERVICES
05/06/2017,1447436,3440.64,SWIFT - PREPAID CARDS,299980,"Health, Education, Care and Safeguarding",Adult Social Care,101,Third Party Payments,505,Other Establishments,5041,Revenue,22.SUPPORT SERVICES
05/06/2017,1447445,664.00,SWIFT - PREPAID CARDS,299980,"Health, Education, Care and Safeguarding",Adult Social Care,101,Third Party Payments,505,Other Establishments,5041,Revenue,22.SUPPORT SERVICES
05/06/2017,1447446,383.82,SWIFT - PREPAID CARDS,299980,"Health, Education, Care and Safeguarding",Adult Social Care,101,Third Party Payments,505,Other Establishments,5041,Revenue,22.SUPPORT SERVICES
05/06/2017,1447447,359.66,SWIFT - PREPAID CARDS,299980,"Health, Education, Care and Safeguarding",Adult Social Care,101,Third Party Payments,505,Other Establishments,5041,Revenue,22.SUPPORT SERVICES
05/06/2017,1447448,645.12,SWIFT - PREPAID CARDS,299980,"Health, Education, Care and Safeguarding",Adult Social Care,101,Third Party Payments,505,Other Establishments,5041,Revenue,22.SUPPORT SERVICES
05/06/2017,1447449,405.79,SWIFT - PREPAID CARDS,299980,"Health, Education, Care and Safeguarding",Adult Social Care,101,Third Party Payments,505,Other Establishments,5041,Revenue,22.SUPPORT SERVICES
05/06/2017,1447451,1008.71,SWIFT - PREPAID CARDS,299980,"Health, Education, Care and Safeguarding",Adult Social Care,101,Third Party Payments,505,Other Establishments,5041,Revenue,22.SUPPORT SERVICES
05/06/2017,1447456,267.19,SWIFT - PREPAID CARDS,299980,"Health, Education, Care and Safeguarding",Adult Social Care,101,Third Party Payments,505,Other Establishments,5041,Revenue,22.SUPPORT SERVICES
05/06/2017,1447459,823.47,SWIFT - PREPAID CARDS,299980,"Health, Education, Care and Safeguarding",Adult Social Care,101,Third Party Payments,505,Other Establishments,5041,Revenue,22.SUPPORT SERVICES
05/06/2017,1447462,2734.60,SWIFT - PREPAID CARDS,299980,"Health, Education, Care and Safeguarding",Adult Social Care,101,Third Party Payments,505,Other Establishments,5041,Revenue,22.SUPPORT SERVICES
05/06/2017,1447466,1416.48,SWIFT - PREPAID CARDS,299980,"Health, Education, Care and Safeguarding",Adult Social Care,101,Third Party Payments,505,Other Establishments,5041,Revenue,22.SUPPORT SERVICES
05/06/2017,1447467,349.57,SWIFT - PREPAID CARDS,299980,"Health, Education, Care and Safeguarding",Adult Social Care,101,Third Party Payments,505,Other Establishments,5041,Revenue,22.SUPPORT SERVICES
05/06/2017,1447472,497.93,SWIFT - PREPAID CARDS,299980,"Health, Education, Care and Safeguarding",Adult Social Care,101,Third Party Payments,505,Other Establishments,5041,Revenue,22.SUPPORT SERVICES
05/06/2017,1447477,884.20,SWIFT - PREPAID CARDS,299980,"Health, Education, Care and Safeguarding",Adult Social Care,101,Third Party Payments,505,Other Establishments,5041,Revenue,22.SUPPORT SERVICES
05/06/2017,1447478,254.88,SWIFT - PREPAID CARDS,299980,"Health, Education, Care and Safeguarding",Adult Social Care,101,Third Party Payments,505,Other Establishments,5041,Revenue,22.SUPPORT SERVICES
05/06/2017,1447484,902.04,SWIFT - PREPAID CARDS,299980,"Health, Education, Care and Safeguarding",Adult Social Care,101,Third Party Payments,505,Other Establishments,5041,Revenue,22.SUPPORT SERVICES
05/06/2017,1447485,691.08,SWIFT - PREPAID CARDS,299980,"Health, Education, Care and Safeguarding",Adult Social Care,101,Third Party Payments,505,Other Establishments,5041,Revenue,22.SUPPORT SERVICES
05/06/2017,1447486,2441.25,SWIFT - PREPAID CARDS,299980,"Health, Education, Care and Safeguarding",Adult Social Care,101,Third Party Payments,505,Other Establishments,5041,Revenue,22.SUPPORT SERVICES
05/06/2017,1447489,266.03,SWIFT - PREPAID CARDS,299980,"Health, Education, Care and Safeguarding",Adult Social Care,101,Third Party Payments,505,Other Establishments,5041,Revenue,22.SUPPORT SERVICES
05/06/2017,1447496,260.00,SWIFT - PREPAID CARDS,299980,"Health, Education, Care and Safeguarding",Adult Social Care,101,Third Party Payments,505,Other Establishments,5041,Revenue,22.SUPPORT SERVICES
05/06/2017,1447499,260.10,SWIFT - PREPAID CARDS,299980,"Health, Education, Care and Safeguarding",Adult Social Care,101,Third Party Payments,505,Other Establishments,5041,Revenue,22.SUPPORT SERVICES
05/06/2017,1447500,328.69,SWIFT - PREPAID CARDS,299980,"Health, Education, Care and Safeguarding",Adult Social Care,101,Third Party Payments,505,Other Establishments,5041,Revenue,22.SUPPORT SERVICES
05/06/2017,1447505,685.10,SWIFT - PREPAID CARDS,299980,"Health, Education, Care and Safeguarding",Adult Social Care,101,Third Party Payments,505,Other Establishments,5041,Revenue,22.SUPPORT SERVICES
05/06/2017,1447514,1081.12,SWIFT - PREPAID CARDS,299980,"Health, Education, Care and Safeguarding",Adult Social Care,101,Third Party Payments,505,Other Establishments,5041,Revenue,22.SUPPORT SERVICES
05/06/2017,1447515,266.91,SWIFT - PREPAID CARDS,299980,"Health, Education, Care and Safeguarding",Adult Social Care,101,Third Party Payments,505,Other Establishments,5041,Revenue,22.SUPPORT SERVICES
05/06/2017,1447516,270.00,SWIFT - PREPAID CARDS,299980,"Health, Education, Care and Safeguarding",Adult Social Care,101,Third Party Payments,505,Other Establishments,5041,Revenue,22.SUPPORT SERVICES
05/06/2017,1447520,610.77,SWIFT - PREPAID CARDS,299980,"Health, Education, Care and Safeguarding",Adult Social Care,101,Third Party Payments,505,Other Establishments,5041,Revenue,22.SUPPORT SERVICES
05/06/2017,1447522,287.00,SWIFT - PREPAID CARDS,299980,"Health, Education, Care and Safeguarding",Adult Social Care,101,Third Party Payments,505,Other Establishments,5041,Revenue,22.SUPPORT SERVICES
05/06/2017,1447523,961.53,SWIFT - PREPAID CARDS,299980,"Health, Education, Care and Safeguarding",Adult Social Care,101,Third Party Payments,505,Other Establishments,5041,Revenue,22.SUPPORT SERVICES
05/06/2017,1447524,1716.53,SWIFT - PREPAID CARDS,299980,"Health, Education, Care and Safeguarding",Adult Social Care,101,Third Party Payments,505,Other Establishments,5041,Revenue,22.SUPPORT SERVICES
05/06/2017,1447529,261.20,SWIFT - PREPAID CARDS,299980,"Health, Education, Care and Safeguarding",Adult Social Care,101,Third Party Payments,505,Other Establishments,5041,Revenue,22.SUPPORT SERVICES
05/06/2017,1447533,727.98,SWIFT - PREPAID CARDS,299980,"Health, Education, Care and Safeguarding",Adult Social Care,101,Third Party Payments,505,Other Establishments,5041,Revenue,22.SUPPORT SERVICES
05/06/2017,1447534,668.15,SWIFT - PREPAID CARDS,299980,"Health, Education, Care and Safeguarding",Adult Social Care,101,Third Party Payments,505,Other Establishments,5041,Revenue,22.SUPPORT SERVICES
05/06/2017,1447536,1770.72,SWIFT - PREPAID CARDS,299980,"Health, Education, Care and Safeguarding",Adult Social Care,101,Third Party Payments,505,Other Establishments,5041,Revenue,22.SUPPORT SERVICES
05/06/2017,1447539,520.21,SWIFT - PREPAID CARDS,299980,"Health, Education, Care and Safeguarding",Adult Social Care,101,Third Party Payments,505,Other Establishments,5041,Revenue,22.SUPPORT SERVICES
05/06/2017,1447546,255.50,SWIFT - PREPAID CARDS,299980,"Health, Education, Care and Safeguarding",Adult Social Care,101,Third Party Payments,505,Other Establishments,5041,Revenue,22.SUPPORT SERVICES
05/06/2017,1447548,1862.09,SWIFT - PREPAID CARDS,299980,"Health, Education, Care and Safeguarding",Adult Social Care,101,Third Party Payments,505,Other Establishments,5041,Revenue,22.SUPPORT SERVICES
05/06/2017,1447552,1311.29,SWIFT - PREPAID CARDS,299980,"Health, Education, Care and Safeguarding",Adult Social Care,101,Third Party Payments,505,Other Establishments,5041,Revenue,22.SUPPORT SERVICES
05/06/2017,1447555,480.00,SWIFT - PREPAID CARDS,299980,"Health, Education, Care and Safeguarding",Children's & Education Services,103,Third Party Payments,505,Other Establishments,5041,Revenue,22.SUPPORT SERVICES
05/06/2017,1447558,480.00,SWIFT - PREPAID CARDS,299980,"Health, Education, Care and Safeguarding",Children's & Education Services,103,Third Party Payments,505,Other Establishments,5041,Revenue,22.SUPPORT SERVICES
05/06/2017,1447561,937.89,SWIFT - PREPAID CARDS,299980,"Health, Education, Care and Safeguarding",Adult Social Care,101,Third Party Payments,505,Other Establishments,5041,Revenue,22.SUPPORT SERVICES
05/06/2017,1447564,509.02,SWIFT - PREPAID CARDS,299980,"Health, Education, Care and Safeguarding",Adult Social Care,101,Third Party Payments,505,Other Establishments,5041,Revenue,22.SUPPORT SERVICES
05/06/2017,1447567,500.39,SWIFT - PREPAID CARDS,299980,"Health, Education, Care and Safeguarding",Adult Social Care,101,Third Party Payments,505,Other Establishments,5041,Revenue,22.SUPPORT SERVICES
05/06/2017,1447568,255.40,SWIFT - PREPAID CARDS,299980,"Health, Education, Care and Safeguarding",Adult Social Care,101,Third Party Payments,505,Other Establishments,5041,Revenue,22.SUPPORT SERVICES
05/06/2017,1447571,502.05,SWIFT - PREPAID CARDS,299980,"Health, Education, Care and Safeguarding",Adult Social Care,101,Third Party Payments,505,Other Establishments,5041,Revenue,22.SUPPORT SERVICES
05/06/2017,1447577,940.20,SWIFT - PREPAID CARDS,299980,"Health, Education, Care and Safeguarding",Adult Social Care,101,Third Party Payments,505,Other Establishments,5041,Revenue,22.SUPPORT SERVICES
05/06/2017,1447583,1099.79,SWIFT - PREPAID CARDS,299980,"Health, Education, Care and Safeguarding",Adult Social Care,101,Third Party Payments,505,Other Establishments,5041,Revenue,22.SUPPORT SERVICES
05/06/2017,1447584,506.93,SWIFT - PREPAID CARDS,299980,"Health, Education, Care and Safeguarding",Adult Social Care,101,Third Party Payments,505,Other Establishments,5041,Revenue,22.SUPPORT SERVICES
05/06/2017,1447587,737.00,SWIFT - PREPAID CARDS,299980,"Health, Education, Care and Safeguarding",Adult Social Care,101,Third Party Payments,505,Other Establishments,5041,Revenue,22.SUPPORT SERVICES
05/06/2017,1447593,565.11,SWIFT - PREPAID CARDS,299980,"Health, Education, Care and Safeguarding",Adult Social Care,101,Third Party Payments,505,Other Establishments,5041,Revenue,22.SUPPORT SERVICES
05/06/2017,1447602,253.45,SWIFT - PREPAID CARDS,299980,"Health, Education, Care and Safeguarding",Adult Social Care,101,Third Party Payments,505,Other Establishments,5041,Revenue,22.SUPPORT SERVICES
05/06/2017,1447609,1771.17,SWIFT - PREPAID CARDS,299980,"Health, Education, Care and Safeguarding",Adult Social Care,101,Third Party Payments,505,Other Establishments,5041,Revenue,22.SUPPORT SERVICES
05/06/2017,1447610,314.14,SWIFT - PREPAID CARDS,299980,"Health, Education, Care and Safeguarding",Adult Social Care,101,Third Party Payments,505,Other Establishments,5041,Revenue,22.SUPPORT SERVICES
05/06/2017,1447619,491.15,SWIFT - PREPAID CARDS,299980,"Health, Education, Care and Safeguarding",Adult Social Care,101,Third Party Payments,505,Other Establishments,5041,Revenue,22.SUPPORT SERVICES
05/06/2017,1447621,441.00,SWIFT - PREPAID CARDS,299980,"Health, Education, Care and Safeguarding",Adult Social Care,101,Third Party Payments,505,Other Establishments,5041,Revenue,22.SUPPORT SERVICES
05/06/2017,1447623,828.17,SWIFT - PREPAID CARDS,299980,"Health, Education, Care and Safeguarding",Adult Social Care,101,Third Party Payments,505,Other Establishments,5041,Revenue,22.SUPPORT SERVICES
05/06/2017,1447624,396.60,SWIFT - PREPAID CARDS,299980,"Health, Education, Care and Safeguarding",Adult Social Care,101,Third Party Payments,505,Other Establishments,5041,Revenue,22.SUPPORT SERVICES
05/06/2017,1447626,282.56,SWIFT - PREPAID CARDS,299980,"Health, Education, Care and Safeguarding",Adult Social Care,101,Third Party Payments,505,Other Establishments,5041,Revenue,22.SUPPORT SERVICES
05/06/2017,1447630,256.23,SWIFT - PREPAID CARDS,299980,"Health, Education, Care and Safeguarding",Adult Social Care,101,Third Party Payments,505,Other Establishments,5041,Revenue,22.SUPPORT SERVICES
05/06/2017,1447640,508.00,SWIFT - PREPAID CARDS,299980,"Health, Education, Care and Safeguarding",Adult Social Care,101,Third Party Payments,505,Other Establishments,5041,Revenue,22.SUPPORT SERVICES
05/06/2017,1447641,1638.99,SWIFT - PREPAID CARDS,299980,"Health, Education, Care and Safeguarding",Adult Social Care,101,Third Party Payments,505,Other Establishments,5041,Revenue,22.SUPPORT SERVICES
05/06/2017,1447650,267.72,SWIFT - PREPAID CARDS,299980,"Health, Education, Care and Safeguarding",Adult Social Care,101,Third Party Payments,505,Other Establishments,5041,Revenue,22.SUPPORT SERVICES
05/06/2017,1447653,343.23,SWIFT - PREPAID CARDS,299980,"Health, Education, Care and Safeguarding",Adult Social Care,101,Third Party Payments,505,Other Establishments,5041,Revenue,22.SUPPORT SERVICES
05/06/2017,1447661,333.00,SWIFT - PREPAID CARDS,299980,"Health, Education, Care and Safeguarding",Adult Social Care,101,Third Party Payments,505,Other Establishments,5041,Revenue,22.SUPPORT SERVICES
05/06/2017,1447662,316.00,Redacted Personal Data,372033,"Health, Education, Care and Safeguarding",Adult Social Care,101,Third Party Payments,505,Other Establishments,5041,Revenue,00.NON INFLUENCIBLE
05/06/2017,1447663,433.57,Redacted Personal Data,395079,"Health, Education, Care and Safeguarding",Adult Social Care,101,Third Party Payments,505,Private Contractors,5042,Revenue,22.RESIDENTIAL
05/06/2017,1447664,495.43,Redacted Personal Data,395077,"Health, Education, Care and Safeguarding",Adult Social Care,101,Third Party Payments,505,Private Contractors,5042,Revenue,22.RESIDENTIAL
05/06/2017,1447670,901.22,FOCUS SOCIAL CARE,391317,"Health, Education, Care and Safeguarding",Adult Social Care,101,Third Party Payments,505,Other Establishments,5041,Revenue,22.SUPPORT SERVICES
05/06/2017,1447670,1114.04,FOCUS SOCIAL CARE,391317,"Health, Education, Care and Safeguarding",Adult Social Care,101,Third Party Payments,505,Other Establishments,5041,Revenue,22.SUPPORT SERVICES
05/06/2017,1447671,316.00,Redacted Personal Data,376386,"Health, Education, Care and Safeguarding",Adult Social Care,101,Third Party Payments,505,Other Establishments,5041,Revenue,NON INDIVIDUAL
05/06/2017,1447671,352.62,Redacted Personal Data,376386,"Health, Education, Care and Safeguarding",Adult Social Care,101,Third Party Payments,505,Other Establishments,5041,Revenue,NON INDIVIDUAL
05/06/2017,1447672,540.49,Redacted Personal Data,394671,"Health, Education, Care and Safeguarding",Adult Social Care,101,Third Party Payments,505,Private Contractors,5042,Revenue,22.RESIDENTIAL
05/06/2017,1447673,520.05,EOTHEN HOMES LTD,276943,"Health, Education, Care and Safeguarding",Adult Social Care,101,Third Party Payments,505,Private Contractors,5042,Revenue,22.RESIDENTIAL
05/06/2017,1447673,520.05,EOTHEN HOMES LTD,276943,"Health, Education, Care and Safeguarding",Adult Social Care,101,Third Party Payments,505,Private Contractors,5042,Revenue,22.RESIDENTIAL
05/06/2017,1447673,520.05,EOTHEN HOMES LTD,276943,"Health, Education, Care and Safeguarding",Adult Social Care,101,Third Party Payments,505,Private Contractors,5042,Revenue,22.RESIDENTIAL
05/06/2017,1447673,520.05,EOTHEN HOMES LTD,276943,"Health, Education, Care and Safeguarding",Adult Social Care,101,Third Party Payments,505,Private Contractors,5042,Revenue,22.RESIDENTIAL
05/06/2017,1447673,520.05,EOTHEN HOMES LTD,276943,"Health, Education, Care and Safeguarding",Adult Social Care,101,Third Party Payments,505,Private Contractors,5042,Revenue,22.RESIDENTIAL
05/06/2017,1447673,520.05,EOTHEN HOMES LTD,276943,"Health, Education, Care and Safeguarding",Adult Social Care,101,Third Party Payments,505,Private Contractors,5042,Revenue,22.RESIDENTIAL
05/06/2017,1447673,520.05,EOTHEN HOMES LTD,276943,"Health, Education, Care and Safeguarding",Adult Social Care,101,Third Party Payments,505,Private Contractors,5042,Revenue,22.RESIDENTIAL
05/06/2017,1447673,538.64,EOTHEN HOMES LTD,276943,"Health, Education, Care and Safeguarding",Adult Social Care,101,Third Party Payments,505,Private Contractors,5042,Revenue,22.RESIDENTIAL
05/06/2017,1447673,538.64,EOTHEN HOMES LTD,276943,"Health, Education, Care and Safeguarding",Adult Social Care,101,Third Party Payments,505,Private Contractors,5042,Revenue,22.RESIDENTIAL
05/06/2017,1447673,538.64,EOTHEN HOMES LTD,276943,"Health, Education, Care and Safeguarding",Adult Social Care,101,Third Party Payments,505,Private Contractors,5042,Revenue,22.RESIDENTIAL
05/06/2017,1447673,538.64,EOTHEN HOMES LTD,276943,"Health, Education, Care and Safeguarding",Adult Social Care,101,Third Party Payments,505,Private Contractors,5042,Revenue,22.RESIDENTIAL
05/06/2017,1447673,538.64,EOTHEN HOMES LTD,276943,"Health, Education, Care and Safeguarding",Adult Social Care,101,Third Party Payments,505,Private Contractors,5042,Revenue,22.RESIDENTIAL
05/06/2017,1447673,538.64,EOTHEN HOMES LTD,276943,"Health, Education, Care and Safeguarding",Adult Social Care,101,Third Party Payments,505,Private Contractors,5042,Revenue,22.RESIDENTIAL
05/06/2017,1447673,538.64,EOTHEN HOMES LTD,276943,"Health, Education, Care and Safeguarding",Adult Social Care,101,Third Party Payments,505,Private Contractors,5042,Revenue,22.RESIDENTIAL
05/06/2017,1447673,538.64,EOTHEN HOMES LTD,276943,"Health, Education, Care and Safeguarding",Adult Social Care,101,Third Party Payments,505,Private Contractors,5042,Revenue,22.RESIDENTIAL
05/06/2017,1447673,538.64,EOTHEN HOMES LTD,276943,"Health, Education, Care and Safeguarding",Adult Social Care,101,Third Party Payments,505,Private Contractors,5042,Revenue,22.RESIDENTIAL
05/06/2017,1447673,538.64,EOTHEN HOMES LTD,276943,"Health, Education, Care and Safeguarding",Adult Social Care,101,Third Party Payments,505,Private Contractors,5042,Revenue,22.RESIDENTIAL
05/06/2017,1447673,538.64,EOTHEN HOMES LTD,276943,"Health, Education, Care and Safeguarding",Adult Social Care,101,Third Party Payments,505,Private Contractors,5042,Revenue,22.RESIDENTIAL
05/06/2017,1447673,538.64,EOTHEN HOMES LTD,276943,"Health, Education, Care and Safeguarding",Adult Social Care,101,Third Party Payments,505,Private Contractors,5042,Revenue,22.RESIDENTIAL
05/06/2017,1447673,538.64,EOTHEN HOMES LTD,276943,"Health, Education, Care and Safeguarding",Adult Social Care,101,Third Party Payments,505,Private Contractors,5042,Revenue,22.RESIDENTIAL
05/06/2017,1447673,538.64,EOTHEN HOMES LTD,276943,"Health, Education, Care and Safeguarding",Adult Social Care,101,Third Party Payments,505,Private Contractors,5042,Revenue,22.RESIDENTIAL
05/06/2017,1447673,538.64,EOTHEN HOMES LTD,276943,"Health, Education, Care and Safeguarding",Adult Social Care,101,Third Party Payments,505,Private Contractors,5042,Revenue,22.RESIDENTIAL
05/06/2017,1447673,538.64,EOTHEN HOMES LTD,276943,"Health, Education, Care and Safeguarding",Adult Social Care,101,Third Party Payments,505,Private Contractors,5042,Revenue,22.RESIDENTIAL
05/06/2017,1447674,538.64,AKARI CARE HOMES LIMITED,387465,"Health, Education, Care and Safeguarding",Adult Social Care,101,Third Party Payments,505,Private Contractors,5042,Revenue,22.RESIDENTIAL
05/06/2017,1447674,538.64,AKARI CARE HOMES LIMITED,387465,"Health, Education, Care and Safeguarding",Adult Social Care,101,Third Party Payments,505,Private Contractors,5042,Revenue,22.RESIDENTIAL
05/06/2017,1447674,538.64,AKARI CARE HOMES LIMITED,387465,"Health, Education, Care and Safeguarding",Adult Social Care,101,Third Party Payments,505,Private Contractors,5042,Revenue,22.RESIDENTIAL
05/06/2017,1447674,538.64,AKARI CARE HOMES LIMITED,387465,"Health, Education, Care and Safeguarding",Adult Social Care,101,Third Party Payments,505,Private Contractors,5042,Revenue,22.RESIDENTIAL
05/06/2017,1447674,538.64,AKARI CARE HOMES LIMITED,387465,"Health, Education, Care and Safeguarding",Adult Social Care,101,Third Party Payments,505,Private Contractors,5042,Revenue,22.RESIDENTIAL
05/06/2017,1447674,538.64,AKARI CARE HOMES LIMITED,387465,"Health, Education, Care and Safeguarding",Adult Social Care,101,Third Party Payments,505,Private Contractors,5042,Revenue,22.RESIDENTIAL
05/06/2017,1447674,538.64,AKARI CARE HOMES LIMITED,387465,"Health, Education, Care and Safeguarding",Adult Social Care,101,Third Party Payments,505,Private Contractors,5042,Revenue,22.RESIDENTIAL
05/06/2017,1447674,538.64,AKARI CARE HOMES LIMITED,387465,"Health, Education, Care and Safeguarding",Adult Social Care,101,Third Party Payments,505,Private Contractors,5042,Revenue,22.RESIDENTIAL
05/06/2017,1447674,538.64,AKARI CARE HOMES LIMITED,387465,"Health, Education, Care and Safeguarding",Adult Social Care,101,Third Party Payments,505,Private Contractors,5042,Revenue,22.RESIDENTIAL
05/06/2017,1447674,538.64,AKARI CARE HOMES LIMITED,387465,"Health, Education, Care and Safeguarding",Adult Social Care,101,Third Party Payments,505,Private Contractors,5042,Revenue,22.RESIDENTIAL
05/06/2017,1447674,538.64,AKARI CARE HOMES LIMITED,387465,"Health, Education, Care and Safeguarding",Adult Social Care,101,Third Party Payments,505,Private Contractors,5042,Revenue,22.RESIDENTIAL
05/06/2017,1447674,538.64,AKARI CARE HOMES LIMITED,387465,"Health, Education, Care and Safeguarding",Adult Social Care,101,Third Party Payments,505,Private Contractors,5042,Revenue,22.RESIDENTIAL
05/06/2017,1447708,575.00,EXECUTIVE CARE GROUP RE PEMBROKE CARE HOME,375477,"Health, Education, Care and Safeguarding",Adult Social Care,101,Third Party Payments,505,Private Contractors,5042,Revenue,22.RESIDENTIAL
05/06/2017,1447709,-4436.34,EXECUTIVE CARE GROUP,358649,"Health, Education, Care and Safeguarding",Adult Social Care,101,Third Party Payments,505,Private Contractors,5042,,22.RESIDENTIAL
05/06/2017,1447709,584.59,EXECUTIVE CARE GROUP,358649,"Health, Education, Care and Safeguarding",Adult Social Care,101,Third Party Payments,505,Private Contractors,5042,Revenue,22.RESIDENTIAL
05/06/2017,1447709,4843.75,EXECUTIVE CARE GROUP,358649,"Health, Education, Care and Safeguarding",Adult Social Care,101,Third Party Payments,505,Private Contractors,5042,Revenue,22.RESIDENTIAL
05/06/2017,1447710,-130.70,TURNBERRY SERVICES LIMITED,392180,"Health, Education, Care and Safeguarding",Adult Social Care,101,Income,509,"Other Grants, Reimbursements & Contributions",5063,Revenue,22.RESIDENTIAL
05/06/2017,1447710,-121.08,TURNBERRY SERVICES LIMITED,392180,"Health, Education, Care and Safeguarding",Adult Social Care,101,Income,509,"Other Grants, Reimbursements & Contributions",5063,Revenue,22.RESIDENTIAL
05/06/2017,1447710,450.34,TURNBERRY SERVICES LIMITED,392180,"Health, Education, Care and Safeguarding",Adult Social Care,101,Third Party Payments,505,Private Contractors,5042,Revenue,22.RESIDENTIAL
05/06/2017,1447710,450.34,TURNBERRY SERVICES LIMITED,392180,"Health, Education, Care and Safeguarding",Adult Social Care,101,Third Party Payments,505,Private Contractors,5042,Revenue,22.RESIDENTIAL
05/06/2017,1447710,450.34,TURNBERRY SERVICES LIMITED,392180,"Health, Education, Care and Safeguarding",Adult Social Care,101,Third Party Payments,505,Private Contractors,5042,Revenue,22.RESIDENTIAL
05/06/2017,1447710,450.34,TURNBERRY SERVICES LIMITED,392180,"Health, Education, Care and Safeguarding",Adult Social Care,101,Third Party Payments,505,Private Contractors,5042,Revenue,22.RESIDENTIAL
05/06/2017,1447710,450.34,TURNBERRY SERVICES LIMITED,392180,"Health, Education, Care and Safeguarding",Adult Social Care,101,Third Party Payments,505,Private Contractors,5042,Revenue,22.RESIDENTIAL
05/06/2017,1447710,450.34,TURNBERRY SERVICES LIMITED,392180,"Health, Education, Care and Safeguarding",Adult Social Care,101,Third Party Payments,505,Private Contractors,5042,Revenue,22.RESIDENTIAL
05/06/2017,1447674,-4426.56,AKARI CARE HOMES LIMITED,387465,"Health, Education, Care and Safeguarding",Adult Social Care,101,Third Party Payments,505,Private Contractors,5042,,22.RESIDENTIAL
05/06/2017,1447674,-4308.99,AKARI CARE HOMES LIMITED,387465,"Health, Education, Care and Safeguarding",Adult Social Care,101,Third Party Payments,505,Private Contractors,5042,,22.RESIDENTIAL
05/06/2017,1447674,-4250.99,AKARI CARE HOMES LIMITED,387465,"Health, Education, Care and Safeguarding",Adult Social Care,101,Third Party Payments,505,Private Contractors,5042,,22.RESIDENTIAL
05/06/2017,1447674,-4250.99,AKARI CARE HOMES LIMITED,387465,"Health, Education, Care and Safeguarding",Adult Social Care,101,Third Party Payments,505,Private Contractors,5042,,22.RESIDENTIAL
05/06/2017,1447674,-4250.99,AKARI CARE HOMES LIMITED,387465,"Health, Education, Care and Safeguarding",Adult Social Care,101,Third Party Payments,505,Private Contractors,5042,,22.RESIDENTIAL
05/06/2017,1447674,-4250.99,AKARI CARE HOMES LIMITED,387465,"Health, Education, Care and Safeguarding",Adult Social Care,101,Third Party Payments,505,Private Contractors,5042,,22.RESIDENTIAL
05/06/2017,1447674,-4250.99,AKARI CARE HOMES LIMITED,387465,"Health, Education, Care and Safeguarding",Adult Social Care,101,Third Party Payments,505,Private Contractors,5042,,22.RESIDENTIAL
05/06/2017,1447674,-4209.72,AKARI CARE HOMES LIMITED,387465,"Health, Education, Care and Safeguarding",Adult Social Care,101,Third Party Payments,505,Private Contractors,5042,,22.RESIDENTIAL
05/06/2017,1447674,-4036.47,AKARI CARE HOMES LIMITED,387465,"Health, Education, Care and Safeguarding",Adult Social Care,101,Third Party Payments,505,Private Contractors,5042,,22.RESIDENTIAL
05/06/2017,1447674,-4036.47,AKARI CARE HOMES LIMITED,387465,"Health, Education, Care and Safeguarding",Adult Social Care,101,Third Party Payments,505,Private Contractors,5042,,22.RESIDENTIAL
05/06/2017,1447674,-3811.23,AKARI CARE HOMES LIMITED,387465,"Health, Education, Care and Safeguarding",Adult Social Care,101,Third Party Payments,505,Private Contractors,5042,,22.RESIDENTIAL
05/06/2017,1447674,-2325.49,AKARI CARE HOMES LIMITED,387465,"Health, Education, Care and Safeguarding",Adult Social Care,101,Third Party Payments,505,Private Contractors,5042,,22.RESIDENTIAL
05/06/2017,1447674,-908.15,AKARI CARE HOMES LIMITED,387465,"Health, Education, Care and Safeguarding",Adult Social Care,101,Third Party Payments,505,Other Establishments,5041,,22.RESIDENTIAL
05/06/2017,1447674,-708.80,AKARI CARE HOMES LIMITED,387465,"Health, Education, Care and Safeguarding",Adult Social Care,101,Third Party Payments,505,Other Establishments,5041,,22.RESIDENTIAL
05/06/2017,1447674,371.46,AKARI CARE HOMES LIMITED,387465,"Health, Education, Care and Safeguarding",Adult Social Care,101,Third Party Payments,505,Private Contractors,5042,Revenue,22.RESIDENTIAL
05/06/2017,1447674,390.52,AKARI CARE HOMES LIMITED,387465,"Health, Education, Care and Safeguarding",Adult Social Care,101,Third Party Payments,505,Private Contractors,5042,Revenue,22.RESIDENTIAL
05/06/2017,1447674,488.15,AKARI CARE HOMES LIMITED,387465,"Health, Education, Care and Safeguarding",Adult Social Care,101,Third Party Payments,505,Private Contractors,5042,Revenue,22.RESIDENTIAL
05/06/2017,1447674,488.15,AKARI CARE HOMES LIMITED,387465,"Health, Education, Care and Safeguarding",Adult Social Care,101,Third Party Payments,505,Private Contractors,5042,Revenue,22.RESIDENTIAL
05/06/2017,1447674,488.15,AKARI CARE HOMES LIMITED,387465,"Health, Education, Care and Safeguarding",Adult Social Care,101,Third Party Payments,505,Private Contractors,5042,Revenue,22.RESIDENTIAL
05/06/2017,1447674,488.15,AKARI CARE HOMES LIMITED,387465,"Health, Education, Care and Safeguarding",Adult Social Care,101,Third Party Payments,505,Private Contractors,5042,Revenue,22.RESIDENTIAL
05/06/2017,1447674,488.15,AKARI CARE HOMES LIMITED,387465,"Health, Education, Care and Safeguarding",Adult Social Care,101,Third Party Payments,505,Private Contractors,5042,Revenue,22.RESIDENTIAL
05/06/2017,1447674,488.15,AKARI CARE HOMES LIMITED,387465,"Health, Education, Care and Safeguarding",Adult Social Care,101,Third Party Payments,505,Private Contractors,5042,Revenue,22.RESIDENTIAL
05/06/2017,1447674,488.15,AKARI CARE HOMES LIMITED,387465,"Health, Education, Care and Safeguarding",Adult Social Care,101,Third Party Payments,505,Private Contractors,5042,Revenue,22.RESIDENTIAL
05/06/2017,1447674,488.15,AKARI CARE HOMES LIMITED,387465,"Health, Education, Care and Safeguarding",Adult Social Care,101,Third Party Payments,505,Private Contractors,5042,Revenue,22.RESIDENTIAL
05/06/2017,1447674,488.15,AKARI CARE HOMES LIMITED,387465,"Health, Education, Care and Safeguarding",Adult Social Care,101,Third Party Payments,505,Private Contractors,5042,Revenue,22.RESIDENTIAL
05/06/2017,1447674,488.15,AKARI CARE HOMES LIMITED,387465,"Health, Education, Care and Safeguarding",Adult Social Care,101,Third Party Payments,505,Private Contractors,5042,Revenue,22.RESIDENTIAL
05/06/2017,1447674,488.15,AKARI CARE HOMES LIMITED,387465,"Health, Education, Care and Safeguarding",Adult Social Care,101,Third Party Payments,505,Private Contractors,5042,Revenue,22.RESIDENTIAL
05/06/2017,1447674,488.15,AKARI CARE HOMES LIMITED,387465,"Health, Education, Care and Safeguarding",Adult Social Care,101,Third Party Payments,505,Private Contractors,5042,Revenue,22.RESIDENTIAL
05/06/2017,1447674,488.15,AKARI CARE HOMES LIMITED,387465,"Health, Education, Care and Safeguarding",Adult Social Care,101,Third Party Payments,505,Private Contractors,5042,Revenue,22.RESIDENTIAL
05/06/2017,1447674,488.15,AKARI CARE HOMES LIMITED,387465,"Health, Education, Care and Safeguarding",Adult Social Care,101,Third Party Payments,505,Private Contractors,5042,Revenue,22.RESIDENTIAL
05/06/2017,1447674,488.15,AKARI CARE HOMES LIMITED,387465,"Health, Education, Care and Safeguarding",Adult Social Care,101,Third Party Payments,505,Private Contractors,5042,Revenue,22.RESIDENTIAL
05/06/2017,1447674,488.15,AKARI CARE HOMES LIMITED,387465,"Health, Education, Care and Safeguarding",Adult Social Care,101,Third Party Payments,505,Private Contractors,5042,Revenue,22.RESIDENTIAL
05/06/2017,1447674,488.15,AKARI CARE HOMES LIMITED,387465,"Health, Education, Care and Safeguarding",Adult Social Care,101,Third Party Payments,505,Private Contractors,5042,Revenue,22.RESIDENTIAL
05/06/2017,1447674,488.15,AKARI CARE HOMES LIMITED,387465,"Health, Education, Care and Safeguarding",Adult Social Care,101,Third Party Payments,505,Private Contractors,5042,Revenue,22.RESIDENTIAL
05/06/2017,1447674,488.15,AKARI CARE HOMES LIMITED,387465,"Health, Education, Care and Safeguarding",Adult Social Care,101,Third Party Payments,505,Private Contractors,5042,Revenue,22.RESIDENTIAL
05/06/2017,1447674,488.15,AKARI CARE HOMES LIMITED,387465,"Health, Education, Care and Safeguarding",Adult Social Care,101,Third Party Payments,505,Private Contractors,5042,Revenue,22.RESIDENTIAL
05/06/2017,1447674,488.15,AKARI CARE HOMES LIMITED,387465,"Health, Education, Care and Safeguarding",Adult Social Care,101,Third Party Payments,505,Private Contractors,5042,Revenue,22.RESIDENTIAL
05/06/2017,1447674,508.70,AKARI CARE HOMES LIMITED,387465,"Health, Education, Care and Safeguarding",Adult Social Care,101,Third Party Payments,505,Private Contractors,5042,Revenue,22.RESIDENTIAL
05/06/2017,1447674,508.70,AKARI CARE HOMES LIMITED,387465,"Health, Education, Care and Safeguarding",Adult Social Care,101,Third Party Payments,505,Private Contractors,5042,Revenue,22.RESIDENTIAL
05/06/2017,1447674,508.70,AKARI CARE HOMES LIMITED,387465,"Health, Education, Care and Safeguarding",Adult Social Care,101,Third Party Payments,505,Private Contractors,5042,Revenue,22.RESIDENTIAL
05/06/2017,1447674,508.70,AKARI CARE HOMES LIMITED,387465,"Health, Education, Care and Safeguarding",Adult Social Care,101,Third Party Payments,505,Private Contractors,5042,Revenue,22.RESIDENTIAL
05/06/2017,1447674,508.70,AKARI CARE HOMES LIMITED,387465,"Health, Education, Care and Safeguarding",Adult Social Care,101,Third Party Payments,505,Private Contractors,5042,Revenue,22.RESIDENTIAL
05/06/2017,1447674,508.70,AKARI CARE HOMES LIMITED,387465,"Health, Education, Care and Safeguarding",Adult Social Care,101,Third Party Payments,505,Private Contractors,5042,Revenue,22.RESIDENTIAL
05/06/2017,1447674,508.70,AKARI CARE HOMES LIMITED,387465,"Health, Education, Care and Safeguarding",Adult Social Care,101,Third Party Payments,505,Private Contractors,5042,Revenue,22.RESIDENTIAL
05/06/2017,1447674,508.70,AKARI CARE HOMES LIMITED,387465,"Health, Education, Care and Safeguarding",Adult Social Care,101,Third Party Payments,505,Private Contractors,5042,Revenue,22.RESIDENTIAL
05/06/2017,1447674,508.70,AKARI CARE HOMES LIMITED,387465,"Health, Education, Care and Safeguarding",Adult Social Care,101,Third Party Payments,505,Private Contractors,5042,Revenue,22.RESIDENTIAL
05/06/2017,1447674,508.70,AKARI CARE HOMES LIMITED,387465,"Health, Education, Care and Safeguarding",Adult Social Care,101,Third Party Payments,505,Private Contractors,5042,Revenue,22.RESIDENTIAL
05/06/2017,1447674,508.70,AKARI CARE HOMES LIMITED,387465,"Health, Education, Care and Safeguarding",Adult Social Care,101,Third Party Payments,505,Private Contractors,5042,Revenue,22.RESIDENTIAL
05/06/2017,1447674,508.70,AKARI CARE HOMES LIMITED,387465,"Health, Education, Care and Safeguarding",Adult Social Care,101,Third Party Payments,505,Private Contractors,5042,Revenue,22.RESIDENTIAL
05/06/2017,1447674,508.70,AKARI CARE HOMES LIMITED,387465,"Health, Education, Care and Safeguarding",Adult Social Care,101,Third Party Payments,505,Private Contractors,5042,Revenue,22.RESIDENTIAL
05/06/2017,1447674,508.70,AKARI CARE HOMES LIMITED,387465,"Health, Education, Care and Safeguarding",Adult Social Care,101,Third Party Payments,505,Private Contractors,5042,Revenue,22.RESIDENTIAL
05/06/2017,1447674,508.70,AKARI CARE HOMES LIMITED,387465,"Health, Education, Care and Safeguarding",Adult Social Care,101,Third Party Payments,505,Private Contractors,5042,Revenue,22.RESIDENTIAL
05/06/2017,1447674,508.70,AKARI CARE HOMES LIMITED,387465,"Health, Education, Care and Safeguarding",Adult Social Care,101,Third Party Payments,505,Private Contractors,5042,Revenue,22.RESIDENTIAL
05/06/2017,1447674,508.70,AKARI CARE HOMES LIMITED,387465,"Health, Education, Care and Safeguarding",Adult Social Care,101,Third Party Payments,505,Private Contractors,5042,Revenue,22.RESIDENTIAL
05/06/2017,1447674,508.70,AKARI CARE HOMES LIMITED,387465,"Health, Education, Care and Safeguarding",Adult Social Care,101,Third Party Payments,505,Private Contractors,5042,Revenue,22.RESIDENTIAL
05/06/2017,1447674,508.70,AKARI CARE HOMES LIMITED,387465,"Health, Education, Care and Safeguarding",Adult Social Care,101,Third Party Payments,505,Private Contractors,5042,Revenue,22.RESIDENTIAL
05/06/2017,1447674,508.70,AKARI CARE HOMES LIMITED,387465,"Health, Education, Care and Safeguarding",Adult Social Care,101,Third Party Payments,505,Private Contractors,5042,Revenue,22.RESIDENTIAL
05/06/2017,1447674,508.70,AKARI CARE HOMES LIMITED,387465,"Health, Education, Care and Safeguarding",Adult Social Care,101,Third Party Payments,505,Private Contractors,5042,Revenue,22.RESIDENTIAL
05/06/2017,1447674,508.70,AKARI CARE HOMES LIMITED,387465,"Health, Education, Care and Safeguarding",Adult Social Care,101,Third Party Payments,505,Private Contractors,5042,Revenue,22.RESIDENTIAL
05/06/2017,1447674,508.70,AKARI CARE HOMES LIMITED,387465,"Health, Education, Care and Safeguarding",Adult Social Care,101,Third Party Payments,505,Private Contractors,5042,Revenue,22.RESIDENTIAL
05/06/2017,1447674,508.70,AKARI CARE HOMES LIMITED,387465,"Health, Education, Care and Safeguarding",Adult Social Care,101,Third Party Payments,505,Private Contractors,5042,Revenue,22.RESIDENTIAL
05/06/2017,1447674,511.67,AKARI CARE HOMES LIMITED,387465,"Health, Education, Care and Safeguarding",Adult Social Care,101,Third Party Payments,505,Private Contractors,5042,Revenue,22.RESIDENTIAL
05/06/2017,1447674,511.67,AKARI CARE HOMES LIMITED,387465,"Health, Education, Care and Safeguarding",Adult Social Care,101,Third Party Payments,505,Private Contractors,5042,Revenue,22.RESIDENTIAL
05/06/2017,1447674,520.05,AKARI CARE HOMES LIMITED,387465,"Health, Education, Care and Safeguarding",Adult Social Care,101,Third Party Payments,505,Private Contractors,5042,Revenue,22.RESIDENTIAL
05/06/2017,1447674,520.05,AKARI CARE HOMES LIMITED,387465,"Health, Education, Care and Safeguarding",Adult Social Care,101,Third Party Payments,505,Private Contractors,5042,Revenue,22.RESIDENTIAL
05/06/2017,1447674,520.05,AKARI CARE HOMES LIMITED,387465,"Health, Education, Care and Safeguarding",Adult Social Care,101,Third Party Payments,505,Private Contractors,5042,Revenue,22.RESIDENTIAL
05/06/2017,1447674,520.05,AKARI CARE HOMES LIMITED,387465,"Health, Education, Care and Safeguarding",Adult Social Care,101,Third Party Payments,505,Private Contractors,5042,Revenue,22.RESIDENTIAL
05/06/2017,1447674,520.05,AKARI CARE HOMES LIMITED,387465,"Health, Education, Care and Safeguarding",Adult Social Care,101,Third Party Payments,505,Private Contractors,5042,Revenue,22.RESIDENTIAL
05/06/2017,1447674,520.05,AKARI CARE HOMES LIMITED,387465,"Health, Education, Care and Safeguarding",Adult Social Care,101,Third Party Payments,505,Private Contractors,5042,Revenue,22.RESIDENTIAL
05/06/2017,1447674,520.05,AKARI CARE HOMES LIMITED,387465,"Health, Education, Care and Safeguarding",Adult Social Care,101,Third Party Payments,505,Private Contractors,5042,Revenue,22.RESIDENTIAL
05/06/2017,1447674,520.05,AKARI CARE HOMES LIMITED,387465,"Health, Education, Care and Safeguarding",Adult Social Care,101,Third Party Payments,505,Private Contractors,5042,Revenue,22.RESIDENTIAL
05/06/2017,1447674,520.05,AKARI CARE HOMES LIMITED,387465,"Health, Education, Care and Safeguarding",Adult Social Care,101,Third Party Payments,505,Private Contractors,5042,Revenue,22.RESIDENTIAL
05/06/2017,1447674,520.05,AKARI CARE HOMES LIMITED,387465,"Health, Education, Care and Safeguarding",Adult Social Care,101,Third Party Payments,505,Private Contractors,5042,Revenue,22.RESIDENTIAL
05/06/2017,1447674,520.05,AKARI CARE HOMES LIMITED,387465,"Health, Education, Care and Safeguarding",Adult Social Care,101,Third Party Payments,505,Private Contractors,5042,Revenue,22.RESIDENTIAL
05/06/2017,1447674,520.05,AKARI CARE HOMES LIMITED,387465,"Health, Education, Care and Safeguarding",Adult Social Care,101,Third Party Payments,505,Private Contractors,5042,Revenue,22.RESIDENTIAL
05/06/2017,1447674,520.05,AKARI CARE HOMES LIMITED,387465,"Health, Education, Care and Safeguarding",Adult Social Care,101,Third Party Payments,505,Private Contractors,5042,Revenue,22.RESIDENTIAL
05/06/2017,1447674,520.05,AKARI CARE HOMES LIMITED,387465,"Health, Education, Care and Safeguarding",Adult Social Care,101,Third Party Payments,505,Private Contractors,5042,Revenue,22.RESIDENTIAL
05/06/2017,1447674,520.05,AKARI CARE HOMES LIMITED,387465,"Health, Education, Care and Safeguarding",Adult Social Care,101,Third Party Payments,505,Private Contractors,5042,Revenue,22.RESIDENTIAL
05/06/2017,1447674,520.05,AKARI CARE HOMES LIMITED,387465,"Health, Education, Care and Safeguarding",Adult Social Care,101,Third Party Payments,505,Private Contractors,5042,Revenue,22.RESIDENTIAL
05/06/2017,1447674,520.05,AKARI CARE HOMES LIMITED,387465,"Health, Education, Care and Safeguarding",Adult Social Care,101,Third Party Payments,505,Private Contractors,5042,Revenue,22.RESIDENTIAL
05/06/2017,1447674,520.05,AKARI CARE HOMES LIMITED,387465,"Health, Education, Care and Safeguarding",Adult Social Care,101,Third Party Payments,505,Private Contractors,5042,Revenue,22.RESIDENTIAL
05/06/2017,1447674,520.05,AKARI CARE HOMES LIMITED,387465,"Health, Education, Care and Safeguarding",Adult Social Care,101,Third Party Payments,505,Private Contractors,5042,Revenue,22.RESIDENTIAL
05/06/2017,1447674,520.05,AKARI CARE HOMES LIMITED,387465,"Health, Education, Care and Safeguarding",Adult Social Care,101,Third Party Payments,505,Private Contractors,5042,Revenue,22.RESIDENTIAL
05/06/2017,1447674,520.05,AKARI CARE HOMES LIMITED,387465,"Health, Education, Care and Safeguarding",Adult Social Care,101,Third Party Payments,505,Private Contractors,5042,Revenue,22.RESIDENTIAL
05/06/2017,1447674,520.05,AKARI CARE HOMES LIMITED,387465,"Health, Education, Care and Safeguarding",Adult Social Care,101,Third Party Payments,505,Private Contractors,5042,Revenue,22.RESIDENTIAL
05/06/2017,1447674,520.05,AKARI CARE HOMES LIMITED,387465,"Health, Education, Care and Safeguarding",Adult Social Care,101,Third Party Payments,505,Private Contractors,5042,Revenue,22.RESIDENTIAL
05/06/2017,1447674,520.05,AKARI CARE HOMES LIMITED,387465,"Health, Education, Care and Safeguarding",Adult Social Care,101,Third Party Payments,505,Private Contractors,5042,Revenue,22.RESIDENTIAL
05/06/2017,1447674,520.05,AKARI CARE HOMES LIMITED,387465,"Health, Education, Care and Safeguarding",Adult Social Care,101,Third Party Payments,505,Private Contractors,5042,Revenue,22.RESIDENTIAL
05/06/2017,1447674,520.05,AKARI CARE HOMES LIMITED,387465,"Health, Education, Care and Safeguarding",Adult Social Care,101,Third Party Payments,505,Private Contractors,5042,Revenue,22.RESIDENTIAL
05/06/2017,1447674,520.05,AKARI CARE HOMES LIMITED,387465,"Health, Education, Care and Safeguarding",Adult Social Care,101,Third Party Payments,505,Private Contractors,5042,Revenue,22.RESIDENTIAL
05/06/2017,1447674,520.05,AKARI CARE HOMES LIMITED,387465,"Health, Education, Care and Safeguarding",Adult Social Care,101,Third Party Payments,505,Private Contractors,5042,Revenue,22.RESIDENTIAL
05/06/2017,1447674,520.05,AKARI CARE HOMES LIMITED,387465,"Health, Education, Care and Safeguarding",Adult Social Care,101,Third Party Payments,505,Private Contractors,5042,Revenue,22.RESIDENTIAL
05/06/2017,1447674,520.05,AKARI CARE HOMES LIMITED,387465,"Health, Education, Care and Safeguarding",Adult Social Care,101,Third Party Payments,505,Private Contractors,5042,Revenue,22.RESIDENTIAL
05/06/2017,1447674,520.05,AKARI CARE HOMES LIMITED,387465,"Health, Education, Care and Safeguarding",Adult Social Care,101,Third Party Payments,505,Private Contractors,5042,Revenue,22.RESIDENTIAL
05/06/2017,1447674,520.05,AKARI CARE HOMES LIMITED,387465,"Health, Education, Care and Safeguarding",Adult Social Care,101,Third Party Payments,505,Private Contractors,5042,Revenue,22.RESIDENTIAL
05/06/2017,1447674,520.05,AKARI CARE HOMES LIMITED,387465,"Health, Education, Care and Safeguarding",Adult Social Care,101,Third Party Payments,505,Private Contractors,5042,Revenue,22.RESIDENTIAL
05/06/2017,1447674,520.05,AKARI CARE HOMES LIMITED,387465,"Health, Education, Care and Safeguarding",Adult Social Care,101,Third Party Payments,505,Private Contractors,5042,Revenue,22.RESIDENTIAL
05/06/2017,1447674,520.05,AKARI CARE HOMES LIMITED,387465,"Health, Education, Care and Safeguarding",Adult Social Care,101,Third Party Payments,505,Private Contractors,5042,Revenue,22.RESIDENTIAL
05/06/2017,1447674,520.05,AKARI CARE HOMES LIMITED,387465,"Health, Education, Care and Safeguarding",Adult Social Care,101,Third Party Payments,505,Private Contractors,5042,Revenue,22.RESIDENTIAL
05/06/2017,1447674,520.05,AKARI CARE HOMES LIMITED,387465,"Health, Education, Care and Safeguarding",Adult Social Care,101,Third Party Payments,505,Private Contractors,5042,Revenue,22.RESIDENTIAL
05/06/2017,1447674,520.05,AKARI CARE HOMES LIMITED,387465,"Health, Education, Care and Safeguarding",Adult Social Care,101,Third Party Payments,505,Private Contractors,5042,Revenue,22.RESIDENTIAL
05/06/2017,1447674,520.05,AKARI CARE HOMES LIMITED,387465,"Health, Education, Care and Safeguarding",Adult Social Care,101,Third Party Payments,505,Private Contractors,5042,Revenue,22.RESIDENTIAL
05/06/2017,1447674,520.05,AKARI CARE HOMES LIMITED,387465,"Health, Education, Care and Safeguarding",Adult Social Care,101,Third Party Payments,505,Private Contractors,5042,Revenue,22.RESIDENTIAL
05/06/2017,1447674,520.05,AKARI CARE HOMES LIMITED,387465,"Health, Education, Care and Safeguarding",Adult Social Care,101,Third Party Payments,505,Private Contractors,5042,Revenue,22.RESIDENTIAL
05/06/2017,1447674,520.05,AKARI CARE HOMES LIMITED,387465,"Health, Education, Care and Safeguarding",Adult Social Care,101,Third Party Payments,505,Private Contractors,5042,Revenue,22.RESIDENTIAL
05/06/2017,1447674,520.05,AKARI CARE HOMES LIMITED,387465,"Health, Education, Care and Safeguarding",Adult Social Care,101,Third Party Payments,505,Private Contractors,5042,Revenue,22.RESIDENTIAL
05/06/2017,1447674,520.05,AKARI CARE HOMES LIMITED,387465,"Health, Education, Care and Safeguarding",Adult Social Care,101,Third Party Payments,505,Private Contractors,5042,Revenue,22.RESIDENTIAL
05/06/2017,1447674,520.05,AKARI CARE HOMES LIMITED,387465,"Health, Education, Care and Safeguarding",Adult Social Care,101,Third Party Payments,505,Private Contractors,5042,Revenue,22.RESIDENTIAL
05/06/2017,1447674,520.05,AKARI CARE HOMES LIMITED,387465,"Health, Education, Care and Safeguarding",Adult Social Care,101,Third Party Payments,505,Private Contractors,5042,Revenue,22.RESIDENTIAL
05/06/2017,1447674,520.05,AKARI CARE HOMES LIMITED,387465,"Health, Education, Care and Safeguarding",Adult Social Care,101,Third Party Payments,505,Private Contractors,5042,Revenue,22.RESIDENTIAL
05/06/2017,1447674,520.05,AKARI CARE HOMES LIMITED,387465,"Health, Education, Care and Safeguarding",Adult Social Care,101,Third Party Payments,505,Private Contractors,5042,Revenue,22.RESIDENTIAL
05/06/2017,1447674,520.05,AKARI CARE HOMES LIMITED,387465,"Health, Education, Care and Safeguarding",Adult Social Care,101,Third Party Payments,505,Private Contractors,5042,Revenue,22.RESIDENTIAL
05/06/2017,1447674,520.05,AKARI CARE HOMES LIMITED,387465,"Health, Education, Care and Safeguarding",Adult Social Care,101,Third Party Payments,505,Private Contractors,5042,Revenue,22.RESIDENTIAL
05/06/2017,1447674,520.05,AKARI CARE HOMES LIMITED,387465,"Health, Education, Care and Safeguarding",Adult Social Care,101,Third Party Payments,505,Private Contractors,5042,Revenue,22.RESIDENTIAL
05/06/2017,1447674,520.05,AKARI CARE HOMES LIMITED,387465,"Health, Education, Care and Safeguarding",Adult Social Care,101,Third Party Payments,505,Private Contractors,5042,Revenue,22.RESIDENTIAL
05/06/2017,1447674,520.05,AKARI CARE HOMES LIMITED,387465,"Health, Education, Care and Safeguarding",Adult Social Care,101,Third Party Payments,505,Private Contractors,5042,Revenue,22.RESIDENTIAL
05/06/2017,1447674,520.05,AKARI CARE HOMES LIMITED,387465,"Health, Education, Care and Safeguarding",Adult Social Care,101,Third Party Payments,505,Private Contractors,5042,Revenue,22.RESIDENTIAL
05/06/2017,1447674,520.05,AKARI CARE HOMES LIMITED,387465,"Health, Education, Care and Safeguarding",Adult Social Care,101,Third Party Payments,505,Private Contractors,5042,Revenue,22.RESIDENTIAL
05/06/2017,1447674,520.05,AKARI CARE HOMES LIMITED,387465,"Health, Education, Care and Safeguarding",Adult Social Care,101,Third Party Payments,505,Private Contractors,5042,Revenue,22.RESIDENTIAL
05/06/2017,1447674,520.05,AKARI CARE HOMES LIMITED,387465,"Health, Education, Care and Safeguarding",Adult Social Care,101,Third Party Payments,505,Private Contractors,5042,Revenue,22.RESIDENTIAL
05/06/2017,1447674,520.05,AKARI CARE HOMES LIMITED,387465,"Health, Education, Care and Safeguarding",Adult Social Care,101,Third Party Payments,505,Private Contractors,5042,Revenue,22.RESIDENTIAL
05/06/2017,1447674,520.05,AKARI CARE HOMES LIMITED,387465,"Health, Education, Care and Safeguarding",Adult Social Care,101,Third Party Payments,505,Private Contractors,5042,Revenue,22.RESIDENTIAL
05/06/2017,1447674,520.05,AKARI CARE HOMES LIMITED,387465,"Health, Education, Care and Safeguarding",Adult Social Care,101,Third Party Payments,505,Private Contractors,5042,Revenue,22.RESIDENTIAL
05/06/2017,1447674,520.05,AKARI CARE HOMES LIMITED,387465,"Health, Education, Care and Safeguarding",Adult Social Care,101,Third Party Payments,505,Private Contractors,5042,Revenue,22.RESIDENTIAL
05/06/2017,1447674,520.05,AKARI CARE HOMES LIMITED,387465,"Health, Education, Care and Safeguarding",Adult Social Care,101,Third Party Payments,505,Private Contractors,5042,Revenue,22.RESIDENTIAL
05/06/2017,1447674,538.64,AKARI CARE HOMES LIMITED,387465,"Health, Education, Care and Safeguarding",Adult Social Care,101,Third Party Payments,505,Private Contractors,5042,Revenue,22.RESIDENTIAL
05/06/2017,1447674,538.64,AKARI CARE HOMES LIMITED,387465,"Health, Education, Care and Safeguarding",Adult Social Care,101,Third Party Payments,505,Private Contractors,5042,Revenue,22.RESIDENTIAL
05/06/2017,1447674,538.64,AKARI CARE HOMES LIMITED,387465,"Health, Education, Care and Safeguarding",Adult Social Care,101,Third Party Payments,505,Private Contractors,5042,Revenue,22.RESIDENTIAL
05/06/2017,1447674,538.64,AKARI CARE HOMES LIMITED,387465,"Health, Education, Care and Safeguarding",Adult Social Care,101,Third Party Payments,505,Private Contractors,5042,Revenue,22.RESIDENTIAL
05/06/2017,1447674,538.64,AKARI CARE HOMES LIMITED,387465,"Health, Education, Care and Safeguarding",Adult Social Care,101,Third Party Payments,505,Private Contractors,5042,Revenue,22.RESIDENTIAL
05/06/2017,1447674,538.64,AKARI CARE HOMES LIMITED,387465,"Health, Education, Care and Safeguarding",Adult Social Care,101,Third Party Payments,505,Private Contractors,5042,Revenue,22.RESIDENTIAL
05/06/2017,1447674,538.64,AKARI CARE HOMES LIMITED,387465,"Health, Education, Care and Safeguarding",Adult Social Care,101,Third Party Payments,505,Private Contractors,5042,Revenue,22.RESIDENTIAL
05/06/2017,1447674,538.64,AKARI CARE HOMES LIMITED,387465,"Health, Education, Care and Safeguarding",Adult Social Care,101,Third Party Payments,505,Private Contractors,5042,Revenue,22.RESIDENTIAL
05/06/2017,1447674,538.64,AKARI CARE HOMES LIMITED,387465,"Health, Education, Care and Safeguarding",Adult Social Care,101,Third Party Payments,505,Private Contractors,5042,Revenue,22.RESIDENTIAL
05/06/2017,1447674,538.64,AKARI CARE HOMES LIMITED,387465,"Health, Education, Care and Safeguarding",Adult Social Care,101,Third Party Payments,505,Private Contractors,5042,Revenue,22.RESIDENTIAL
05/06/2017,1447674,538.64,AKARI CARE HOMES LIMITED,387465,"Health, Education, Care and Safeguarding",Adult Social Care,101,Third Party Payments,505,Private Contractors,5042,Revenue,22.RESIDENTIAL
05/06/2017,1447674,538.64,AKARI CARE HOMES LIMITED,387465,"Health, Education, Care and Safeguarding",Adult Social Care,101,Third Party Payments,505,Private Contractors,5042,Revenue,22.RESIDENTIAL
05/06/2017,1447674,538.64,AKARI CARE HOMES LIMITED,387465,"Health, Education, Care and Safeguarding",Adult Social Care,101,Third Party Payments,505,Private Contractors,5042,Revenue,22.RESIDENTIAL
05/06/2017,1447674,538.64,AKARI CARE HOMES LIMITED,387465,"Health, Education, Care and Safeguarding",Adult Social Care,101,Third Party Payments,505,Private Contractors,5042,Revenue,22.RESIDENTIAL
05/06/2017,1447674,538.64,AKARI CARE HOMES LIMITED,387465,"Health, Education, Care and Safeguarding",Adult Social Care,101,Third Party Payments,505,Private Contractors,5042,Revenue,22.RESIDENTIAL
05/06/2017,1447674,538.64,AKARI CARE HOMES LIMITED,387465,"Health, Education, Care and Safeguarding",Adult Social Care,101,Third Party Payments,505,Private Contractors,5042,Revenue,22.RESIDENTIAL
05/06/2017,1447674,538.86,AKARI CARE HOMES LIMITED,387465,"Health, Education, Care and Safeguarding",Adult Social Care,101,Third Party Payments,505,Private Contractors,5042,Revenue,22.RESIDENTIAL
05/06/2017,1447674,538.86,AKARI CARE HOMES LIMITED,387465,"Health, Education, Care and Safeguarding",Adult Social Care,101,Third Party Payments,505,Private Contractors,5042,Revenue,22.RESIDENTIAL
05/06/2017,1447674,538.86,AKARI CARE HOMES LIMITED,387465,"Health, Education, Care and Safeguarding",Adult Social Care,101,Third Party Payments,505,Private Contractors,5042,Revenue,22.RESIDENTIAL
05/06/2017,1447674,538.86,AKARI CARE HOMES LIMITED,387465,"Health, Education, Care and Safeguarding",Adult Social Care,101,Third Party Payments,505,Private Contractors,5042,Revenue,22.RESIDENTIAL
05/06/2017,1447674,538.86,AKARI CARE HOMES LIMITED,387465,"Health, Education, Care and Safeguarding",Adult Social Care,101,Third Party Payments,505,Private Contractors,5042,Revenue,22.RESIDENTIAL
05/06/2017,1447674,538.86,AKARI CARE HOMES LIMITED,387465,"Health, Education, Care and Safeguarding",Adult Social Care,101,Third Party Payments,505,Private Contractors,5042,Revenue,22.RESIDENTIAL
05/06/2017,1447674,561.12,AKARI CARE HOMES LIMITED,387465,"Health, Education, Care and Safeguarding",Adult Social Care,101,Third Party Payments,505,Private Contractors,5042,Revenue,22.RESIDENTIAL
05/06/2017,1447674,562.36,AKARI CARE HOMES LIMITED,387465,"Health, Education, Care and Safeguarding",Adult Social Care,101,Third Party Payments,505,Private Contractors,5042,Revenue,22.RESIDENTIAL
05/06/2017,1447674,628.01,AKARI CARE HOMES LIMITED,387465,"Health, Education, Care and Safeguarding",Public Health,112,Third Party Payments,505,Other Establishments,5041,Revenue,22.RESIDENTIAL
05/06/2017,1447674,643.20,AKARI CARE HOMES LIMITED,387465,"Health, Education, Care and Safeguarding",Public Health,112,Third Party Payments,505,Other Establishments,5041,Revenue,22.RESIDENTIAL
05/06/2017,1447674,644.40,AKARI CARE HOMES LIMITED,387465,"Health, Education, Care and Safeguarding",Public Health,112,Third Party Payments,505,Other Establishments,5041,Revenue,22.RESIDENTIAL
05/06/2017,1447674,644.40,AKARI CARE HOMES LIMITED,387465,"Health, Education, Care and Safeguarding",Public Health,112,Third Party Payments,505,Other Establishments,5041,Revenue,22.RESIDENTIAL
05/06/2017,1447674,644.40,AKARI CARE HOMES LIMITED,387465,"Health, Education, Care and Safeguarding",Public Health,112,Third Party Payments,505,Other Establishments,5041,Revenue,22.RESIDENTIAL
05/06/2017,1447674,644.40,AKARI CARE HOMES LIMITED,387465,"Health, Education, Care and Safeguarding",Public Health,112,Third Party Payments,505,Other Establishments,5041,Revenue,22.RESIDENTIAL
05/06/2017,1447674,644.40,AKARI CARE HOMES LIMITED,387465,"Health, Education, Care and Safeguarding",Public Health,112,Third Party Payments,505,Other Establishments,5041,Revenue,22.RESIDENTIAL
05/06/2017,1447674,644.40,AKARI CARE HOMES LIMITED,387465,"Health, Education, Care and Safeguarding",Public Health,112,Third Party Payments,505,Other Establishments,5041,Revenue,22.RESIDENTIAL
05/06/2017,1447674,644.40,AKARI CARE HOMES LIMITED,387465,"Health, Education, Care and Safeguarding",Public Health,112,Third Party Payments,505,Other Establishments,5041,Revenue,22.RESIDENTIAL
05/06/2017,1447674,644.40,AKARI CARE HOMES LIMITED,387465,"Health, Education, Care and Safeguarding",Public Health,112,Third Party Payments,505,Other Establishments,5041,Revenue,22.RESIDENTIAL
05/06/2017,1447674,656.32,AKARI CARE HOMES LIMITED,387465,"Health, Education, Care and Safeguarding",Public Health,112,Third Party Payments,505,Other Establishments,5041,Revenue,22.RESIDENTIAL
05/06/2017,1447674,662.56,AKARI CARE HOMES LIMITED,387465,"Health, Education, Care and Safeguarding",Public Health,112,Third Party Payments,505,Other Establishments,5041,Revenue,22.RESIDENTIAL
05/06/2017,1447674,662.56,AKARI CARE HOMES LIMITED,387465,"Health, Education, Care and Safeguarding",Public Health,112,Third Party Payments,505,Other Establishments,5041,Revenue,22.RESIDENTIAL
05/06/2017,1447674,664.32,AKARI CARE HOMES LIMITED,387465,"Health, Education, Care and Safeguarding",Public Health,112,Third Party Payments,505,Other Establishments,5041,Revenue,22.RESIDENTIAL
05/06/2017,1447674,664.32,AKARI CARE HOMES LIMITED,387465,"Health, Education, Care and Safeguarding",Public Health,112,Third Party Payments,505,Other Establishments,5041,Revenue,22.RESIDENTIAL
05/06/2017,1447674,664.32,AKARI CARE HOMES LIMITED,387465,"Health, Education, Care and Safeguarding",Public Health,112,Third Party Payments,505,Other Establishments,5041,Revenue,22.RESIDENTIAL
05/06/2017,1447674,664.32,AKARI CARE HOMES LIMITED,387465,"Health, Education, Care and Safeguarding",Public Health,112,Third Party Payments,505,Other Establishments,5041,Revenue,22.RESIDENTIAL
05/06/2017,1447674,664.32,AKARI CARE HOMES LIMITED,387465,"Health, Education, Care and Safeguarding",Public Health,112,Third Party Payments,505,Other Establishments,5041,Revenue,22.RESIDENTIAL
05/06/2017,1447674,664.32,AKARI CARE HOMES LIMITED,387465,"Health, Education, Care and Safeguarding",Public Health,112,Third Party Payments,505,Other Establishments,5041,Revenue,22.RESIDENTIAL
05/06/2017,1447674,664.32,AKARI CARE HOMES LIMITED,387465,"Health, Education, Care and Safeguarding",Public Health,112,Third Party Payments,505,Other Establishments,5041,Revenue,22.RESIDENTIAL
05/06/2017,1447674,664.32,AKARI CARE HOMES LIMITED,387465,"Health, Education, Care and Safeguarding",Public Health,112,Third Party Payments,505,Other Establishments,5041,Revenue,22.RESIDENTIAL
05/06/2017,1447674,664.32,AKARI CARE HOMES LIMITED,387465,"Health, Education, Care and Safeguarding",Adult Social Care,101,Third Party Payments,505,Other Establishments,5041,Revenue,22.RESIDENTIAL
05/06/2017,1447674,664.32,AKARI CARE HOMES LIMITED,387465,"Health, Education, Care and Safeguarding",Adult Social Care,101,Third Party Payments,505,Other Establishments,5041,Revenue,22.RESIDENTIAL
05/06/2017,1447674,664.32,AKARI CARE HOMES LIMITED,387465,"Health, Education, Care and Safeguarding",Adult Social Care,101,Third Party Payments,505,Other Establishments,5041,Revenue,22.RESIDENTIAL
05/06/2017,1447674,664.32,AKARI CARE HOMES LIMITED,387465,"Health, Education, Care and Safeguarding",Public Health,112,Third Party Payments,505,Other Establishments,5041,Revenue,22.RESIDENTIAL
05/06/2017,1447674,664.32,AKARI CARE HOMES LIMITED,387465,"Health, Education, Care and Safeguarding",Public Health,112,Third Party Payments,505,Other Establishments,5041,Revenue,22.RESIDENTIAL
05/06/2017,1447674,664.32,AKARI CARE HOMES LIMITED,387465,"Health, Education, Care and Safeguarding",Public Health,112,Third Party Payments,505,Other Establishments,5041,Revenue,22.RESIDENTIAL
05/06/2017,1447674,669.30,AKARI CARE HOMES LIMITED,387465,"Health, Education, Care and Safeguarding",Public Health,112,Third Party Payments,505,Other Establishments,5041,Revenue,22.RESIDENTIAL
05/06/2017,1447674,675.10,AKARI CARE HOMES LIMITED,387465,"Health, Education, Care and Safeguarding",Adult Social Care,101,Third Party Payments,505,Other Establishments,5041,Revenue,22.RESIDENTIAL
05/06/2017,1447674,682.48,AKARI CARE HOMES LIMITED,387465,"Health, Education, Care and Safeguarding",Public Health,112,Third Party Payments,505,Other Establishments,5041,Revenue,22.RESIDENTIAL
05/06/2017,1447674,703.25,AKARI CARE HOMES LIMITED,387465,"Health, Education, Care and Safeguarding",Public Health,112,Third Party Payments,505,Other Establishments,5041,Revenue,22.RESIDENTIAL
05/06/2017,1447674,732.05,AKARI CARE HOMES LIMITED,387465,"Health, Education, Care and Safeguarding",Public Health,112,Third Party Payments,505,Other Establishments,5041,Revenue,22.RESIDENTIAL
05/06/2017,1447674,1063.20,AKARI CARE HOMES LIMITED,387465,"Health, Education, Care and Safeguarding",Adult Social Care,101,Third Party Payments,505,Private Contractors,5042,Revenue,22.RESIDENTIAL
05/06/2017,1447674,1284.70,AKARI CARE HOMES LIMITED,387465,"Health, Education, Care and Safeguarding",Adult Social Care,101,Third Party Payments,505,Other Establishments,5041,Revenue,22.RESIDENTIAL
05/06/2017,1447674,3693.53,AKARI CARE HOMES LIMITED,387465,"Health, Education, Care and Safeguarding",Adult Social Care,101,Third Party Payments,505,Private Contractors,5042,Revenue,22.RESIDENTIAL
05/06/2017,1447674,4002.96,AKARI CARE HOMES LIMITED,387465,"Health, Education, Care and Safeguarding",Adult Social Care,101,Third Party Payments,505,Private Contractors,5042,Revenue,22.RESIDENTIAL
05/06/2017,1447674,4239.55,AKARI CARE HOMES LIMITED,387465,"Health, Education, Care and Safeguarding",Adult Social Care,101,Third Party Payments,505,Private Contractors,5042,Revenue,22.RESIDENTIAL
05/06/2017,1447674,4239.55,AKARI CARE HOMES LIMITED,387465,"Health, Education, Care and Safeguarding",Adult Social Care,101,Third Party Payments,505,Private Contractors,5042,Revenue,22.RESIDENTIAL
05/06/2017,1447674,4308.99,AKARI CARE HOMES LIMITED,387465,"Health, Education, Care and Safeguarding",Adult Social Care,101,Third Party Payments,505,Private Contractors,5042,Revenue,22.RESIDENTIAL
05/06/2017,1447674,4464.84,AKARI CARE HOMES LIMITED,387465,"Health, Education, Care and Safeguarding",Adult Social Care,101,Third Party Payments,505,Private Contractors,5042,Revenue,22.RESIDENTIAL
05/06/2017,1447674,4464.84,AKARI CARE HOMES LIMITED,387465,"Health, Education, Care and Safeguarding",Adult Social Care,101,Third Party Payments,505,Private Contractors,5042,Revenue,22.RESIDENTIAL
05/06/2017,1447674,4464.84,AKARI CARE HOMES LIMITED,387465,"Health, Education, Care and Safeguarding",Adult Social Care,101,Third Party Payments,505,Private Contractors,5042,Revenue,22.RESIDENTIAL
05/06/2017,1447674,4464.84,AKARI CARE HOMES LIMITED,387465,"Health, Education, Care and Safeguarding",Adult Social Care,101,Third Party Payments,505,Private Contractors,5042,Revenue,22.RESIDENTIAL
05/06/2017,1447674,4464.84,AKARI CARE HOMES LIMITED,387465,"Health, Education, Care and Safeguarding",Adult Social Care,101,Third Party Payments,505,Private Contractors,5042,Revenue,22.RESIDENTIAL
05/06/2017,1447674,4649.28,AKARI CARE HOMES LIMITED,387465,"Health, Education, Care and Safeguarding",Adult Social Care,101,Third Party Payments,505,Private Contractors,5042,Revenue,22.RESIDENTIAL
05/06/2017,1447674,4659.55,AKARI CARE HOMES LIMITED,387465,"Health, Education, Care and Safeguarding",Adult Social Care,101,Third Party Payments,505,Private Contractors,5042,Revenue,22.RESIDENTIAL
05/06/2017,1447674,5714.29,AKARI CARE HOMES LIMITED,387465,"Health, Education, Care and Safeguarding",Adult Social Care,101,Third Party Payments,505,Other Establishments,5041,Revenue,22.RESIDENTIAL
05/06/2017,1447675,500.00,Redacted Personal Data,394653,"Health, Education, Care and Safeguarding",Adult Social Care,101,Third Party Payments,505,Private Contractors,5042,Revenue,22.RESIDENTIAL
05/06/2017,1447676,485.63,CREATIVE SUPPORT LTD,359340,"Health, Education, Care and Safeguarding",Adult Social Care,101,Third Party Payments,505,Private Contractors,5042,Revenue,22.HOMECARE
05/06/2017,1447676,504.35,CREATIVE SUPPORT LTD,359340,"Health, Education, Care and Safeguarding",Adult Social Care,101,Third Party Payments,505,Private Contractors,5042,Revenue,22.HOMECARE
05/06/2017,1447676,517.30,CREATIVE SUPPORT LTD,359340,"Health, Education, Care and Safeguarding",Adult Social Care,101,Third Party Payments,505,Private Contractors,5042,Revenue,22.HOMECARE
05/06/2017,1447676,530.25,CREATIVE SUPPORT LTD,359340,"Health, Education, Care and Safeguarding",Adult Social Care,101,Third Party Payments,505,Private Contractors,5042,Revenue,22.HOMECARE
05/06/2017,1447676,582.05,CREATIVE SUPPORT LTD,359340,"Health, Education, Care and Safeguarding",Adult Social Care,101,Third Party Payments,505,Private Contractors,5042,Revenue,22.HOMECARE
05/06/2017,1447676,645.99,CREATIVE SUPPORT LTD,359340,"Health, Education, Care and Safeguarding",Adult Social Care,101,Third Party Payments,505,Private Contractors,5042,Revenue,22.HOMECARE
05/06/2017,1447676,958.23,CREATIVE SUPPORT LTD,359340,"Health, Education, Care and Safeguarding",Adult Social Care,101,Third Party Payments,505,Private Contractors,5042,Revenue,22.HOMECARE
05/06/2017,1447676,1874.95,CREATIVE SUPPORT LTD,359340,"Health, Education, Care and Safeguarding",Adult Social Care,101,Third Party Payments,505,Private Contractors,5042,Revenue,22.HOMECARE
05/06/2017,1447678,841.96,WILKINSON PARK,322345,"Health, Education, Care and Safeguarding",Adult Social Care,101,Third Party Payments,505,Private Contractors,5042,Revenue,22.RESIDENTIAL
05/06/2017,1447678,925.41,WILKINSON PARK,322345,"Health, Education, Care and Safeguarding",Adult Social Care,101,Third Party Payments,505,Private Contractors,5042,Revenue,22.RESIDENTIAL
05/06/2017,1447678,1275.00,WILKINSON PARK,322345,"Health, Education, Care and Safeguarding",Adult Social Care,101,Third Party Payments,505,Private Contractors,5042,Revenue,22.RESIDENTIAL
05/06/2017,1447678,1633.10,WILKINSON PARK,322345,"Health, Education, Care and Safeguarding",Adult Social Care,101,Third Party Payments,505,Private Contractors,5042,Revenue,22.RESIDENTIAL
05/06/2017,1447679,449.79,Redacted Personal Data,394343,"Health, Education, Care and Safeguarding",Adult Social Care,101,Third Party Payments,505,Private Contractors,5042,Revenue,22.RESIDENTIAL
05/06/2017,1447680,1683.68,LEONARD CHESHIRE DISABILITY,375897,"Health, Education, Care and Safeguarding",Adult Social Care,101,Third Party Payments,505,Other Establishments,5041,Revenue,22.SUPPORT SERVICES
05/06/2017,1447682,293.53,Redacted Personal Data,389516,"Health, Education, Care and Safeguarding",Adult Social Care,101,Third Party Payments,505,Other Establishments,5041,Revenue,00.NON INFLUENCIBLE
05/06/2017,1447683,284.04,Redacted Personal Data,394022,"Health, Education, Care and Safeguarding",Adult Social Care,101,Third Party Payments,505,Other Establishments,5041,Revenue,NON INDIVIDUAL
05/06/2017,1447683,353.00,Redacted Personal Data,394022,"Health, Education, Care and Safeguarding",Adult Social Care,101,Third Party Payments,505,Other Establishments,5041,Revenue,NON INDIVIDUAL
05/06/2017,1447686,915.80,BARCHESTER HEALTHCARE T/A LONGUEVILLE COURT,393767,"Health, Education, Care and Safeguarding",Public Health,112,Third Party Payments,505,Other Establishments,5041,Revenue,22.RESIDENTIAL
05/06/2017,1447687,1356.71,AUGUSTA CARE LTD,393744,"Health, Education, Care and Safeguarding",Adult Social Care,101,Third Party Payments,505,Private Contractors,5042,Revenue,22.RESIDENTIAL
05/06/2017,1447688,-371.46,ORCHARD CARE HOMES.COM,387538,"Health, Education, Care and Safeguarding",Adult Social Care,101,Third Party Payments,505,Private Contractors,5042,,22.RESIDENTIAL
05/06/2017,1447688,520.05,ORCHARD CARE HOMES.COM,387538,"Health, Education, Care and Safeguarding",Adult Social Care,101,Third Party Payments,505,Private Contractors,5042,Revenue,22.RESIDENTIAL
05/06/2017,1447688,538.64,ORCHARD CARE HOMES.COM,387538,"Health, Education, Care and Safeguarding",Adult Social Care,101,Third Party Payments,505,Private Contractors,5042,Revenue,22.RESIDENTIAL
05/06/2017,1447688,538.64,ORCHARD CARE HOMES.COM,387538,"Health, Education, Care and Safeguarding",Adult Social Care,101,Third Party Payments,505,Private Contractors,5042,Revenue,22.RESIDENTIAL
05/06/2017,1447688,538.64,ORCHARD CARE HOMES.COM,387538,"Health, Education, Care and Safeguarding",Adult Social Care,101,Third Party Payments,505,Private Contractors,5042,Revenue,22.RESIDENTIAL
05/06/2017,1447688,538.64,ORCHARD CARE HOMES.COM,387538,"Health, Education, Care and Safeguarding",Adult Social Care,101,Third Party Payments,505,Private Contractors,5042,Revenue,22.RESIDENTIAL
05/06/2017,1447688,538.64,ORCHARD CARE HOMES.COM,387538,"Health, Education, Care and Safeguarding",Adult Social Care,101,Third Party Payments,505,Private Contractors,5042,Revenue,22.RESIDENTIAL
05/06/2017,1447688,538.64,ORCHARD CARE HOMES.COM,387538,"Health, Education, Care and Safeguarding",Adult Social Care,101,Third Party Payments,505,Private Contractors,5042,Revenue,22.RESIDENTIAL
05/06/2017,1447688,538.64,ORCHARD CARE HOMES.COM,387538,"Health, Education, Care and Safeguarding",Adult Social Care,101,Third Party Payments,505,Private Contractors,5042,Revenue,22.RESIDENTIAL
05/06/2017,1447688,538.64,ORCHARD CARE HOMES.COM,387538,"Health, Education, Care and Safeguarding",Adult Social Care,101,Third Party Payments,505,Private Contractors,5042,Revenue,22.RESIDENTIAL
05/06/2017,1447688,538.64,ORCHARD CARE HOMES.COM,387538,"Health, Education, Care and Safeguarding",Adult Social Care,101,Third Party Payments,505,Private Contractors,5042,Revenue,22.RESIDENTIAL
05/06/2017,1447688,538.64,ORCHARD CARE HOMES.COM,387538,"Health, Education, Care and Safeguarding",Adult Social Care,101,Third Party Payments,505,Private Contractors,5042,Revenue,22.RESIDENTIAL
05/06/2017,1447688,538.64,ORCHARD CARE HOMES.COM,387538,"Health, Education, Care and Safeguarding",Adult Social Care,101,Third Party Payments,505,Private Contractors,5042,Revenue,22.RESIDENTIAL
05/06/2017,1447688,538.64,ORCHARD CARE HOMES.COM,387538,"Health, Education, Care and Safeguarding",Adult Social Care,101,Third Party Payments,505,Private Contractors,5042,Revenue,22.RESIDENTIAL
05/06/2017,1447688,538.64,ORCHARD CARE HOMES.COM,387538,"Health, Education, Care and Safeguarding",Adult Social Care,101,Third Party Payments,505,Private Contractors,5042,Revenue,22.RESIDENTIAL
05/06/2017,1447688,538.64,ORCHARD CARE HOMES.COM,387538,"Health, Education, Care and Safeguarding",Adult Social Care,101,Third Party Payments,505,Private Contractors,5042,Revenue,22.RESIDENTIAL
05/06/2017,1447688,538.64,ORCHARD CARE HOMES.COM,387538,"Health, Education, Care and Safeguarding",Adult Social Care,101,Third Party Payments,505,Private Contractors,5042,Revenue,22.RESIDENTIAL
05/06/2017,1447688,538.64,ORCHARD CARE HOMES.COM,387538,"Health, Education, Care and Safeguarding",Adult Social Care,101,Third Party Payments,505,Private Contractors,5042,Revenue,22.RESIDENTIAL
05/06/2017,1447688,538.64,ORCHARD CARE HOMES.COM,387538,"Health, Education, Care and Safeguarding",Adult Social Care,101,Third Party Payments,505,Private Contractors,5042,Revenue,22.RESIDENTIAL
05/06/2017,1447688,538.64,ORCHARD CARE HOMES.COM,387538,"Health, Education, Care and Safeguarding",Adult Social Care,101,Third Party Payments,505,Private Contractors,5042,Revenue,22.RESIDENTIAL
05/06/2017,1447688,538.64,ORCHARD CARE HOMES.COM,387538,"Health, Education, Care and Safeguarding",Adult Social Care,101,Third Party Payments,505,Private Contractors,5042,Revenue,22.RESIDENTIAL
05/06/2017,1447688,675.10,ORCHARD CARE HOMES.COM,387538,"Health, Education, Care and Safeguarding",Public Health,112,Third Party Payments,505,Other Establishments,5041,Revenue,22.RESIDENTIAL
05/06/2017,1447688,682.48,ORCHARD CARE HOMES.COM,387538,"Health, Education, Care and Safeguarding",Public Health,112,Third Party Payments,505,Other Establishments,5041,Revenue,22.RESIDENTIAL
05/06/2017,1447688,682.48,ORCHARD CARE HOMES.COM,387538,"Health, Education, Care and Safeguarding",Public Health,112,Third Party Payments,505,Other Establishments,5041,Revenue,22.RESIDENTIAL
05/06/2017,1447688,682.48,ORCHARD CARE HOMES.COM,387538,"Health, Education, Care and Safeguarding",Public Health,112,Third Party Payments,505,Other Establishments,5041,Revenue,22.RESIDENTIAL
05/06/2017,1447688,682.48,ORCHARD CARE HOMES.COM,387538,"Health, Education, Care and Safeguarding",Public Health,112,Third Party Payments,505,Other Establishments,5041,Revenue,22.RESIDENTIAL
05/06/2017,1447688,682.48,ORCHARD CARE HOMES.COM,387538,"Health, Education, Care and Safeguarding",Public Health,112,Third Party Payments,505,Other Establishments,5041,Revenue,22.RESIDENTIAL
05/06/2017,1447688,682.48,ORCHARD CARE HOMES.COM,387538,"Health, Education, Care and Safeguarding",Public Health,112,Third Party Payments,505,Other Establishments,5041,Revenue,22.RESIDENTIAL
05/06/2017,1447688,682.48,ORCHARD CARE HOMES.COM,387538,"Health, Education, Care and Safeguarding",Public Health,112,Third Party Payments,505,Other Establishments,5041,Revenue,22.RESIDENTIAL
05/06/2017,1447688,682.48,ORCHARD CARE HOMES.COM,387538,"Health, Education, Care and Safeguarding",Public Health,112,Third Party Payments,505,Other Establishments,5041,Revenue,22.RESIDENTIAL
05/06/2017,1447688,682.48,ORCHARD CARE HOMES.COM,387538,"Health, Education, Care and Safeguarding",Public Health,112,Third Party Payments,505,Other Establishments,5041,Revenue,22.RESIDENTIAL
05/06/2017,1447688,682.48,ORCHARD CARE HOMES.COM,387538,"Health, Education, Care and Safeguarding",Public Health,112,Third Party Payments,505,Other Establishments,5041,Revenue,22.RESIDENTIAL
05/06/2017,1447691,316.00,Redacted Personal Data,393492,"Health, Education, Care and Safeguarding",Adult Social Care,101,Third Party Payments,505,Other Establishments,5041,Revenue,NON INDIVIDUAL
05/06/2017,1447692,423.00,DEAFBLIND ENABLEMENT LTD,390700,"Health, Education, Care and Safeguarding",Adult Social Care,101,Third Party Payments,505,Other Establishments,5041,Revenue,22.SUPPORT SERVICES
05/06/2017,1447693,1438.35,THE WHITE HORSE CARE TRUST,393309,"Health, Education, Care and Safeguarding",Adult Social Care,101,Third Party Payments,505,Private Contractors,5042,Revenue,22.RESIDENTIAL
05/06/2017,1447694,488.15,NORTHRIDGE HEALTHCARE LTD,393276,"Health, Education, Care and Safeguarding",Adult Social Care,101,Third Party Payments,505,Private Contractors,5042,Revenue,22.RESIDENTIAL
05/06/2017,1447694,604.40,NORTHRIDGE HEALTHCARE LTD,393276,"Health, Education, Care and Safeguarding",Adult Social Care,101,Third Party Payments,505,Other Establishments,5041,Revenue,22.RESIDENTIAL
05/06/2017,1447694,644.40,NORTHRIDGE HEALTHCARE LTD,393276,"Health, Education, Care and Safeguarding",Public Health,112,Third Party Payments,505,Other Establishments,5041,Revenue,22.RESIDENTIAL
05/06/2017,1447694,644.40,NORTHRIDGE HEALTHCARE LTD,393276,"Health, Education, Care and Safeguarding",Adult Social Care,101,Third Party Payments,505,Other Establishments,5041,Revenue,22.RESIDENTIAL
05/06/2017,1447694,644.40,NORTHRIDGE HEALTHCARE LTD,393276,"Health, Education, Care and Safeguarding",Adult Social Care,101,Third Party Payments,505,Other Establishments,5041,Revenue,22.RESIDENTIAL
05/06/2017,1447694,644.40,NORTHRIDGE HEALTHCARE LTD,393276,"Health, Education, Care and Safeguarding",Public Health,112,Third Party Payments,505,Other Establishments,5041,Revenue,22.RESIDENTIAL
05/06/2017,1447695,605.00,ARCADIA CARE HOMES,393208,"Health, Education, Care and Safeguarding",Adult Social Care,101,Third Party Payments,505,Private Contractors,5042,Revenue,22.RESIDENTIAL
05/06/2017,1447696,294.23,MEADOW WELL CONNECTED,355522,"Health, Education, Care and Safeguarding",Adult Social Care,101,Third Party Payments,505,Other Establishments,5041,Revenue,22.SUPPORT SERVICES
05/06/2017,1447697,500.62,HELEN MCARDLE CARE,392923,"Health, Education, Care and Safeguarding",Adult Social Care,101,Third Party Payments,505,Private Contractors,5042,Revenue,22.RESIDENTIAL
05/06/2017,1447698,533.90,HELEN MCARDLE CARE,392922,"Health, Education, Care and Safeguarding",Adult Social Care,101,Third Party Payments,505,Private Contractors,5042,Revenue,22.RESIDENTIAL
05/06/2017,1447700,777.00,CARE UK MENTAL HEALTH PARTNERSHIPS LTD,333648,"Health, Education, Care and Safeguarding",Adult Social Care,101,Third Party Payments,505,Private Contractors,5042,Revenue,22.RESIDENTIAL
05/06/2017,1447700,777.00,CARE UK MENTAL HEALTH PARTNERSHIPS LTD,333648,"Health, Education, Care and Safeguarding",Adult Social Care,101,Third Party Payments,505,Private Contractors,5042,Revenue,22.RESIDENTIAL
05/06/2017,1447701,316.00,Redacted Personal Data,392596,"Health, Education, Care and Safeguarding",Adult Social Care,101,Third Party Payments,505,Other Establishments,5041,Revenue,ADV IMAGE
05/06/2017,1447702,549.95,Redacted Personal Data,379947,"Health, Education, Care and Safeguarding",Adult Social Care,101,Third Party Payments,505,Other Establishments,5041,Revenue,00.GRANT
05/06/2017,1447703,1655.77,Redacted Personal Data,371324,"Health, Education, Care and Safeguarding",Adult Social Care,101,Third Party Payments,505,Other Establishments,5041,Revenue,00.NON INFLUENCIBLE
05/06/2017,1447704,273.80,UNITED RESPONSE,330350,"Health, Education, Care and Safeguarding",Adult Social Care,101,Third Party Payments,505,Private Contractors,5042,Revenue,22.SUPPORT SERVICES
05/06/2017,1447704,292.60,UNITED RESPONSE,330350,"Health, Education, Care and Safeguarding",Adult Social Care,101,Third Party Payments,505,Private Contractors,5042,Revenue,22.SUPPORT SERVICES
05/06/2017,1447704,864.39,UNITED RESPONSE,330350,"Health, Education, Care and Safeguarding",Adult Social Care,101,Third Party Payments,505,Private Contractors,5042,Revenue,22.SUPPORT SERVICES
05/06/2017,1447704,909.15,UNITED RESPONSE,330350,"Health, Education, Care and Safeguarding",Adult Social Care,101,Third Party Payments,505,Private Contractors,5042,Revenue,22.SUPPORT SERVICES
05/06/2017,1447704,947.04,UNITED RESPONSE,330350,"Health, Education, Care and Safeguarding",Adult Social Care,101,Third Party Payments,505,Private Contractors,5042,Revenue,22.SUPPORT SERVICES
05/06/2017,1447704,947.04,UNITED RESPONSE,330350,"Health, Education, Care and Safeguarding",Adult Social Care,101,Third Party Payments,505,Private Contractors,5042,Revenue,22.SUPPORT SERVICES
05/06/2017,1447704,991.80,UNITED RESPONSE,330350,"Health, Education, Care and Safeguarding",Adult Social Care,101,Third Party Payments,505,Private Contractors,5042,Revenue,22.SUPPORT SERVICES
05/06/2017,1447704,1029.69,UNITED RESPONSE,330350,"Health, Education, Care and Safeguarding",Adult Social Care,101,Third Party Payments,505,Private Contractors,5042,Revenue,22.SUPPORT SERVICES
05/06/2017,1447704,1039.40,UNITED RESPONSE,330350,"Health, Education, Care and Safeguarding",Adult Social Care,101,Third Party Payments,505,Private Contractors,5042,Revenue,22.SUPPORT SERVICES
05/06/2017,1447704,1136.44,UNITED RESPONSE,330350,"Health, Education, Care and Safeguarding",Adult Social Care,101,Third Party Payments,505,Private Contractors,5042,Revenue,22.SUPPORT SERVICES
05/06/2017,1447704,1170.31,UNITED RESPONSE,330350,"Health, Education, Care and Safeguarding",Adult Social Care,101,Third Party Payments,505,Private Contractors,5042,Revenue,22.SUPPORT SERVICES
05/06/2017,1447704,1214.96,UNITED RESPONSE,330350,"Health, Education, Care and Safeguarding",Adult Social Care,101,Third Party Payments,505,Private Contractors,5042,Revenue,22.SUPPORT SERVICES
05/06/2017,1447704,1214.96,UNITED RESPONSE,330350,"Health, Education, Care and Safeguarding",Adult Social Care,101,Third Party Payments,505,Private Contractors,5042,Revenue,22.SUPPORT SERVICES
05/06/2017,1447704,1230.01,UNITED RESPONSE,330350,"Health, Education, Care and Safeguarding",Adult Social Care,101,Third Party Payments,505,Private Contractors,5042,Revenue,22.SUPPORT SERVICES
05/06/2017,1447704,1230.01,UNITED RESPONSE,330350,"Health, Education, Care and Safeguarding",Adult Social Care,101,Third Party Payments,505,Private Contractors,5042,Revenue,22.SUPPORT SERVICES
05/06/2017,1447704,1230.01,UNITED RESPONSE,330350,"Health, Education, Care and Safeguarding",Adult Social Care,101,Third Party Payments,505,Private Contractors,5042,Revenue,22.SUPPORT SERVICES
05/06/2017,1447704,1378.78,UNITED RESPONSE,330350,"Health, Education, Care and Safeguarding",Adult Social Care,101,Third Party Payments,505,Private Contractors,5042,Revenue,22.SUPPORT SERVICES
05/06/2017,1447704,1384.39,UNITED RESPONSE,330350,"Health, Education, Care and Safeguarding",Adult Social Care,101,Third Party Payments,505,Private Contractors,5042,Revenue,22.SUPPORT SERVICES
05/06/2017,1447704,1388.52,UNITED RESPONSE,330350,"Health, Education, Care and Safeguarding",Adult Social Care,101,Third Party Payments,505,Private Contractors,5042,Revenue,22.SUPPORT SERVICES
05/06/2017,1447704,1388.52,UNITED RESPONSE,330350,"Health, Education, Care and Safeguarding",Adult Social Care,101,Third Party Payments,505,Private Contractors,5042,Revenue,22.SUPPORT SERVICES
05/06/2017,1447704,1392.66,UNITED RESPONSE,330350,"Health, Education, Care and Safeguarding",Adult Social Care,101,Third Party Payments,505,Private Contractors,5042,Revenue,22.SUPPORT SERVICES
05/06/2017,1447704,1534.54,UNITED RESPONSE,330350,"Health, Education, Care and Safeguarding",Adult Social Care,101,Third Party Payments,505,Private Contractors,5042,Revenue,22.SUPPORT SERVICES
05/06/2017,1447704,1591.20,UNITED RESPONSE,330350,"Health, Education, Care and Safeguarding",Adult Social Care,101,Third Party Payments,505,Private Contractors,5042,Revenue,22.SUPPORT SERVICES
05/06/2017,1447704,1591.61,UNITED RESPONSE,330350,"Health, Education, Care and Safeguarding",Adult Social Care,101,Third Party Payments,505,Private Contractors,5042,Revenue,22.SUPPORT SERVICES
05/06/2017,1447704,1624.67,UNITED RESPONSE,330350,"Health, Education, Care and Safeguarding",Adult Social Care,101,Third Party Payments,505,Private Contractors,5042,Revenue,22.SUPPORT SERVICES
05/06/2017,1447704,1633.64,UNITED RESPONSE,330350,"Health, Education, Care and Safeguarding",Adult Social Care,101,Third Party Payments,505,Private Contractors,5042,Revenue,22.SUPPORT SERVICES
05/06/2017,1447704,1698.80,UNITED RESPONSE,330350,"Health, Education, Care and Safeguarding",Adult Social Care,101,Third Party Payments,505,Private Contractors,5042,Revenue,22.SUPPORT SERVICES
05/06/2017,1447704,1707.32,UNITED RESPONSE,330350,"Health, Education, Care and Safeguarding",Adult Social Care,101,Third Party Payments,505,Private Contractors,5042,Revenue,22.SUPPORT SERVICES
05/06/2017,1447704,1765.90,UNITED RESPONSE,330350,"Health, Education, Care and Safeguarding",Adult Social Care,101,Third Party Payments,505,Private Contractors,5042,Revenue,22.SUPPORT SERVICES
05/06/2017,1447704,1788.85,UNITED RESPONSE,330350,"Health, Education, Care and Safeguarding",Public Health,112,Third Party Payments,505,Private Contractors,5042,Revenue,22.SUPPORT SERVICES
05/06/2017,1447704,2013.85,UNITED RESPONSE,330350,"Health, Education, Care and Safeguarding",Adult Social Care,101,Third Party Payments,505,Private Contractors,5042,Revenue,22.SUPPORT SERVICES
05/06/2017,1447704,2179.15,UNITED RESPONSE,330350,"Health, Education, Care and Safeguarding",Adult Social Care,101,Third Party Payments,505,Private Contractors,5042,Revenue,22.SUPPORT SERVICES
05/06/2017,1447704,2582.82,UNITED RESPONSE,330350,"Health, Education, Care and Safeguarding",Adult Social Care,101,Third Party Payments,505,Private Contractors,5042,Revenue,22.SUPPORT SERVICES
05/06/2017,1447704,2661.33,UNITED RESPONSE,330350,"Health, Education, Care and Safeguarding",Adult Social Care,101,Third Party Payments,505,Other Establishments,5041,Revenue,22.SUPPORT SERVICES
05/06/2017,1447704,2777.04,UNITED RESPONSE,330350,"Health, Education, Care and Safeguarding",Adult Social Care,101,Third Party Payments,505,Other Establishments,5041,Revenue,22.SUPPORT SERVICES
05/06/2017,1447704,2824.50,UNITED RESPONSE,330350,"Health, Education, Care and Safeguarding",Adult Social Care,101,Third Party Payments,505,Private Contractors,5042,Revenue,22.SUPPORT SERVICES
05/06/2017,1447704,3306.00,UNITED RESPONSE,330350,"Health, Education, Care and Safeguarding",Adult Social Care,101,Third Party Payments,505,Private Contractors,5042,Revenue,22.SUPPORT SERVICES
05/06/2017,1447704,3621.24,UNITED RESPONSE,330350,"Health, Education, Care and Safeguarding",Adult Social Care,101,Third Party Payments,505,Private Contractors,5042,Revenue,22.SUPPORT SERVICES
05/06/2017,1447704,3813.08,UNITED RESPONSE,330350,"Health, Education, Care and Safeguarding",Adult Social Care,101,Third Party Payments,505,Private Contractors,5042,Revenue,22.SUPPORT SERVICES
05/06/2017,1447704,3982.37,UNITED RESPONSE,330350,"Health, Education, Care and Safeguarding",Public Health,112,Third Party Payments,505,Private Contractors,5042,Revenue,22.SUPPORT SERVICES
05/06/2017,1447706,850.50,AUTISM CARE (UK) LIMITED,387636,"Health, Education, Care and Safeguarding",Adult Social Care,101,Third Party Payments,505,Private Contractors,5042,Revenue,22.RESIDENTIAL
05/06/2017,1447706,2389.50,AUTISM CARE (UK) LIMITED,387636,"Health, Education, Care and Safeguarding",Adult Social Care,101,Third Party Payments,505,Private Contractors,5042,Revenue,22.RESIDENTIAL
05/06/2017,1447706,2581.00,AUTISM CARE (UK) LIMITED,387636,"Health, Education, Care and Safeguarding",Adult Social Care,101,Third Party Payments,505,Private Contractors,5042,Revenue,22.RESIDENTIAL
05/06/2017,1447706,2646.00,AUTISM CARE (UK) LIMITED,387636,"Health, Education, Care and Safeguarding",Adult Social Care,101,Third Party Payments,505,Private Contractors,5042,Revenue,22.RESIDENTIAL
05/06/2017,1447706,6184.01,AUTISM CARE (UK) LIMITED,387636,"Health, Education, Care and Safeguarding",Adult Social Care,101,Third Party Payments,505,Other Establishments,5041,Revenue,22.RESIDENTIAL
05/06/2017,1447707,1940.12,WAYMARKS LTD,386037,"Health, Education, Care and Safeguarding",Adult Social Care,101,Third Party Payments,505,Other Establishments,5041,Revenue,22.SUPPORT SERVICES
05/06/2017,1447710,450.34,TURNBERRY SERVICES LIMITED,392180,"Health, Education, Care and Safeguarding",Adult Social Care,101,Third Party Payments,505,Private Contractors,5042,Revenue,22.RESIDENTIAL
05/06/2017,1447711,1469.39,Redacted Personal Data,368587,"Health, Education, Care and Safeguarding",Adult Social Care,101,Third Party Payments,505,Other Establishments,5041,Revenue,NON INDIVIDUAL
05/06/2017,1447712,410.22,Redacted Personal Data,392105,"Health, Education, Care and Safeguarding",Adult Social Care,101,Third Party Payments,505,Other Establishments,5041,Revenue,22.SUPPORT SERVICES
05/06/2017,1447716,590.24,SWIFT - PREPAID CARDS,299980,"Health, Education, Care and Safeguarding",Adult Social Care,101,Third Party Payments,505,Other Establishments,5041,Revenue,22.SUPPORT SERVICES
05/06/2017,1447717,324.44,SWIFT - PREPAID CARDS,299980,"Health, Education, Care and Safeguarding",Adult Social Care,101,Third Party Payments,505,Other Establishments,5041,Revenue,22.SUPPORT SERVICES
05/06/2017,1447718,329.00,SWIFT - PREPAID CARDS,299980,"Health, Education, Care and Safeguarding",Adult Social Care,101,Third Party Payments,505,Other Establishments,5041,Revenue,22.SUPPORT SERVICES
05/06/2017,1447719,735.00,SWIFT - PREPAID CARDS,299980,"Health, Education, Care and Safeguarding",Adult Social Care,101,Third Party Payments,505,Other Establishments,5041,Revenue,22.SUPPORT SERVICES
05/06/2017,1447750,523.74,CRAMLINGTON HOUSE LTD,389741,"Health, Education, Care and Safeguarding",Adult Social Care,101,Third Party Payments,505,Private Contractors,5042,Revenue,22.RESIDENTIAL
05/06/2017,1447750,526.23,CRAMLINGTON HOUSE LTD,389741,"Health, Education, Care and Safeguarding",Adult Social Care,101,Third Party Payments,505,Private Contractors,5042,Revenue,22.RESIDENTIAL
05/06/2017,1447750,526.23,CRAMLINGTON HOUSE LTD,389741,"Health, Education, Care and Safeguarding",Adult Social Care,101,Third Party Payments,505,Private Contractors,5042,Revenue,22.RESIDENTIAL
05/06/2017,1447750,538.64,CRAMLINGTON HOUSE LTD,389741,"Health, Education, Care and Safeguarding",Adult Social Care,101,Third Party Payments,505,Private Contractors,5042,Revenue,22.RESIDENTIAL
05/06/2017,1447750,538.64,CRAMLINGTON HOUSE LTD,389741,"Health, Education, Care and Safeguarding",Adult Social Care,101,Third Party Payments,505,Private Contractors,5042,Revenue,22.RESIDENTIAL
05/06/2017,1447750,538.64,CRAMLINGTON HOUSE LTD,389741,"Health, Education, Care and Safeguarding",Adult Social Care,101,Third Party Payments,505,Private Contractors,5042,Revenue,22.RESIDENTIAL
05/06/2017,1447750,538.64,CRAMLINGTON HOUSE LTD,389741,"Health, Education, Care and Safeguarding",Adult Social Care,101,Third Party Payments,505,Private Contractors,5042,Revenue,22.RESIDENTIAL
05/06/2017,1447750,538.64,CRAMLINGTON HOUSE LTD,389741,"Health, Education, Care and Safeguarding",Adult Social Care,101,Third Party Payments,505,Private Contractors,5042,Revenue,22.RESIDENTIAL
05/06/2017,1447750,538.64,CRAMLINGTON HOUSE LTD,389741,"Health, Education, Care and Safeguarding",Adult Social Care,101,Third Party Payments,505,Private Contractors,5042,Revenue,22.RESIDENTIAL
05/06/2017,1447752,524.00,PARKSIDE CARE LTD,389720,"Health, Education, Care and Safeguarding",Adult Social Care,101,Third Party Payments,505,Private Contractors,5042,Revenue,22.RESIDENTIAL
05/06/2017,1447757,493.63,DEMENTIA CARE PARTNERSHIP,346841,"Health, Education, Care and Safeguarding",Public Health,112,Third Party Payments,505,Private Contractors,5042,Revenue,22.SUPPORT SERVICES
05/06/2017,1447757,731.60,DEMENTIA CARE PARTNERSHIP,346841,"Health, Education, Care and Safeguarding",Public Health,112,Third Party Payments,505,Private Contractors,5042,Revenue,22.SUPPORT SERVICES
05/06/2017,1447761,512.00,SPRING VALE COURT MANAGEMENT COMPANY LIMITED,389438,"Health, Education, Care and Safeguarding",Adult Social Care,101,Third Party Payments,505,Private Contractors,5042,Revenue,22.RESIDENTIAL
05/06/2017,1447763,270.00,LEARNING DISABILITIES FEDERATION,350895,"Health, Education, Care and Safeguarding",Adult Social Care,101,Third Party Payments,505,Other Establishments,5041,Revenue,22.SUPPORT SERVICES
05/06/2017,1447763,270.00,LEARNING DISABILITIES FEDERATION,350895,"Health, Education, Care and Safeguarding",Adult Social Care,101,Third Party Payments,505,Other Establishments,5041,Revenue,22.SUPPORT SERVICES
05/06/2017,1447763,377.91,LEARNING DISABILITIES FEDERATION,350895,"Health, Education, Care and Safeguarding",Adult Social Care,101,Third Party Payments,505,Other Establishments,5041,Revenue,22.SUPPORT SERVICES
05/06/2017,1447765,1348.60,Redacted Personal Data,389290,"Health, Education, Care and Safeguarding",Adult Social Care,101,Third Party Payments,505,Other Establishments,5041,Revenue,00.NON INFLUENCIBLE
05/06/2017,1447767,1471.90,ST ANNE'S COMMUNITY SERVICES,366247,"Health, Education, Care and Safeguarding",Adult Social Care,101,Third Party Payments,505,Private Contractors,5042,Revenue,22.DAY CARE SERVICES
05/06/2017,1447767,1471.90,ST ANNE'S COMMUNITY SERVICES,366247,"Health, Education, Care and Safeguarding",Adult Social Care,101,Third Party Payments,505,Private Contractors,5042,Revenue,22.DAY CARE SERVICES
05/06/2017,1447767,1471.90,ST ANNE'S COMMUNITY SERVICES,366247,"Health, Education, Care and Safeguarding",Adult Social Care,101,Third Party Payments,505,Private Contractors,5042,Revenue,22.DAY CARE SERVICES
05/06/2017,1447767,1671.90,ST ANNE'S COMMUNITY SERVICES,366247,"Health, Education, Care and Safeguarding",Adult Social Care,101,Third Party Payments,505,Private Contractors,5042,Revenue,22.DAY CARE SERVICES
05/06/2017,1447767,1752.60,ST ANNE'S COMMUNITY SERVICES,366247,"Health, Education, Care and Safeguarding",Adult Social Care,101,Third Party Payments,505,Private Contractors,5042,Revenue,22.DAY CARE SERVICES
05/06/2017,1447767,1874.95,ST ANNE'S COMMUNITY SERVICES,366247,"Health, Education, Care and Safeguarding",Adult Social Care,101,Third Party Payments,505,Private Contractors,5042,Revenue,22.DAY CARE SERVICES
05/06/2017,1447769,368.90,Redacted Personal Data,389224,"Health, Education, Care and Safeguarding",Adult Social Care,101,Third Party Payments,505,Other Establishments,5041,Revenue,00.NON INFLUENCIBLE
05/06/2017,1447772,287.60,FIRST MOVE CARE LTD,341358,"Health, Education, Care and Safeguarding",Adult Social Care,101,Third Party Payments,505,Other Establishments,5041,Revenue,22.DAY CARE SERVICES
05/06/2017,1447772,352.28,FIRST MOVE CARE LTD,341358,"Health, Education, Care and Safeguarding",Adult Social Care,101,Third Party Payments,505,Other Establishments,5041,Revenue,22.DAY CARE SERVICES
05/06/2017,1447772,373.91,FIRST MOVE CARE LTD,341358,"Health, Education, Care and Safeguarding",Adult Social Care,101,Third Party Payments,505,Other Establishments,5041,Revenue,22.DAY CARE SERVICES
05/06/2017,1447772,392.25,FIRST MOVE CARE LTD,341358,"Health, Education, Care and Safeguarding",Adult Social Care,101,Third Party Payments,505,Other Establishments,5041,Revenue,22.DAY CARE SERVICES
05/06/2017,1447772,402.54,FIRST MOVE CARE LTD,341358,"Health, Education, Care and Safeguarding",Adult Social Care,101,Third Party Payments,505,Other Establishments,5041,Revenue,22.DAY CARE SERVICES
05/06/2017,1447773,524.00,HELEN MCARDLE CARE LTD,389131,"Health, Education, Care and Safeguarding",Adult Social Care,101,Third Party Payments,505,Private Contractors,5042,Revenue,22.RESIDENTIAL
05/06/2017,1447773,542.00,HELEN MCARDLE CARE LTD,389131,"Health, Education, Care and Safeguarding",Adult Social Care,101,Third Party Payments,505,Private Contractors,5042,Revenue,22.RESIDENTIAL
05/06/2017,1447775,295.12,Redacted Personal Data,329504,"Health, Education, Care and Safeguarding",Adult Social Care,101,Third Party Payments,505,Other Establishments,5041,Revenue,NON INDIVIDUAL
05/06/2017,1447778,-4426.56,FOUR SEASONS HEALTH CARE,371477,"Health, Education, Care and Safeguarding",Adult Social Care,101,Third Party Payments,505,Private Contractors,5042,,22.RESIDENTIAL
05/06/2017,1447778,-4426.56,FOUR SEASONS HEALTH CARE,371477,"Health, Education, Care and Safeguarding",Adult Social Care,101,Third Party Payments,505,Private Contractors,5042,,22.RESIDENTIAL
05/06/2017,1447778,-4426.56,FOUR SEASONS HEALTH CARE,371477,"Health, Education, Care and Safeguarding",Adult Social Care,101,Third Party Payments,505,Private Contractors,5042,,22.RESIDENTIAL
05/06/2017,1447778,561.12,FOUR SEASONS HEALTH CARE,371477,"Health, Education, Care and Safeguarding",Adult Social Care,101,Third Party Payments,505,Private Contractors,5042,Revenue,22.RESIDENTIAL
05/06/2017,1447831,520.05,ST MARTINS CARE LIMITED,383318,"Health, Education, Care and Safeguarding",Adult Social Care,101,Third Party Payments,505,Private Contractors,5042,Revenue,22.RESIDENTIAL
05/06/2017,1447831,520.05,ST MARTINS CARE LIMITED,383318,"Health, Education, Care and Safeguarding",Adult Social Care,101,Third Party Payments,505,Private Contractors,5042,Revenue,22.RESIDENTIAL
05/06/2017,1447831,520.05,ST MARTINS CARE LIMITED,383318,"Health, Education, Care and Safeguarding",Adult Social Care,101,Third Party Payments,505,Private Contractors,5042,Revenue,22.RESIDENTIAL
05/06/2017,1447831,520.05,ST MARTINS CARE LIMITED,383318,"Health, Education, Care and Safeguarding",Adult Social Care,101,Third Party Payments,505,Private Contractors,5042,Revenue,22.RESIDENTIAL
05/06/2017,1447831,520.05,ST MARTINS CARE LIMITED,383318,"Health, Education, Care and Safeguarding",Adult Social Care,101,Third Party Payments,505,Private Contractors,5042,Revenue,22.RESIDENTIAL
05/06/2017,1447831,520.05,ST MARTINS CARE LIMITED,383318,"Health, Education, Care and Safeguarding",Adult Social Care,101,Third Party Payments,505,Private Contractors,5042,Revenue,22.RESIDENTIAL
05/06/2017,1447720,1840.54,SWIFT - PREPAID CARDS,299980,"Health, Education, Care and Safeguarding",Adult Social Care,101,Third Party Payments,505,Other Establishments,5041,Revenue,22.SUPPORT SERVICES
05/06/2017,1447730,2554.17,SWIFT - PREPAID CARDS,299980,"Health, Education, Care and Safeguarding",Adult Social Care,101,Third Party Payments,505,Other Establishments,5041,Revenue,22.SUPPORT SERVICES
05/06/2017,1447732,329.00,NEW PROSPECTS - ISF FUND,389249,"Health, Education, Care and Safeguarding",Adult Social Care,101,Third Party Payments,505,Other Establishments,5041,Revenue,22.SUPPORT SERVICES
05/06/2017,1447733,-1317.84,NEW PROSPECTS ASSOCIATION LIMITED,203069,"Health, Education, Care and Safeguarding",Adult Social Care,101,Third Party Payments,505,Private Contractors,5042,,22.DAY CARE SERVICES
05/06/2017,1447733,-1314.15,NEW PROSPECTS ASSOCIATION LIMITED,203069,"Health, Education, Care and Safeguarding",Adult Social Care,101,Third Party Payments,505,Private Contractors,5042,,22.DAY CARE SERVICES
05/06/2017,1447733,258.40,NEW PROSPECTS ASSOCIATION LIMITED,203069,"Health, Education, Care and Safeguarding",Adult Social Care,101,Third Party Payments,505,Private Contractors,5042,Revenue,22.DAY CARE SERVICES
05/06/2017,1447733,271.32,NEW PROSPECTS ASSOCIATION LIMITED,203069,"Health, Education, Care and Safeguarding",Adult Social Care,101,Third Party Payments,505,Private Contractors,5042,Revenue,22.DAY CARE SERVICES
05/06/2017,1447733,277.78,NEW PROSPECTS ASSOCIATION LIMITED,203069,"Health, Education, Care and Safeguarding",Adult Social Care,101,Third Party Payments,505,Private Contractors,5042,Revenue,22.DAY CARE SERVICES
05/06/2017,1447733,355.30,NEW PROSPECTS ASSOCIATION LIMITED,203069,"Health, Education, Care and Safeguarding",Adult Social Care,101,Third Party Payments,505,Private Contractors,5042,Revenue,22.DAY CARE SERVICES
05/06/2017,1447733,365.58,NEW PROSPECTS ASSOCIATION LIMITED,203069,"Health, Education, Care and Safeguarding",Adult Social Care,101,Third Party Payments,505,Private Contractors,5042,Revenue,22.DAY CARE SERVICES
05/06/2017,1447733,387.60,NEW PROSPECTS ASSOCIATION LIMITED,203069,"Health, Education, Care and Safeguarding",Adult Social Care,101,Third Party Payments,505,Private Contractors,5042,Revenue,22.DAY CARE SERVICES
05/06/2017,1447733,542.64,NEW PROSPECTS ASSOCIATION LIMITED,203069,"Health, Education, Care and Safeguarding",Adult Social Care,101,Third Party Payments,505,Private Contractors,5042,Revenue,22.DAY CARE SERVICES
05/06/2017,1447733,601.48,NEW PROSPECTS ASSOCIATION LIMITED,203069,"Health, Education, Care and Safeguarding",Adult Social Care,101,Third Party Payments,505,Private Contractors,5042,Revenue,22.DAY CARE SERVICES
05/06/2017,1447733,619.50,NEW PROSPECTS ASSOCIATION LIMITED,203069,"Health, Education, Care and Safeguarding",Adult Social Care,101,Third Party Payments,505,Private Contractors,5042,Revenue,22.DAY CARE SERVICES
05/06/2017,1447733,619.50,NEW PROSPECTS ASSOCIATION LIMITED,203069,"Health, Education, Care and Safeguarding",Adult Social Care,101,Third Party Payments,505,Private Contractors,5042,Revenue,22.DAY CARE SERVICES
05/06/2017,1447733,638.51,NEW PROSPECTS ASSOCIATION LIMITED,203069,"Health, Education, Care and Safeguarding",Adult Social Care,101,Third Party Payments,505,Private Contractors,5042,Revenue,22.DAY CARE SERVICES
05/06/2017,1447733,644.99,NEW PROSPECTS ASSOCIATION LIMITED,203069,"Health, Education, Care and Safeguarding",Adult Social Care,101,Third Party Payments,505,Private Contractors,5042,Revenue,22.DAY CARE SERVICES
05/06/2017,1447733,684.76,NEW PROSPECTS ASSOCIATION LIMITED,203069,"Health, Education, Care and Safeguarding",Adult Social Care,101,Third Party Payments,505,Private Contractors,5042,Revenue,22.DAY CARE SERVICES
05/06/2017,1447733,688.51,NEW PROSPECTS ASSOCIATION LIMITED,203069,"Health, Education, Care and Safeguarding",Adult Social Care,101,Third Party Payments,505,Private Contractors,5042,Revenue,22.DAY CARE SERVICES
05/06/2017,1447733,688.51,NEW PROSPECTS ASSOCIATION LIMITED,203069,"Health, Education, Care and Safeguarding",Adult Social Care,101,Third Party Payments,505,Private Contractors,5042,Revenue,22.DAY CARE SERVICES
05/06/2017,1447733,698.91,NEW PROSPECTS ASSOCIATION LIMITED,203069,"Health, Education, Care and Safeguarding",Adult Social Care,101,Third Party Payments,505,Private Contractors,5042,Revenue,22.DAY CARE SERVICES
05/06/2017,1447733,718.03,NEW PROSPECTS ASSOCIATION LIMITED,203069,"Health, Education, Care and Safeguarding",Adult Social Care,101,Third Party Payments,505,Private Contractors,5042,Revenue,22.DAY CARE SERVICES
05/06/2017,1447733,719.46,NEW PROSPECTS ASSOCIATION LIMITED,203069,"Health, Education, Care and Safeguarding",Adult Social Care,101,Third Party Payments,505,Private Contractors,5042,Revenue,22.DAY CARE SERVICES
05/06/2017,1447733,719.46,NEW PROSPECTS ASSOCIATION LIMITED,203069,"Health, Education, Care and Safeguarding",Adult Social Care,101,Third Party Payments,505,Private Contractors,5042,Revenue,22.DAY CARE SERVICES
05/06/2017,1447733,730.28,NEW PROSPECTS ASSOCIATION LIMITED,203069,"Health, Education, Care and Safeguarding",Adult Social Care,101,Third Party Payments,505,Private Contractors,5042,Revenue,22.DAY CARE SERVICES
05/06/2017,1447733,742.53,NEW PROSPECTS ASSOCIATION LIMITED,203069,"Health, Education, Care and Safeguarding",Adult Social Care,101,Third Party Payments,505,Private Contractors,5042,Revenue,22.DAY CARE SERVICES
05/06/2017,1447733,758.31,NEW PROSPECTS ASSOCIATION LIMITED,203069,"Health, Education, Care and Safeguarding",Adult Social Care,101,Third Party Payments,505,Private Contractors,5042,Revenue,22.DAY CARE SERVICES
05/06/2017,1447733,808.68,NEW PROSPECTS ASSOCIATION LIMITED,203069,"Health, Education, Care and Safeguarding",Adult Social Care,101,Third Party Payments,505,Private Contractors,5042,Revenue,22.DAY CARE SERVICES
05/06/2017,1447733,809.25,NEW PROSPECTS ASSOCIATION LIMITED,203069,"Health, Education, Care and Safeguarding",Adult Social Care,101,Third Party Payments,505,Private Contractors,5042,Revenue,22.DAY CARE SERVICES
05/06/2017,1447733,823.96,NEW PROSPECTS ASSOCIATION LIMITED,203069,"Health, Education, Care and Safeguarding",Adult Social Care,101,Third Party Payments,505,Private Contractors,5042,Revenue,22.DAY CARE SERVICES
05/06/2017,1447733,834.58,NEW PROSPECTS ASSOCIATION LIMITED,203069,"Health, Education, Care and Safeguarding",Adult Social Care,101,Third Party Payments,505,Private Contractors,5042,Revenue,22.DAY CARE SERVICES
05/06/2017,1447733,840.35,NEW PROSPECTS ASSOCIATION LIMITED,203069,"Health, Education, Care and Safeguarding",Adult Social Care,101,Third Party Payments,505,Private Contractors,5042,Revenue,22.DAY CARE SERVICES
05/06/2017,1447733,916.65,NEW PROSPECTS ASSOCIATION LIMITED,203069,"Health, Education, Care and Safeguarding",Adult Social Care,101,Third Party Payments,505,Private Contractors,5042,Revenue,22.DAY CARE SERVICES
05/06/2017,1447733,948.73,NEW PROSPECTS ASSOCIATION LIMITED,203069,"Health, Education, Care and Safeguarding",Adult Social Care,101,Third Party Payments,505,Private Contractors,5042,Revenue,22.DAY CARE SERVICES
05/06/2017,1447733,948.73,NEW PROSPECTS ASSOCIATION LIMITED,203069,"Health, Education, Care and Safeguarding",Adult Social Care,101,Third Party Payments,505,Private Contractors,5042,Revenue,22.DAY CARE SERVICES
05/06/2017,1447733,961.68,NEW PROSPECTS ASSOCIATION LIMITED,203069,"Health, Education, Care and Safeguarding",Adult Social Care,101,Third Party Payments,505,Private Contractors,5042,Revenue,22.DAY CARE SERVICES
05/06/2017,1447733,995.75,NEW PROSPECTS ASSOCIATION LIMITED,203069,"Health, Education, Care and Safeguarding",Adult Social Care,101,Third Party Payments,505,Private Contractors,5042,Revenue,22.DAY CARE SERVICES
05/06/2017,1447733,1012.26,NEW PROSPECTS ASSOCIATION LIMITED,203069,"Health, Education, Care and Safeguarding",Adult Social Care,101,Third Party Payments,505,Private Contractors,5042,Revenue,22.DAY CARE SERVICES
05/06/2017,1447733,1118.78,NEW PROSPECTS ASSOCIATION LIMITED,203069,"Health, Education, Care and Safeguarding",Adult Social Care,101,Third Party Payments,505,Private Contractors,5042,Revenue,22.DAY CARE SERVICES
05/06/2017,1447733,1175.00,NEW PROSPECTS ASSOCIATION LIMITED,203069,"Health, Education, Care and Safeguarding",Adult Social Care,101,Third Party Payments,505,Private Contractors,5042,Revenue,22.DAY CARE SERVICES
05/06/2017,1447733,1254.75,NEW PROSPECTS ASSOCIATION LIMITED,203069,"Health, Education, Care and Safeguarding",Adult Social Care,101,Third Party Payments,505,Private Contractors,5042,Revenue,22.DAY CARE SERVICES
05/06/2017,1447733,1293.60,NEW PROSPECTS ASSOCIATION LIMITED,203069,"Health, Education, Care and Safeguarding",Adult Social Care,101,Third Party Payments,505,Private Contractors,5042,Revenue,22.DAY CARE SERVICES
05/06/2017,1447733,1387.40,NEW PROSPECTS ASSOCIATION LIMITED,203069,"Health, Education, Care and Safeguarding",Adult Social Care,101,Third Party Payments,505,Private Contractors,5042,Revenue,22.DAY CARE SERVICES
05/06/2017,1447733,1469.02,NEW PROSPECTS ASSOCIATION LIMITED,203069,"Health, Education, Care and Safeguarding",Adult Social Care,101,Third Party Payments,505,Private Contractors,5042,Revenue,22.DAY CARE SERVICES
05/06/2017,1447733,1505.58,NEW PROSPECTS ASSOCIATION LIMITED,203069,"Health, Education, Care and Safeguarding",Adult Social Care,101,Third Party Payments,505,Private Contractors,5042,Revenue,22.DAY CARE SERVICES
05/06/2017,1447733,1505.58,NEW PROSPECTS ASSOCIATION LIMITED,203069,"Health, Education, Care and Safeguarding",Adult Social Care,101,Third Party Payments,505,Private Contractors,5042,Revenue,22.DAY CARE SERVICES
05/06/2017,1447733,1570.33,NEW PROSPECTS ASSOCIATION LIMITED,203069,"Health, Education, Care and Safeguarding",Adult Social Care,101,Third Party Payments,505,Private Contractors,5042,Revenue,22.DAY CARE SERVICES
05/06/2017,1447733,1779.50,NEW PROSPECTS ASSOCIATION LIMITED,203069,"Health, Education, Care and Safeguarding",Adult Social Care,101,Third Party Payments,505,Private Contractors,5042,Revenue,22.DAY CARE SERVICES
05/06/2017,1447733,1833.30,NEW PROSPECTS ASSOCIATION LIMITED,203069,"Health, Education, Care and Safeguarding",Adult Social Care,101,Third Party Payments,505,Private Contractors,5042,Revenue,22.DAY CARE SERVICES
05/06/2017,1447733,1838.20,NEW PROSPECTS ASSOCIATION LIMITED,203069,"Health, Education, Care and Safeguarding",Adult Social Care,101,Third Party Payments,505,Private Contractors,5042,Revenue,22.DAY CARE SERVICES
05/06/2017,1447733,2156.10,NEW PROSPECTS ASSOCIATION LIMITED,203069,"Health, Education, Care and Safeguarding",Adult Social Care,101,Third Party Payments,505,Private Contractors,5042,Revenue,22.DAY CARE SERVICES
05/06/2017,1447733,2485.63,NEW PROSPECTS ASSOCIATION LIMITED,203069,"Health, Education, Care and Safeguarding",Adult Social Care,101,Third Party Payments,505,Private Contractors,5042,Revenue,22.DAY CARE SERVICES
05/06/2017,1447733,2492.35,NEW PROSPECTS ASSOCIATION LIMITED,203069,"Health, Education, Care and Safeguarding",Adult Social Care,101,Third Party Payments,505,Private Contractors,5042,Revenue,22.DAY CARE SERVICES
05/06/2017,1447734,1101.96,RODWELL FARM NURSING HOME LTD,390686,"Health, Education, Care and Safeguarding",Adult Social Care,101,Third Party Payments,505,Private Contractors,5042,Revenue,22.RESIDENTIAL
05/06/2017,1447737,250.82,EVERLASTING CARE LTD,363743,"Health, Education, Care and Safeguarding",Adult Social Care,101,Third Party Payments,505,Other Establishments,5041,Revenue,22.HOMECARE
05/06/2017,1447738,3273.27,THE DAVID LEWIS CENTRE,390402,"Health, Education, Care and Safeguarding",Adult Social Care,101,Third Party Payments,505,Private Contractors,5042,Revenue,18.CONFERENCING
05/06/2017,1447739,525.00,PATHWAYS CARE GROUP,390437,"Health, Education, Care and Safeguarding",Adult Social Care,101,Third Party Payments,505,Private Contractors,5042,Revenue,22.RESIDENTIAL
05/06/2017,1447741,491.93,CHARLOTTE STRAKER PROJECT,340178,"Health, Education, Care and Safeguarding",Adult Social Care,101,Third Party Payments,505,Private Contractors,5042,Revenue,22.RESIDENTIAL
05/06/2017,1447742,520.05,DAV HOMES LTD,390262,"Health, Education, Care and Safeguarding",Adult Social Care,101,Third Party Payments,505,Private Contractors,5042,Revenue,22.RESIDENTIAL
05/06/2017,1447742,520.05,DAV HOMES LTD,390262,"Health, Education, Care and Safeguarding",Adult Social Care,101,Third Party Payments,505,Private Contractors,5042,Revenue,22.RESIDENTIAL
05/06/2017,1447742,520.05,DAV HOMES LTD,390262,"Health, Education, Care and Safeguarding",Adult Social Care,101,Third Party Payments,505,Private Contractors,5042,Revenue,22.RESIDENTIAL
05/06/2017,1447742,520.05,DAV HOMES LTD,390262,"Health, Education, Care and Safeguarding",Adult Social Care,101,Third Party Payments,505,Private Contractors,5042,Revenue,22.RESIDENTIAL
05/06/2017,1447742,520.05,DAV HOMES LTD,390262,"Health, Education, Care and Safeguarding",Adult Social Care,101,Third Party Payments,505,Private Contractors,5042,Revenue,22.RESIDENTIAL
05/06/2017,1447742,525.00,DAV HOMES LTD,390262,"Health, Education, Care and Safeguarding",Public Health,112,Third Party Payments,505,Other Establishments,5041,Revenue,22.RESIDENTIAL
05/06/2017,1447742,538.64,DAV HOMES LTD,390262,"Health, Education, Care and Safeguarding",Adult Social Care,101,Third Party Payments,505,Private Contractors,5042,Revenue,22.RESIDENTIAL
05/06/2017,1447742,538.64,DAV HOMES LTD,390262,"Health, Education, Care and Safeguarding",Adult Social Care,101,Third Party Payments,505,Private Contractors,5042,Revenue,22.RESIDENTIAL
05/06/2017,1447742,538.64,DAV HOMES LTD,390262,"Health, Education, Care and Safeguarding",Adult Social Care,101,Third Party Payments,505,Private Contractors,5042,Revenue,22.RESIDENTIAL
05/06/2017,1447742,538.64,DAV HOMES LTD,390262,"Health, Education, Care and Safeguarding",Adult Social Care,101,Third Party Payments,505,Private Contractors,5042,Revenue,22.RESIDENTIAL
05/06/2017,1447742,538.64,DAV HOMES LTD,390262,"Health, Education, Care and Safeguarding",Adult Social Care,101,Third Party Payments,505,Private Contractors,5042,Revenue,22.RESIDENTIAL
05/06/2017,1447742,538.64,DAV HOMES LTD,390262,"Health, Education, Care and Safeguarding",Adult Social Care,101,Third Party Payments,505,Private Contractors,5042,Revenue,22.RESIDENTIAL
05/06/2017,1447742,538.64,DAV HOMES LTD,390262,"Health, Education, Care and Safeguarding",Adult Social Care,101,Third Party Payments,505,Private Contractors,5042,Revenue,22.RESIDENTIAL
05/06/2017,1447742,538.64,DAV HOMES LTD,390262,"Health, Education, Care and Safeguarding",Adult Social Care,101,Third Party Payments,505,Private Contractors,5042,Revenue,22.RESIDENTIAL
05/06/2017,1447742,538.64,DAV HOMES LTD,390262,"Health, Education, Care and Safeguarding",Adult Social Care,101,Third Party Payments,505,Private Contractors,5042,Revenue,22.RESIDENTIAL
05/06/2017,1447742,538.64,DAV HOMES LTD,390262,"Health, Education, Care and Safeguarding",Adult Social Care,101,Third Party Payments,505,Private Contractors,5042,Revenue,22.RESIDENTIAL
05/06/2017,1447742,584.59,DAV HOMES LTD,390262,"Health, Education, Care and Safeguarding",Adult Social Care,101,Third Party Payments,505,Private Contractors,5042,Revenue,22.RESIDENTIAL
05/06/2017,1447742,584.59,DAV HOMES LTD,390262,"Health, Education, Care and Safeguarding",Adult Social Care,101,Third Party Payments,505,Private Contractors,5042,Revenue,22.RESIDENTIAL
05/06/2017,1447742,584.59,DAV HOMES LTD,390262,"Health, Education, Care and Safeguarding",Adult Social Care,101,Third Party Payments,505,Private Contractors,5042,Revenue,22.RESIDENTIAL
05/06/2017,1447742,584.59,DAV HOMES LTD,390262,"Health, Education, Care and Safeguarding",Adult Social Care,101,Third Party Payments,505,Private Contractors,5042,Revenue,22.RESIDENTIAL
05/06/2017,1447742,584.59,DAV HOMES LTD,390262,"Health, Education, Care and Safeguarding",Adult Social Care,101,Third Party Payments,505,Private Contractors,5042,Revenue,22.RESIDENTIAL
05/06/2017,1447742,584.59,DAV HOMES LTD,390262,"Health, Education, Care and Safeguarding",Adult Social Care,101,Third Party Payments,505,Private Contractors,5042,Revenue,22.RESIDENTIAL
05/06/2017,1447742,584.59,DAV HOMES LTD,390262,"Health, Education, Care and Safeguarding",Adult Social Care,101,Third Party Payments,505,Private Contractors,5042,Revenue,22.RESIDENTIAL
05/06/2017,1447742,584.59,DAV HOMES LTD,390262,"Health, Education, Care and Safeguarding",Adult Social Care,101,Third Party Payments,505,Private Contractors,5042,Revenue,22.RESIDENTIAL
05/06/2017,1447742,584.59,DAV HOMES LTD,390262,"Health, Education, Care and Safeguarding",Adult Social Care,101,Third Party Payments,505,Private Contractors,5042,Revenue,22.RESIDENTIAL
05/06/2017,1447742,664.32,DAV HOMES LTD,390262,"Health, Education, Care and Safeguarding",Adult Social Care,101,Third Party Payments,505,Other Establishments,5041,Revenue,22.RESIDENTIAL
05/06/2017,1447742,682.48,DAV HOMES LTD,390262,"Health, Education, Care and Safeguarding",Public Health,112,Third Party Payments,505,Other Establishments,5041,Revenue,22.RESIDENTIAL
05/06/2017,1447742,682.48,DAV HOMES LTD,390262,"Health, Education, Care and Safeguarding",Adult Social Care,101,Third Party Payments,505,Other Establishments,5041,Revenue,22.RESIDENTIAL
05/06/2017,1447742,682.48,DAV HOMES LTD,390262,"Health, Education, Care and Safeguarding",Public Health,112,Third Party Payments,505,Other Establishments,5041,Revenue,22.RESIDENTIAL
05/06/2017,1447742,682.48,DAV HOMES LTD,390262,"Health, Education, Care and Safeguarding",Public Health,112,Third Party Payments,505,Other Establishments,5041,Revenue,22.RESIDENTIAL
05/06/2017,1447742,682.48,DAV HOMES LTD,390262,"Health, Education, Care and Safeguarding",Public Health,112,Third Party Payments,505,Other Establishments,5041,Revenue,22.RESIDENTIAL
05/06/2017,1447742,682.48,DAV HOMES LTD,390262,"Health, Education, Care and Safeguarding",Public Health,112,Third Party Payments,505,Other Establishments,5041,Revenue,22.RESIDENTIAL
05/06/2017,1447742,682.48,DAV HOMES LTD,390262,"Health, Education, Care and Safeguarding",Public Health,112,Third Party Payments,505,Other Establishments,5041,Revenue,22.RESIDENTIAL
05/06/2017,1447742,682.48,DAV HOMES LTD,390262,"Health, Education, Care and Safeguarding",Public Health,112,Third Party Payments,505,Other Establishments,5041,Revenue,22.RESIDENTIAL
05/06/2017,1447742,693.69,DAV HOMES LTD,390262,"Health, Education, Care and Safeguarding",Public Health,112,Third Party Payments,505,Other Establishments,5041,Revenue,22.RESIDENTIAL
05/06/2017,1447742,711.64,DAV HOMES LTD,390262,"Health, Education, Care and Safeguarding",Public Health,112,Third Party Payments,505,Other Establishments,5041,Revenue,22.RESIDENTIAL
05/06/2017,1447742,837.20,DAV HOMES LTD,390262,"Health, Education, Care and Safeguarding",Adult Social Care,101,Third Party Payments,505,Private Contractors,5042,Revenue,22.RESIDENTIAL
05/06/2017,1447742,837.20,DAV HOMES LTD,390262,"Health, Education, Care and Safeguarding",Adult Social Care,101,Third Party Payments,505,Private Contractors,5042,Revenue,22.RESIDENTIAL
05/06/2017,1447742,837.20,DAV HOMES LTD,390262,"Health, Education, Care and Safeguarding",Adult Social Care,101,Third Party Payments,505,Private Contractors,5042,Revenue,22.RESIDENTIAL
05/06/2017,1447742,993.45,DAV HOMES LTD,390262,"Health, Education, Care and Safeguarding",Adult Social Care,101,Third Party Payments,505,Other Establishments,5041,Revenue,22.RESIDENTIAL
05/06/2017,1447742,993.45,DAV HOMES LTD,390262,"Health, Education, Care and Safeguarding",Adult Social Care,101,Third Party Payments,505,Other Establishments,5041,Revenue,22.RESIDENTIAL
05/06/2017,1447744,210.00,INSPIRED SUPPORT LIMITED,390108,"Health, Education, Care and Safeguarding",Adult Social Care,101,Third Party Payments,505,Other Establishments,5041,Revenue,22.SUPPORT SERVICES
05/06/2017,1447744,212.50,INSPIRED SUPPORT LIMITED,390108,"Health, Education, Care and Safeguarding",Adult Social Care,101,Third Party Payments,505,Other Establishments,5041,Revenue,22.SUPPORT SERVICES
05/06/2017,1447744,215.00,INSPIRED SUPPORT LIMITED,390108,"Health, Education, Care and Safeguarding",Adult Social Care,101,Third Party Payments,505,Other Establishments,5041,Revenue,22.SUPPORT SERVICES
05/06/2017,1447744,237.50,INSPIRED SUPPORT LIMITED,390108,"Health, Education, Care and Safeguarding",Adult Social Care,101,Third Party Payments,505,Other Establishments,5041,Revenue,22.SUPPORT SERVICES
05/06/2017,1447744,260.00,INSPIRED SUPPORT LIMITED,390108,"Health, Education, Care and Safeguarding",Adult Social Care,101,Third Party Payments,505,Other Establishments,5041,Revenue,22.SUPPORT SERVICES
05/06/2017,1447744,265.00,INSPIRED SUPPORT LIMITED,390108,"Health, Education, Care and Safeguarding",Adult Social Care,101,Third Party Payments,505,Other Establishments,5041,Revenue,22.SUPPORT SERVICES
05/06/2017,1447744,285.78,INSPIRED SUPPORT LIMITED,390108,"Health, Education, Care and Safeguarding",Adult Social Care,101,Third Party Payments,505,Other Establishments,5041,Revenue,22.SUPPORT SERVICES
05/06/2017,1447748,492.00,NEWCASTLE HOME CARE ASSOCIATES LTD,382474,"Health, Education, Care and Safeguarding",Adult Social Care,101,Third Party Payments,505,Private Contractors,5042,Revenue,22.HOMECARE
05/06/2017,1447749,316.00,Redacted Personal Data,389870,"Health, Education, Care and Safeguarding",Adult Social Care,101,Third Party Payments,505,Other Establishments,5041,Revenue,00.NON INFLUENCIBLE
05/06/2017,1447750,507.64,CRAMLINGTON HOUSE LTD,389741,"Health, Education, Care and Safeguarding",Adult Social Care,101,Third Party Payments,505,Private Contractors,5042,Revenue,22.RESIDENTIAL
05/06/2017,1447750,507.64,CRAMLINGTON HOUSE LTD,389741,"Health, Education, Care and Safeguarding",Adult Social Care,101,Third Party Payments,505,Private Contractors,5042,Revenue,22.RESIDENTIAL
05/06/2017,1447750,507.64,CRAMLINGTON HOUSE LTD,389741,"Health, Education, Care and Safeguarding",Adult Social Care,101,Third Party Payments,505,Private Contractors,5042,Revenue,22.RESIDENTIAL
05/06/2017,1447750,508.07,CRAMLINGTON HOUSE LTD,389741,"Health, Education, Care and Safeguarding",Adult Social Care,101,Third Party Payments,505,Private Contractors,5042,Revenue,22.RESIDENTIAL
05/06/2017,1447750,508.07,CRAMLINGTON HOUSE LTD,389741,"Health, Education, Care and Safeguarding",Adult Social Care,101,Third Party Payments,505,Private Contractors,5042,Revenue,22.RESIDENTIAL
05/06/2017,1447750,508.07,CRAMLINGTON HOUSE LTD,389741,"Health, Education, Care and Safeguarding",Adult Social Care,101,Third Party Payments,505,Private Contractors,5042,Revenue,22.RESIDENTIAL
05/06/2017,1447750,508.07,CRAMLINGTON HOUSE LTD,389741,"Health, Education, Care and Safeguarding",Adult Social Care,101,Third Party Payments,505,Private Contractors,5042,Revenue,22.RESIDENTIAL
05/06/2017,1447750,520.05,CRAMLINGTON HOUSE LTD,389741,"Health, Education, Care and Safeguarding",Adult Social Care,101,Third Party Payments,505,Private Contractors,5042,Revenue,22.RESIDENTIAL
05/06/2017,1447750,520.05,CRAMLINGTON HOUSE LTD,389741,"Health, Education, Care and Safeguarding",Adult Social Care,101,Third Party Payments,505,Private Contractors,5042,Revenue,22.RESIDENTIAL
05/06/2017,1447750,520.05,CRAMLINGTON HOUSE LTD,389741,"Health, Education, Care and Safeguarding",Adult Social Care,101,Third Party Payments,505,Private Contractors,5042,Revenue,22.RESIDENTIAL
05/06/2017,1447750,520.05,CRAMLINGTON HOUSE LTD,389741,"Health, Education, Care and Safeguarding",Adult Social Care,101,Third Party Payments,505,Private Contractors,5042,Revenue,22.RESIDENTIAL
05/06/2017,1447750,520.05,CRAMLINGTON HOUSE LTD,389741,"Health, Education, Care and Safeguarding",Adult Social Care,101,Third Party Payments,505,Private Contractors,5042,Revenue,22.RESIDENTIAL
05/06/2017,1447750,520.05,CRAMLINGTON HOUSE LTD,389741,"Health, Education, Care and Safeguarding",Adult Social Care,101,Third Party Payments,505,Private Contractors,5042,Revenue,22.RESIDENTIAL
05/06/2017,1447750,520.05,CRAMLINGTON HOUSE LTD,389741,"Health, Education, Care and Safeguarding",Adult Social Care,101,Third Party Payments,505,Private Contractors,5042,Revenue,22.RESIDENTIAL
05/06/2017,1447750,520.05,CRAMLINGTON HOUSE LTD,389741,"Health, Education, Care and Safeguarding",Adult Social Care,101,Third Party Payments,505,Private Contractors,5042,Revenue,22.RESIDENTIAL
05/06/2017,1447750,520.05,CRAMLINGTON HOUSE LTD,389741,"Health, Education, Care and Safeguarding",Adult Social Care,101,Third Party Payments,505,Private Contractors,5042,Revenue,22.RESIDENTIAL
05/06/2017,1447750,520.05,CRAMLINGTON HOUSE LTD,389741,"Health, Education, Care and Safeguarding",Adult Social Care,101,Third Party Payments,505,Private Contractors,5042,Revenue,22.RESIDENTIAL
05/06/2017,1447750,520.05,CRAMLINGTON HOUSE LTD,389741,"Health, Education, Care and Safeguarding",Adult Social Care,101,Third Party Payments,505,Private Contractors,5042,Revenue,22.RESIDENTIAL
05/06/2017,1447778,561.12,FOUR SEASONS HEALTH CARE,371477,"Health, Education, Care and Safeguarding",Adult Social Care,101,Third Party Payments,505,Private Contractors,5042,Revenue,22.RESIDENTIAL
05/06/2017,1447778,561.12,FOUR SEASONS HEALTH CARE,371477,"Health, Education, Care and Safeguarding",Adult Social Care,101,Third Party Payments,505,Private Contractors,5042,Revenue,22.RESIDENTIAL
05/06/2017,1447778,561.12,FOUR SEASONS HEALTH CARE,371477,"Health, Education, Care and Safeguarding",Adult Social Care,101,Third Party Payments,505,Private Contractors,5042,Revenue,22.RESIDENTIAL
05/06/2017,1447778,669.30,FOUR SEASONS HEALTH CARE,371477,"Health, Education, Care and Safeguarding",Public Health,112,Third Party Payments,505,Other Establishments,5041,Revenue,22.RESIDENTIAL
05/06/2017,1447778,4649.28,FOUR SEASONS HEALTH CARE,371477,"Health, Education, Care and Safeguarding",Adult Social Care,101,Third Party Payments,505,Private Contractors,5042,Revenue,22.RESIDENTIAL
05/06/2017,1447778,4649.28,FOUR SEASONS HEALTH CARE,371477,"Health, Education, Care and Safeguarding",Adult Social Care,101,Third Party Payments,505,Private Contractors,5042,Revenue,22.RESIDENTIAL
05/06/2017,1447778,4649.28,FOUR SEASONS HEALTH CARE,371477,"Health, Education, Care and Safeguarding",Adult Social Care,101,Third Party Payments,505,Private Contractors,5042,Revenue,22.RESIDENTIAL
05/06/2017,1447779,259.00,NEW BEGINNINGS (N.E.) LTD,337005,"Health, Education, Care and Safeguarding",Adult Social Care,101,Third Party Payments,505,Private Contractors,5042,Revenue,22.RESIDENTIAL
05/06/2017,1447779,730.28,NEW BEGINNINGS (N.E.) LTD,337005,"Health, Education, Care and Safeguarding",Adult Social Care,101,Third Party Payments,505,Other Establishments,5041,Revenue,22.RESIDENTIAL
05/06/2017,1447779,730.28,NEW BEGINNINGS (N.E.) LTD,337005,"Health, Education, Care and Safeguarding",Adult Social Care,101,Third Party Payments,505,Other Establishments,5041,Revenue,22.RESIDENTIAL
05/06/2017,1447779,772.36,NEW BEGINNINGS (N.E.) LTD,337005,"Health, Education, Care and Safeguarding",Adult Social Care,101,Third Party Payments,505,Private Contractors,5042,Revenue,22.RESIDENTIAL
05/06/2017,1447779,836.98,NEW BEGINNINGS (N.E.) LTD,337005,"Health, Education, Care and Safeguarding",Adult Social Care,101,Third Party Payments,505,Private Contractors,5042,Revenue,22.RESIDENTIAL
05/06/2017,1447779,836.98,NEW BEGINNINGS (N.E.) LTD,337005,"Health, Education, Care and Safeguarding",Adult Social Care,101,Third Party Payments,505,Private Contractors,5042,Revenue,22.RESIDENTIAL
05/06/2017,1447779,863.01,NEW BEGINNINGS (N.E.) LTD,337005,"Health, Education, Care and Safeguarding",Adult Social Care,101,Third Party Payments,505,Private Contractors,5042,Revenue,22.RESIDENTIAL
05/06/2017,1447779,940.71,NEW BEGINNINGS (N.E.) LTD,337005,"Health, Education, Care and Safeguarding",Adult Social Care,101,Third Party Payments,505,Private Contractors,5042,Revenue,22.RESIDENTIAL
05/06/2017,1447779,1419.86,NEW BEGINNINGS (N.E.) LTD,337005,"Health, Education, Care and Safeguarding",Adult Social Care,101,Third Party Payments,505,Private Contractors,5042,Revenue,22.RESIDENTIAL
05/06/2017,1447779,1833.30,NEW BEGINNINGS (N.E.) LTD,337005,"Health, Education, Care and Safeguarding",Adult Social Care,101,Third Party Payments,505,Private Contractors,5042,Revenue,22.RESIDENTIAL
05/06/2017,1447779,1833.30,NEW BEGINNINGS (N.E.) LTD,337005,"Health, Education, Care and Safeguarding",Adult Social Care,101,Third Party Payments,505,Other Establishments,5041,Revenue,22.RESIDENTIAL
05/06/2017,1447779,2021.60,NEW BEGINNINGS (N.E.) LTD,337005,"Health, Education, Care and Safeguarding",Adult Social Care,101,Third Party Payments,505,Other Establishments,5041,Revenue,22.RESIDENTIAL
05/06/2017,1447779,2478.90,NEW BEGINNINGS (N.E.) LTD,337005,"Health, Education, Care and Safeguarding",Adult Social Care,101,Third Party Payments,505,Private Contractors,5042,Revenue,22.RESIDENTIAL
05/06/2017,1447779,3178.30,NEW BEGINNINGS (N.E.) LTD,337005,"Health, Education, Care and Safeguarding",Adult Social Care,101,Third Party Payments,505,Other Establishments,5041,Revenue,22.RESIDENTIAL
05/06/2017,1447779,4092.90,NEW BEGINNINGS (N.E.) LTD,337005,"Health, Education, Care and Safeguarding",Adult Social Care,101,Third Party Payments,505,Private Contractors,5042,Revenue,22.RESIDENTIAL
05/06/2017,1447779,4092.90,NEW BEGINNINGS (N.E.) LTD,337005,"Health, Education, Care and Safeguarding",Adult Social Care,101,Third Party Payments,505,Private Contractors,5042,Revenue,22.RESIDENTIAL
05/06/2017,1447779,4119.80,NEW BEGINNINGS (N.E.) LTD,337005,"Health, Education, Care and Safeguarding",Public Health,112,Third Party Payments,505,Private Contractors,5042,Revenue,22.RESIDENTIAL
05/06/2017,1447780,360.36,Redacted Personal Data,388984,"Health, Education, Care and Safeguarding",Adult Social Care,101,Third Party Payments,505,Other Establishments,5041,Revenue,00.NON INFLUENCIBLE
05/06/2017,1447781,301.20,Redacted Personal Data,388962,"Health, Education, Care and Safeguarding",Adult Social Care,101,Third Party Payments,505,Other Establishments,5041,Revenue,00.NON INFLUENCIBLE
05/06/2017,1447782,1411.75,Redacted Personal Data,388380,"Health, Education, Care and Safeguarding",Adult Social Care,101,Third Party Payments,505,Other Establishments,5041,Revenue,00.NON INFLUENCIBLE
05/06/2017,1447783,1599.00,VOYAGE LIMITED,387358,"Health, Education, Care and Safeguarding",Adult Social Care,101,Third Party Payments,505,Private Contractors,5042,Revenue,22.RESIDENTIAL
05/06/2017,1447784,-130.70,ASPIRE HEALTHCARE,375113,"Health, Education, Care and Safeguarding",Adult Social Care,101,Income,509,"Other Grants, Reimbursements & Contributions",5063,Revenue,22.RESIDENTIAL
05/06/2017,1447784,-130.70,ASPIRE HEALTHCARE,375113,"Health, Education, Care and Safeguarding",Adult Social Care,101,Income,509,"Other Grants, Reimbursements & Contributions",5063,Revenue,22.RESIDENTIAL
05/06/2017,1447784,-130.70,ASPIRE HEALTHCARE,375113,"Health, Education, Care and Safeguarding",Adult Social Care,101,Income,509,"Other Grants, Reimbursements & Contributions",5063,Revenue,22.RESIDENTIAL
05/06/2017,1447784,-130.70,ASPIRE HEALTHCARE,375113,"Health, Education, Care and Safeguarding",Adult Social Care,101,Income,509,"Other Grants, Reimbursements & Contributions",5063,Revenue,22.RESIDENTIAL
05/06/2017,1447784,-130.70,ASPIRE HEALTHCARE,375113,"Health, Education, Care and Safeguarding",Adult Social Care,101,Income,509,"Other Grants, Reimbursements & Contributions",5063,Revenue,22.RESIDENTIAL
05/06/2017,1447784,-130.70,ASPIRE HEALTHCARE,375113,"Health, Education, Care and Safeguarding",Adult Social Care,101,Income,509,"Other Grants, Reimbursements & Contributions",5063,Revenue,22.RESIDENTIAL
05/06/2017,1447784,-127.46,ASPIRE HEALTHCARE,375113,"Health, Education, Care and Safeguarding",Adult Social Care,101,Income,509,"Other Grants, Reimbursements & Contributions",5063,Revenue,22.RESIDENTIAL
05/06/2017,1447784,-100.15,ASPIRE HEALTHCARE,375113,"Health, Education, Care and Safeguarding",Adult Social Care,101,Income,509,"Other Grants, Reimbursements & Contributions",5063,Revenue,22.RESIDENTIAL
05/06/2017,1447784,-80.45,ASPIRE HEALTHCARE,375113,"Health, Education, Care and Safeguarding",Adult Social Care,101,Income,509,"Other Grants, Reimbursements & Contributions",5063,Revenue,22.RESIDENTIAL
05/06/2017,1447784,393.00,ASPIRE HEALTHCARE,375113,"Health, Education, Care and Safeguarding",Adult Social Care,101,Third Party Payments,505,Private Contractors,5042,Revenue,22.RESIDENTIAL
05/06/2017,1447784,393.00,ASPIRE HEALTHCARE,375113,"Health, Education, Care and Safeguarding",Adult Social Care,101,Third Party Payments,505,Private Contractors,5042,Revenue,22.RESIDENTIAL
05/06/2017,1447784,393.00,ASPIRE HEALTHCARE,375113,"Health, Education, Care and Safeguarding",Adult Social Care,101,Third Party Payments,505,Private Contractors,5042,Revenue,22.RESIDENTIAL
05/06/2017,1447784,401.15,ASPIRE HEALTHCARE,375113,"Health, Education, Care and Safeguarding",Adult Social Care,101,Third Party Payments,505,Private Contractors,5042,Revenue,22.RESIDENTIAL
05/06/2017,1447784,450.34,ASPIRE HEALTHCARE,375113,"Health, Education, Care and Safeguarding",Adult Social Care,101,Third Party Payments,505,Private Contractors,5042,Revenue,22.RESIDENTIAL
05/06/2017,1447784,450.34,ASPIRE HEALTHCARE,375113,"Health, Education, Care and Safeguarding",Adult Social Care,101,Third Party Payments,505,Private Contractors,5042,Revenue,22.RESIDENTIAL
05/06/2017,1447784,450.34,ASPIRE HEALTHCARE,375113,"Health, Education, Care and Safeguarding",Adult Social Care,101,Third Party Payments,505,Private Contractors,5042,Revenue,22.RESIDENTIAL
05/06/2017,1447784,450.34,ASPIRE HEALTHCARE,375113,"Health, Education, Care and Safeguarding",Adult Social Care,101,Third Party Payments,505,Private Contractors,5042,Revenue,22.RESIDENTIAL
05/06/2017,1447784,450.34,ASPIRE HEALTHCARE,375113,"Health, Education, Care and Safeguarding",Adult Social Care,101,Third Party Payments,505,Private Contractors,5042,Revenue,22.RESIDENTIAL
05/06/2017,1447784,450.34,ASPIRE HEALTHCARE,375113,"Health, Education, Care and Safeguarding",Adult Social Care,101,Third Party Payments,505,Private Contractors,5042,Revenue,22.RESIDENTIAL
05/06/2017,1447784,450.34,ASPIRE HEALTHCARE,375113,"Health, Education, Care and Safeguarding",Adult Social Care,101,Third Party Payments,505,Private Contractors,5042,Revenue,22.RESIDENTIAL
05/06/2017,1447784,450.34,ASPIRE HEALTHCARE,375113,"Health, Education, Care and Safeguarding",Adult Social Care,101,Third Party Payments,505,Private Contractors,5042,Revenue,22.RESIDENTIAL
05/06/2017,1447784,450.34,ASPIRE HEALTHCARE,375113,"Health, Education, Care and Safeguarding",Adult Social Care,101,Third Party Payments,505,Private Contractors,5042,Revenue,22.RESIDENTIAL
05/06/2017,1447784,450.34,ASPIRE HEALTHCARE,375113,"Health, Education, Care and Safeguarding",Adult Social Care,101,Third Party Payments,505,Private Contractors,5042,Revenue,22.RESIDENTIAL
05/06/2017,1447784,450.34,ASPIRE HEALTHCARE,375113,"Health, Education, Care and Safeguarding",Adult Social Care,101,Third Party Payments,505,Private Contractors,5042,Revenue,22.RESIDENTIAL
05/06/2017,1447784,450.34,ASPIRE HEALTHCARE,375113,"Health, Education, Care and Safeguarding",Adult Social Care,101,Third Party Payments,505,Private Contractors,5042,Revenue,22.RESIDENTIAL
05/06/2017,1447784,450.34,ASPIRE HEALTHCARE,375113,"Health, Education, Care and Safeguarding",Adult Social Care,101,Third Party Payments,505,Private Contractors,5042,Revenue,22.RESIDENTIAL
05/06/2017,1447784,450.34,ASPIRE HEALTHCARE,375113,"Health, Education, Care and Safeguarding",Adult Social Care,101,Third Party Payments,505,Private Contractors,5042,Revenue,22.RESIDENTIAL
05/06/2017,1447784,450.34,ASPIRE HEALTHCARE,375113,"Health, Education, Care and Safeguarding",Adult Social Care,101,Third Party Payments,505,Private Contractors,5042,Revenue,22.RESIDENTIAL
05/06/2017,1447784,491.30,ASPIRE HEALTHCARE,375113,"Health, Education, Care and Safeguarding",Adult Social Care,101,Third Party Payments,505,Private Contractors,5042,Revenue,22.RESIDENTIAL
05/06/2017,1447784,495.55,ASPIRE HEALTHCARE,375113,"Health, Education, Care and Safeguarding",Adult Social Care,101,Third Party Payments,505,Private Contractors,5042,Revenue,22.RESIDENTIAL
05/06/2017,1447784,495.55,ASPIRE HEALTHCARE,375113,"Health, Education, Care and Safeguarding",Adult Social Care,101,Third Party Payments,505,Private Contractors,5042,Revenue,22.RESIDENTIAL
05/06/2017,1447784,566.22,ASPIRE HEALTHCARE,375113,"Health, Education, Care and Safeguarding",Adult Social Care,101,Third Party Payments,505,Private Contractors,5042,Revenue,22.RESIDENTIAL
05/06/2017,1447784,594.76,ASPIRE HEALTHCARE,375113,"Health, Education, Care and Safeguarding",Adult Social Care,101,Third Party Payments,505,Private Contractors,5042,Revenue,22.RESIDENTIAL
05/06/2017,1447784,594.76,ASPIRE HEALTHCARE,375113,"Health, Education, Care and Safeguarding",Adult Social Care,101,Third Party Payments,505,Private Contractors,5042,Revenue,22.RESIDENTIAL
05/06/2017,1447784,594.76,ASPIRE HEALTHCARE,375113,"Health, Education, Care and Safeguarding",Adult Social Care,101,Third Party Payments,505,Private Contractors,5042,Revenue,22.RESIDENTIAL
05/06/2017,1447784,727.28,ASPIRE HEALTHCARE,375113,"Health, Education, Care and Safeguarding",Adult Social Care,101,Third Party Payments,505,Private Contractors,5042,Revenue,22.RESIDENTIAL
05/06/2017,1447784,756.18,ASPIRE HEALTHCARE,375113,"Health, Education, Care and Safeguarding",Adult Social Care,101,Third Party Payments,505,Private Contractors,5042,Revenue,22.RESIDENTIAL
05/06/2017,1447784,835.95,ASPIRE HEALTHCARE,375113,"Health, Education, Care and Safeguarding",Adult Social Care,101,Third Party Payments,505,Private Contractors,5042,Revenue,22.RESIDENTIAL
05/06/2017,1447784,875.00,ASPIRE HEALTHCARE,375113,"Health, Education, Care and Safeguarding",Adult Social Care,101,Third Party Payments,505,Private Contractors,5042,Revenue,22.RESIDENTIAL
05/06/2017,1447784,1157.05,ASPIRE HEALTHCARE,375113,"Health, Education, Care and Safeguarding",Adult Social Care,101,Third Party Payments,505,Private Contractors,5042,Revenue,22.RESIDENTIAL
05/06/2017,1447784,1205.40,ASPIRE HEALTHCARE,375113,"Health, Education, Care and Safeguarding",Adult Social Care,101,Third Party Payments,505,Private Contractors,5042,Revenue,22.RESIDENTIAL
05/06/2017,1447784,1229.15,ASPIRE HEALTHCARE,375113,"Health, Education, Care and Safeguarding",Adult Social Care,101,Third Party Payments,505,Private Contractors,5042,Revenue,22.RESIDENTIAL
05/06/2017,1447784,1629.55,ASPIRE HEALTHCARE,375113,"Health, Education, Care and Safeguarding",Adult Social Care,101,Third Party Payments,505,Private Contractors,5042,Revenue,22.RESIDENTIAL
